Workbook

Sheet 2005旧市町 (hidden)
A1: 農業経営体 | E1: Ⅱ 農業経営体
A2: １ 組織形態別経営体数
R7: 単位：経営体
A8: 新旧市区町村 | E8: 計 | F8: 法人化している | P8: 地方公共 団 体 ・ 財産区 | Q8: 法 人 化 してない
F9: 小 計 | G9: 農事組合 法 人 | H9: 会社 | L9: 各種団体 | O9: その他 の法人
H10: 株 式 会 社 | I10: 有 限 会 社 | J10: 合名・ 合 資 会 社 | K10: 相 互 会 社 | L10: 農 協 | M10: 森 林 組 合 | N10: その他 の各種 団 体 | R10: 個 人 経営体
A13: 県計 | D13: 000-00 | E13: 17,121 | F13: 324 | G13: 12 | H13: 11 | I13: 265 | J13: 1 | K13: - | L13: 30 | M13: - | N13: 4 | O13: 1 | P13: 13 | Q13: 16,784 | R13: 16,764
B14: 横浜市 | D14: 100-00 | E14: 2,726 | F14: 46 | G14: 1 | H14: 4 | I14: 39 | J14: - | K14: - | L14: 2 | M14: - | N14: - | O14: - | P14: 2 | Q14: 2,678 | R14: 2,676
B15: 鶴見区 | D15: 101-00 | E15: 32 | F15: - | G15: - | H15: - | I15: - | J15: - | K15: - | L15: - | M15: - | N15: - | O15: - | P15: - | Q15: 32 | R15: 32
B16: 神奈川区 | D16: 102-00 | E16: 159 | F16: 4 | G16: - | H16: - | I16: 4 | J16: - | K16: - | L16: - | M16: - | N16: - | O16: - | P16: - | Q16: 155 | R16: 154
B17: 西区 | D17: 103-00 | E17: - | F17: - | G17: - | H17: - | I17: - | J17: - | K17: - | L17: - | M17: - | N17: - | O17: - | P17: - | Q17: - | R17: -
B18: 中区 | D18: 104-00 | E18: 4 | F18: 1 | G18: - | H18: - | I18: - | J18: - | K18: - | L18: 1 | M18: - | N18: - | O18: - | P18: 2 | Q18: 1 | R18: 1
B19: 南区（南区２－１） | D19: 105-00 | E19: 3 | F19: - | G19: - | H19: - | I19: - | J19: - | K19: - | L19: - | M19: - | N19: - | O19: - | P19: - | Q19: 3 | R19: 3
B20: 保土ケ谷区 | D20: 106-00 | E20: 103 | F20: 1 | G20: - | H20: - | I20: 1 | J20: - | K20: - | L20: - | M20: - | N20: - | O20: - | P20: - | Q20: 102 | R20: 102
C21: 保土ケ谷区２－１ | D21: 106-01 | E21: 82 | F21: - | G21: - | H21: - | I21: - | J21: - | K21: - | L21: - | M21: - | N21: - | O21: - | P21: - | Q21: 82 | R21: 82
C22: 二俣川村２－１ | D22: 106-02 | E22: 2 | F22: x | G22: x | H22: x | I22: x | J22: x | K22: x | L22: x | M22: x | N22: x | O22: x | P22: x | Q22: x | R22: x
C23: 新治村２－１ | D23: 106-03 | E23: 19 | F23: x | G23: x | H23: x | I23: x | J23: x | K23: x | L23: x | M23: x | N23: x | O23: x | P23: x | Q23: x | R23: x
B24: 磯子区 | D24: 107-00 | E24: 29 | F24: - | G24: - | H24: - | I24: - | J24: - | K24: - | L24: - | M24: - | N24: - | O24: - | P24: - | Q24: 29 | R24: 29
B25: 金沢区 | D25: 108-00 | E25: 28 | F25: - | G25: - | H25: - | I25: - | J25: - | K25: - | L25: - | M25: - | N25: - | O25: - | P25: - | Q25: 28 | R25: 28
B26: 港北区 | D26: 109-00 | E26: 286 | F26: - | G26: - | H26: - | I26: - | J26: - | K26: - | L26: - | M26: - | N26: - | O26: - | P26: - | Q26: 286 | R26: 286
C27: 港北 | D27: 109-01 | E27: 124 | F27: - | G27: - | H27: - | I27: - | J27: - | K27: - | L27: - | M27: - | N27: - | O27: - | P27: - | Q27: 124 | R27: 124
C28: 新田村２－１ | D28: 109-02 | E28: 162 | F28: - | G28: - | H28: - | I28: - | J28: - | K28: - | L28: - | M28: - | N28: - | O28: - | P28: - | Q28: 162 | R28: 162
B29: 戸塚区 | D29: 110-00 | E29: 254 | F29: 9 | G29: - | H29: 1 | I29: 8 | J29: - | K29: - | L29: - | M29: - | N29: - | O29: - | P29: - | Q29: 245 | R29: 245
C30: 戸塚町 | D30: 110-01 | E30: 26 | F30: 1 | G30: - | H30: - | I30: 1 | J30: - | K30: - | L30: - | M30: - | N30: - | O30: - | P30: - | Q30: 25 | R30: 25
C31: 豊田村２－１ | D31: 110-02 | E31: 7 | F31: 1 | G31: - | H31: - | I31: 1 | J31: - | K31: - | L31: - | M31: - | N31: - | O31: - | P31: - | Q31: 6 | R31: 6
C32: 川上村 | D32: 110-03 | E32: 55 | F32: 2 | G32: - | H32: - | I32: 2 | J32: - | K32: - | L32: - | M32: - | N32: - | O32: - | P32: - | Q32: 53 | R32: 53
C33: 大正村２－１ | D33: 110-04 | E33: 138 | F33: 5 | G33: - | H33: 1 | I33: 4 | J33: - | K33: - | L33: - | M33: - | N33: - | O33: - | P33: - | Q33: 133 | R33: 133
C34: 中川村３－１ | D34: 110-05 | E34: 28 | F34: - | G34: - | H34: - | I34: - | J34: - | K34: - | L34: - | M34: - | N34: - | O34: - | P34: - | Q34: 28 | R34: 28
B35: 港南区（南区２－２） | D35: 111-00 | E35: 53 | F35: 1 | G35: - | H35: 1 | I35: - | J35: - | K35: - | L35: - | M35: - | N35: - | O35: - | P35: - | Q35: 52 | R35: 52
B36: 旭区 | D36: 112-00 | E36: 200 | F36: 2 | G36: - | H36: - | I36: 2 | J36: - | K36: - | L36: - | M36: - | N36: - | O36: - | P36: - | Q36: 198 | R36: 198
C37: 保土ケ谷区２－２ | D37: 112-01 | E37: 15 | F37: - | G37: - | H37: - | I37: - | J37: - | K37: - | L37: - | M37: - | N37: - | O37: - | P37: - | Q37: 15 | R37: 15
C38: 二俣川村２－２ | D38: 112-02 | E38: 81 | F38: 2 | G38: - | H38: - | I38: 2 | J38: - | K38: - | L38: - | M38: - | N38: - | O38: - | P38: - | Q38: 79 | R38: 79
C39: 都岡村 | D39: 112-03 | E39: 104 | F39: - | G39: - | H39: - | I39: - | J39: - | K39: - | L39: - | M39: - | N39: - | O39: - | P39: - | Q39: 104 | R39: 104
B40: 緑区 | D40: 113-00 | E40: 286 | F40: 3 | G40: - | H40: 1 | I40: 2 | J40: - | K40: - | L40: - | M40: - | N40: - | O40: - | P40: - | Q40: 283 | R40: 283
C41: 中里村２－１ | D41: 113-01 | E41: 71 | F41: 2 | G41: - | H41: 1 | I41: 1 | J41: - | K41: - | L41: - | M41: - | N41: - | O41: - | P41: - | Q41: 69 | R41: 69
C42: 田奈村２－１ | D42: 113-02 | E42: 77 | F42: 1 | G42: - | H42: - | I42: 1 | J42: - | K42: - | L42: - | M42: - | N42: - | O42: - | P42: - | Q42: 76 | R42: 76
C43: 新治村２－２ | D43: 113-03 | E43: 138 | F43: - | G43: - | H43: - | I43: - | J43: - | K43: - | L43: - | M43: - | N43: - | O43: - | P43: - | Q43: 138 | R43: 138
B44: 瀬谷区 | D44: 114-00 | E44: 194 | F44: 1 | G44: - | H44: - | I44: 1 | J44: - | K44: - | L44: - | M44: - | N44: - | O44: - | P44: - | Q44: 193 | R44: 193
C45: 中川村３－２ | D45: 114-01 | E45: 45 | F45: 1 | G45: - | H45: - | I45: 1 | J45: - | K45: - | L45: - | M45: - | N45: - | O45: - | P45: - | Q45: 44 | R45: 44
C46: 瀬谷村 | D46: 114-02 | E46: 149 | F46: - | G46: - | H46: - | I46: - | J46: - | K46: - | L46: - | M46: - | N46: - | O46: - | P46: - | Q46: 149 | R46: 149
B47: 栄区 | D47: 115-00 | E47: 79 | F47: 1 | G47: - | H47: - | I47: 1 | J47: - | K47: - | L47: - | M47: - | N47: - | O47: - | P47: - | Q47: 78 | R47: 78
C48: 本郷村 | D48: 115-01 | E48: 42 | F48: - | G48: - | H48: - | I48: - | J48: - | K48: - | L48: - | M48: - | N48: - | O48: - | P48: - | Q48: 42 | R48: 42
C49: 豊田村２－２ | D49: 115-02 | E49: 37 | F49: 1 | G49: - | H49: - | I49: 1 | J49: - | K49: - | L49: - | M49: - | N49: - | O49: - | P49: - | Q49: 36 | R49: 36
B50: 泉区 | D50: 116-00 | E50: 339 | F50: 9 | G50: - | H50: - | I50: 9 | J50: - | K50: - | L50: - | M50: - | N50: - | O50: - | P50: - | Q50: 330 | R50: 329
C51: 中和田村 | D51: 116-01 | E51: 299 | F51: 9 | G51: - | H51: - | I51: 9 | J51: - | K51: - | L51: - | M51: - | N51: - | O51: - | P51: - | Q51: 290 | R51: 289
C52: 中川村３－３ | D52: 116-02 | E52: 40 | F52: - | G52: - | H52: - | I52: - | J52: - | K52: - | L52: - | M52: - | N52: - | O52: - | P52: - | Q52: 40 | R52: 40
C53: 大正村２－２ | D53: 116-03 | E53: - | F53: - | G53: - | H53: - | I53: - | J53: - | K53: - | L53: - | M53: - | N53: - | O53: - | P53: - | Q53: - | R53: -
B54: 青葉区 | D54: 117-00 | E54: 295 | F54: 4 | G54: 1 | H54: - | I54: 2 | J54: - | K54: - | L54: 1 | M54: - | N54: - | O54: - | P54: - | Q54: 291 | R54: 291
C55: 山内村２－１ | D55: 117-01 | E55: 85 | F55: - | G55: - | H55: - | I55: - | J55: - | K55: - | L55: - | M55: - | N55: - | O55: - | P55: - | Q55: 85 | R55: 85
C56: 中里村２－２ | D56: 117-02 | E56: 119 | F56: 3 | G56: 1 | H56: - | I56: 2 | J56: - | K56: - | L56: - | M56: - | N56: - | O56: - | P56: - | Q56: 116 | R56: 116
C57: 田奈村２－２ | D57: 117-03 | E57: 91 | F57: 1 | G57: - | H57: - | I57: - | J57: - | K57: - | L57: 1 | M57: - | N57: - | O57: - | P57: - | Q57: 90 | R57: 90
C58: 都筑中川村２－１ | D58: 117-04 | E58: - | F58: - | G58: - | H58: - | I58: - | J58: - | K58: - | L58: - | M58: - | N58: - | O58: - | P58: - | Q58: - | R58: -
C59: 川和町２－１ | D59: 117-05 | E59: - | F59: - | G59: - | H59: - | I59: - | J59: - | K59: - | L59: - | M59: - | N59: - | O59: - | P59: - | Q59: - | R59: -
B60: 都筑区 | D60: 118-00 | E60: 382 | F60: 10 | G60: - | H60: 1 | I60: 9 | J60: - | K60: - | L60: - | M60: - | N60: - | O60: - | P60: - | Q60: 372 | R60: 372
C61: 新田村２－２ | D61: 118-01 | E61: 6 | F61: - | G61: - | H61: - | I61: - | J61: - | K61: - | L61: - | M61: - | N61: - | O61: - | P61: - | Q61: 6 | R61: 6
C62: 都筑中川村２－２ | D62: 118-02 | E62: 104 | F62: 7 | G62: - | H62: 1 | I62: 6 | J62: - | K62: - | L62: - | M62: - | N62: - | O62: - | P62: - | Q62: 97 | R62: 97
C63: 川和町２－２ | D63: 118-03 | E63: 250 | F63: 3 | G63: - | H63: - | I63: 3 | J63: - | K63: - | L63: - | M63: - | N63: - | O63: - | P63: - | Q63: 247 | R63: 247
C64: 山内村２－２ | D64: 118-04 | E64: 22 | F64: - | G64: - | H64: - | I64: - | J64: - | K64: - | L64: - | M64: - | N64: - | O64: - | P64: - | Q64: 22 | R64: 22
B65: 川崎市 | D65: 130-00 | E65: 821 | F65: 6 | G65: - | H65: - | I65: 6 | J65: - | K65: - | L65: - | M65: - | N65: - | O65: - | P65: - | Q65: 815 | R65: 814
B66: 川崎区 | D66: 131-00 | E66: - | F66: - | G66: - | H66: - | I66: - | J66: - | K66: - | L66: - | M66: - | N66: - | O66: - | P66: - | Q66: - | R66: -
B67: 幸区 | D67: 132-00 | E67: 3 | F67: - | G67: - | H67: - | I67: - | J67: - | K67: - | L67: - | M67: - | N67: - | O67: - | P67: - | Q67: 3 | R67: 3
B68: 中原区 | D68: 133-00 | E68: 60 | F68: - | G68: - | H68: - | I68: - | J68: - | K68: - | L68: - | M68: - | N68: - | O68: - | P68: - | Q68: 60 | R68: 60
B69: 高津区 | D69: 134-00 | E69: 137 | F69: - | G69: - | H69: - | I69: - | J69: - | K69: - | L69: - | M69: - | N69: - | O69: - | P69: - | Q69: 137 | R69: 137
C70: 高津町 | D70: 134-01 | E70: 38 | F70: - | G70: - | H70: - | I70: - | J70: - | K70: - | L70: - | M70: - | N70: - | O70: - | P70: - | Q70: 38 | R70: 38
C71: 宮前村２－１ | D71: 134-02 | E71: 7 | F71: - | G71: - | H71: - | I71: - | J71: - | K71: - | L71: - | M71: - | N71: - | O71: - | P71: - | Q71: 7 | R71: 7
C72: 橘村 | D72: 134-03 | E72: 72 | F72: - | G72: - | H72: - | I72: - | J72: - | K72: - | L72: - | M72: - | N72: - | O72: - | P72: - | Q72: 72 | R72: 72
C73: 向ケ丘村３－１ | D73: 134-04 | E73: 20 | F73: - | G73: - | H73: - | I73: - | J73: - | K73: - | L73: - | M73: - | N73: - | O73: - | P73: - | Q73: 20 | R73: 20
B74: 多摩区 | D74: 135-00 | E74: 194 | F74: - | G74: - | H74: - | I74: - | J74: - | K74: - | L74: - | M74: - | N74: - | O74: - | P74: - | Q74: 194 | R74: 194
C75: 稲田町 | D75: 135-01 | E75: 123 | F75: - | G75: - | H75: - | I75: - | J75: - | K75: - | L75: - | M75: - | N75: - | O75: - | P75: - | Q75: 123 | R75: 123
C76: 生田村２－１ | D76: 135-02 | E76: 65 | F76: - | G76: - | H76: - | I76: - | J76: - | K76: - | L76: - | M76: - | N76: - | O76: - | P76: - | Q76: 65 | R76: 65
C77: 向ケ丘村３－２ | D77: 135-03 | E77: 6 | F77: - | G77: - | H77: - | I77: - | J77: - | K77: - | L77: - | M77: - | N77: - | O77: - | P77: - | Q77: 6 | R77: 6
B78: 宮前区 | D78: 136-00 | E78: 225 | F78: 5 | G78: - | H78: - | I78: 5 | J78: - | K78: - | L78: - | M78: - | N78: - | O78: - | P78: - | Q78: 220 | R78: 219
C79: 宮前村２－２ | D79: 136-01 | E79: 138 | F79: 3 | G79: - | H79: - | I79: 3 | J79: - | K79: - | L79: - | M79: - | N79: - | O79: - | P79: - | Q79: 135 | R79: 134
C80: 向ケ丘村３－３ | D80: 136-02 | E80: 87 | F80: 2 | G80: - | H80: - | I80: 2 | J80: - | K80: - | L80: - | M80: - | N80: - | O80: - | P80: - | Q80: 85 | R80: 85
B81: 麻生区 | D81: 137-00 | E81: 202 | F81: 1 | G81: - | H81: - | I81: 1 | J81: - | K81: - | L81: - | M81: - | N81: - | O81: - | P81: - | Q81: 201 | R81: 201
C82: 生田村２－２ | D82: 137-01 | E82: 38 | F82: - | G82: - | H82: - | I82: - | J82: - | K82: - | L82: - | M82: - | N82: - | O82: - | P82: - | Q82: 38 | R82: 38
C83: 柿生村 | D83: 137-02 | E83: 164 | F83: 1 | G83: - | H83: - | I83: 1 | J83: - | K83: - | L83: - | M83: - | N83: - | O83: - | P83: - | Q83: 163 | R83: 163
B84: 横須賀市 | D84: 201-00 | E84: 428 | F84: 6 | G84: 1 | H84: - | I84: 3 | J84: - | K84: - | L84: 2 | M84: - | N84: - | O84: - | P84: 1 | Q84: 421 | R84: 421
C85: 横須賀市 | D85: 201-01 | E85: 4 | F85: - | G85: - | H85: - | I85: - | J85: - | K85: - | L85: - | M85: - | N85: - | O85: - | P85: 1 | Q85: 3 | R85: 3
C86: （浦賀町） | D86: 201-02 | E86: 15 | F86: - | G86: - | H86: - | I86: - | J86: - | K86: - | L86: - | M86: - | N86: - | O86: - | P86: - | Q86: 15 | R86: 15
C87: （大津） | D87: 201-03 | E87: - | F87: - | G87: - | H87: - | I87: - | J87: - | K87: - | L87: - | M87: - | N87: - | O87: - | P87: - | Q87: - | R87: -
C88: 衣笠村 | D88: 201-04 | E88: 6 | F88: - | G88: - | H88: - | I88: - | J88: - | K88: - | L88: - | M88: - | N88: - | O88: - | P88: - | Q88: 6 | R88: 6
C89: 久里浜村 | D89: 201-05 | E89: 18 | F89: 1 | G89: - | H89: - | I89: 1 | J89: - | K89: - | L89: - | M89: - | N89: - | O89: - | P89: - | Q89: 17 | R89: 17
C90: 武山村 | D90: 201-06 | E90: 78 | F90: 3 | G90: - | H90: - | I90: 1 | J90: - | K90: - | L90: 2 | M90: - | N90: - | O90: - | P90: - | Q90: 75 | R90: 75
C91: 大楠町 | D91: 201-07 | E91: 58 | F91: 1 | G91: - | H91: - | I91: 1 | J91: - | K91: - | L91: - | M91: - | N91: - | O91: - | P91: - | Q91: 57 | R91: 57
C92: 北下浦村 | D92: 201-08 | E92: 114 | F92: 1 | G92: 1 | H92: - | I92: - | J92: - | K92: - | L92: - | M92: - | N92: - | O92: - | P92: - | Q92: 113 | R92: 113
C93: 長井町 | D93: 201-09 | E93: 135 | F93: - | G93: - | H93: - | I93: - | J93: - | K93: - | L93: - | M93: - | N93: - | O93: - | P93: - | Q93: 135 | R93: 135
B94: 平塚市 | D94: 203-00 | E94: 1,324 | F94: 31 | G94: - | H94: - | I94: 30 | J94: - | K94: - | L94: 1 | M94: - | N94: - | O94: - | P94: - | Q94: 1,293 | R94: 1,292
C95: 平塚市 | D95: 203-01 | E95: 9 | F95: - | G95: - | H95: - | I95: - | J95: - | K95: - | L95: - | M95: - | N95: - | O95: - | P95: - | Q95: 9 | R95: 9
C96: 旭村 | D96: 203-02 | E96: 132 | F96: - | G96: - | H96: - | I96: - | J96: - | K96: - | L96: - | M96: - | N96: - | O96: - | P96: - | Q96: 132 | R96: 132
C97: 大野町 | D97: 203-03 | E97: 165 | F97: 3 | G97: - | H97: - | I97: 3 | J97: - | K97: - | L97: - | M97: - | N97: - | O97: - | P97: - | Q97: 162 | R97: 162
C98: 土沢村 | D98: 203-04 | E98: 227 | F98: 6 | G98: - | H98: - | I98: 6 | J98: - | K98: - | L98: - | M98: - | N98: - | O98: - | P98: - | Q98: 221 | R98: 221
C99: 豊田村 | D99: 203-05 | E99: 95 | F99: 1 | G99: - | H99: - | I99: 1 | J99: - | K99: - | L99: - | M99: - | N99: - | O99: - | P99: - | Q99: 94 | R99: 94
C100: 金田村 | D100: 203-06 | E100: 84 | F100: 4 | G100: - | H100: - | I100: 4 | J100: - | K100: - | L100: - | M100: - | N100: - | O100: - | P100: - | Q100: 80 | R100: 80
C101: 金目村 | D101: 203-07 | E101: 165 | F101: 5 | G101: - | H101: - | I101: 4 | J101: - | K101: - | L101: 1 | M101: - | N101: - | O101: - | P101: - | Q101: 160 | R101: 160
C102: 神田村 | D102: 203-08 | E102: 128 | F102: 3 | G102: - | H102: - | I102: 3 | J102: - | K102: - | L102: - | M102: - | N102: - | O102: - | P102: - | Q102: 125 | R102: 125
C103: 城島村 | D103: 203-09 | E103: 173 | F103: 6 | G103: - | H103: - | I103: 6 | J103: - | K103: - | L103: - | M103: - | N103: - | O103: - | P103: - | Q103: 167 | R103: 167
C104: 岡崎村２－１ | D104: 203-10 | E104: 123 | F104: 3 | G104: - | H104: - | I104: 3 | J104: - | K104: - | L104: - | M104: - | N104: - | O104: - | P104: - | Q104: 120 | R104: 119
C105: 大根村２－１ | D105: 203-11 | E105: 23 | F105: - | G105: - | H105: - | I105: - | J105: - | K105: - | L105: - | M105: - | N105: - | O105: - | P105: - | Q105: 23 | R105: 23
B106: 鎌倉市 | D106: 204-00 | E106: 96 | F106: 1 | G106: 1 | H106: - | I106: - | J106: - | K106: - | L106: - | M106: - | N106: - | O106: - | P106: 1 | Q106: 94 | R106: 94
C107: 鎌倉市 | D107: 204-01 | E107: 9 | F107: 1 | G107: 1 | H107: - | I107: - | J107: - | K107: - | L107: - | M107: - | N107: - | O107: - | P107: 1 | Q107: 7 | R107: 7
C108: 深沢村 | D108: 204-02 | E108: 27 | F108: - | G108: - | H108: - | I108: - | J108: - | K108: - | L108: - | M108: - | N108: - | O108: - | P108: - | Q108: 27 | R108: 27
C109: 大船町 | D109: 204-03 | E109: 60 | F109: - | G109: - | H109: - | I109: - | J109: - | K109: - | L109: - | M109: - | N109: - | O109: - | P109: - | Q109: 60 | R109: 60
B110: 藤沢市 | D110: 205-00 | E110: 848 | F110: 39 | G110: 2 | H110: 2 | I110: 35 | J110: - | K110: - | L110: - | M110: - | N110: - | O110: - | P110: 1 | Q110: 808 | R110: 804
C111: 藤沢市 | D111: 205-01 | E111: 62 | F111: 2 | G111: - | H111: - | I111: 2 | J111: - | K111: - | L111: - | M111: - | N111: - | O111: - | P111: 1 | Q111: 59 | R111: 59
C112: 六会村 | D112: 205-02 | E112: 210 | F112: 11 | G112: 1 | H112: 1 | I112: 9 | J112: - | K112: - | L112: - | M112: - | N112: - | O112: - | P112: - | Q112: 199 | R112: 199
C113: （明治） | D113: 205-03 | E113: 95 | F113: 1 | G113: - | H113: - | I113: 1 | J113: - | K113: - | L113: - | M113: - | N113: - | O113: - | P113: - | Q113: 94 | R113: 94
C114: 村岡村 | D114: 205-04 | E114: 28 | F114: - | G114: - | H114: - | I114: - | J114: - | K114: - | L114: - | M114: - | N114: - | O114: - | P114: - | Q114: 28 | R114: 28
C115: 渋谷村２－１ | D115: 205-05 | E115: 78 | F115: 3 | G115: - | H115: 1 | I115: 2 | J115: - | K115: - | L115: - | M115: - | N115: - | O115: - | P115: - | Q115: 75 | R115: 74
C116: 小出村２－１ | D116: 205-06 | E116: 78 | F116: 5 | G116: - | H116: - | I116: 5 | J116: - | K116: - | L116: - | M116: - | N116: - | O116: - | P116: - | Q116: 73 | R116: 71
C117: 御所見村 | D117: 205-07 | E117: 297 | F117: 17 | G117: 1 | H117: - | I117: 16 | J117: - | K117: - | L117: - | M117: - | N117: - | O117: - | P117: - | Q117: 280 | R117: 279
B118: 小田原市 | D118: 206-00 | E118: 1,583 | F118: 13 | G118: 1 | H118: - | I118: 6 | J118: - | K118: - | L118: 6 | M118: - | N118: - | O118: - | P118: - | Q118: 1,570 | R118: 1,567
C119: （足柄） | D119: 206-01 | E119: 101 | F119: - | G119: - | H119: - | I119: - | J119: - | K119: - | L119: - | M119: - | N119: - | O119: - | P119: - | Q119: 101 | R119: 101
C120: （久野） | D120: 206-02 | E120: 166 | F120: 2 | G120: - | H120: - | I120: 2 | J120: - | K120: - | L120: - | M120: - | N120: - | O120: - | P120: - | Q120: 164 | R120: 163
C121: 早川村 | D121: 206-03 | E121: 94 | F121: 1 | G121: - | H121: - | I121: - | J121: - | K121: - | L121: 1 | M121: - | N121: - | O121: - | P121: - | Q121: 93 | R121: 93
C122: 大窪村 | D122: 206-04 | E122: 65 | F122: - | G122: - | H122: - | I122: - | J122: - | K122: - | L122: - | M122: - | N122: - | O122: - | P122: - | Q122: 65 | R122: 65
C123: 酒匂町 | D123: 206-05 | E123: 4 | F123: - | G123: - | H123: - | I123: - | J123: - | K123: - | L123: - | M123: - | N123: - | O123: - | P123: - | Q123: 4 | R123: 4
C124: 下府中村 | D124: 206-06 | E124: 14 | F124: - | G124: - | H124: - | I124: - | J124: - | K124: - | L124: - | M124: - | N124: - | O124: - | P124: - | Q124: 14 | R124: 14
C125: 下曽我村 | D125: 206-07 | E125: 139 | F125: - | G125: - | H125: - | I125: - | J125: - | K125: - | L125: - | M125: - | N125: - | O125: - | P125: - | Q125: 139 | R125: 139
C126: 片浦村 | D126: 206-08 | E126: 153 | F126: 1 | G126: 1 | H126: - | I126: - | J126: - | K126: - | L126: - | M126: - | N126: - | O126: - | P126: - | Q126: 152 | R126: 152
C127: 国府津町 | D127: 206-09 | E127: 97 | F127: - | G127: - | H127: - | I127: - | J127: - | K127: - | L127: - | M127: - | N127: - | O127: - | P127: - | Q127: 97 | R127: 97
C128: 桜井村 | D128: 206-10 | E128: 119 | F128: 2 | G128: - | H128: - | I128: 1 | J128: - | K128: - | L128: 1 | M128: - | N128: - | O128: - | P128: - | Q128: 117 | R128: 116
C129: （富水） | D129: 206-11 | E129: 115 | F129: - | G129: - | H129: - | I129: - | J129: - | K129: - | L129: - | M129: - | N129: - | O129: - | P129: - | Q129: 115 | R129: 115
C130: 上府中村 | D130: 206-12 | E130: 97 | F130: - | G130: - | H130: - | I130: - | J130: - | K130: - | L130: - | M130: - | N130: - | O130: - | P130: - | Q130: 97 | R130: 96
C131: 曽我村２－１ | D131: 206-13 | E131: 151 | F131: 1 | G131: - | H131: - | I131: - | J131: - | K131: - | L131: 1 | M131: - | N131: - | O131: - | P131: - | Q131: 150 | R131: 150
C132: 豊川村 | D132: 206-14 | E132: 83 | F132: 3 | G132: - | H132: - | I132: - | J132: - | K132: - | L132: 3 | M132: - | N132: - | O132: - | P132: - | Q132: 80 | R132: 80
C133: 下中村 | D133: 206-15 | E133: 152 | F133: 3 | G133: - | H133: - | I133: 3 | J133: - | K133: - | L133: - | M133: - | N133: - | O133: - | P133: - | Q133: 149 | R133: 149
C134: 前羽村 | D134: 206-16 | E134: 33 | F134: - | G134: - | H134: - | I134: - | J134: - | K134: - | L134: - | M134: - | N134: - | O134: - | P134: - | Q134: 33 | R134: 33
B135: 茅ケ崎市 | D135: 207-00 | E135: 466 | F135: 8 | G135: - | H135: - | I135: 8 | J135: - | K135: - | L135: - | M135: - | N135: - | O135: - | P135: - | Q135: 458 | R135: 458
C136: （茅ケ崎町） | D136: 207-01 | E136: 11 | F136: - | G136: - | H136: - | I136: - | J136: - | K136: - | L136: - | M136: - | N136: - | O136: - | P136: - | Q136: 11 | R136: 11
C137: （鶴嶺） | D137: 207-02 | E137: 172 | F137: 1 | G137: - | H137: - | I137: 1 | J137: - | K137: - | L137: - | M137: - | N137: - | O137: - | P137: - | Q137: 171 | R137: 171
C138: （松林） | D138: 207-03 | E138: 126 | F138: 2 | G138: - | H138: - | I138: 2 | J138: - | K138: - | L138: - | M138: - | N138: - | O138: - | P138: - | Q138: 124 | R138: 124
C139: 小出村２－２ | D139: 207-04 | E139: 157 | F139: 5 | G139: - | H139: - | I139: 5 | J139: - | K139: - | L139: - | M139: - | N139: - | O139: - | P139: - | Q139: 152 | R139: 152
B140: 逗子市 | D140: 208-00 | E140: 4 | F140: - | G140: - | H140: - | I140: - | J140: - | K140: - | L140: - | M140: - | N140: - | O140: - | P140: - | Q140: 4 | R140: 4
B141: 相模原市 | D141: 209-00 | E141: 749 | F141: 22 | G141: - | H141: 2 | I141: 17 | J141: - | K141: - | L141: 3 | M141: - | N141: - | O141: - | P141: 2 | Q141: 725 | R141: 725
C142: （橋本）・（旧相原村） | D142: 209-01 | E142: 57 | F142: 1 | G142: - | H142: - | I142: - | J142: - | K142: - | L142: 1 | M142: - | N142: - | O142: - | P142: 2 | Q142: 54 | R142: 54
C143: 大沢村 | D143: 209-02 | E143: 116 | F143: 3 | G143: - | H143: - | I143: 1 | J143: - | K143: - | L143: 2 | M143: - | N143: - | O143: - | P143: - | Q143: 113 | R143: 113
C144: 田名村 | D144: 209-03 | E144: 113 | F144: 3 | G144: - | H144: - | I144: 3 | J144: - | K144: - | L144: - | M144: - | N144: - | O144: - | P144: - | Q144: 110 | R144: 110
C145: 上溝町 | D145: 209-04 | E145: 85 | F145: 2 | G145: - | H145: - | I145: 2 | J145: - | K145: - | L145: - | M145: - | N145: - | O145: - | P145: - | Q145: 83 | R145: 83
C146: 麻溝村 | D146: 209-05 | E146: 142 | F146: 9 | G146: - | H146: 1 | I146: 8 | J146: - | K146: - | L146: - | M146: - | N146: - | O146: - | P146: - | Q146: 133 | R146: 133
C147: （大野村北） | D147: 209-06 | E147: 31 | F147: - | G147: - | H147: - | I147: - | J147: - | K147: - | L147: - | M147: - | N147: - | O147: - | P147: - | Q147: 31 | R147: 31
C148: （大野村中） | D148: 209-07 | E148: 52 | F148: 2 | G148: - | H148: 1 | I148: 1 | J148: - | K148: - | L148: - | M148: - | N148: - | O148: - | P148: - | Q148: 50 | R148: 50
C149: （大野村南） | D149: 209-08 | E149: 50 | F149: - | G149: - | H149: - | I149: - | J149: - | K149: - | L149: - | M149: - | N149: - | O149: - | P149: - | Q149: 50 | R149: 50
C150: 新磯村 | D150: 209-09 | E150: 103 | F150: 2 | G150: - | H150: - | I150: 2 | J150: - | K150: - | L150: - | M150: - | N150: - | O150: - | P150: - | Q150: 101 | R150: 101
B151: 三浦市 | D151: 210-00 | E151: 837 | F151: 3 | G151: - | H151: - | I151: 2 | J151: - | K151: - | L151: 1 | M151: - | N151: - | O151: - | P151: - | Q151: 834 | R151: 834
C152: 南下浦町 | D152: 210-01 | E152: 393 | F152: 2 | G152: - | H152: - | I152: 2 | J152: - | K152: - | L152: - | M152: - | N152: - | O152: - | P152: - | Q152: 391 | R152: 391
C153: 三崎町 | D153: 210-02 | E153: 142 | F153: - | G153: - | H153: - | I153: - | J153: - | K153: - | L153: - | M153: - | N153: - | O153: - | P153: - | Q153: 142 | R153: 142
C154: 初声村 | D154: 210-03 | E154: 302 | F154: 1 | G154: - | H154: - | I154: - | J154: - | K154: - | L154: 1 | M154: - | N154: - | O154: - | P154: - | Q154: 301 | R154: 301
B155: 秦野市 | D155: 211-00 | E155: 882 | F155: 10 | G155: - | H155: - | I155: 7 | J155: - | K155: - | L155: 3 | M155: - | N155: - | O155: - | P155: 1 | Q155: 871 | R155: 871
C156: 秦野町 | D156: 211-01 | E156: 80 | F156: - | G156: - | H156: - | I156: - | J156: - | K156: - | L156: - | M156: - | N156: - | O156: - | P156: 1 | Q156: 79 | R156: 79
C157: 東秦野村 | D157: 211-02 | E157: 158 | F157: 2 | G157: - | H157: - | I157: 2 | J157: - | K157: - | L157: - | M157: - | N157: - | O157: - | P157: - | Q157: 156 | R157: 156
C158: 南秦野町 | D158: 211-03 | E158: 127 | F158: 4 | G158: - | H158: - | I158: 1 | J158: - | K158: - | L158: 3 | M158: - | N158: - | O158: - | P158: - | Q158: 123 | R158: 123
C159: 北秦野村 | D159: 211-04 | E159: 131 | F159: 2 | G159: - | H159: - | I159: 2 | J159: - | K159: - | L159: - | M159: - | N159: - | O159: - | P159: - | Q159: 129 | R159: 129
C160: 大根村２－２ | D160: 211-05 | E160: 141 | F160: 1 | G160: - | H160: - | I160: 1 | J160: - | K160: - | L160: - | M160: - | N160: - | O160: - | P160: - | Q160: 140 | R160: 140
C161: 西秦野村 | D161: 211-06 | E161: 177 | F161: 1 | G161: - | H161: - | I161: 1 | J161: - | K161: - | L161: - | M161: - | N161: - | O161: - | P161: - | Q161: 176 | R161: 176
C162: 上秦野村 | D162: 211-07 | E162: 68 | F162: - | G162: - | H162: - | I162: - | J162: - | K162: - | L162: - | M162: - | N162: - | O162: - | P162: - | Q162: 68 | R162: 68
B163: 厚木市 | D163: 212-00 | E163: 930 | F163: 8 | G163: 1 | H163: - | I163: 5 | J163: - | K163: - | L163: 2 | M163: - | N163: - | O163: - | P163: 1 | Q163: 921 | R163: 920
C164: 厚木町 | D164: 212-01 | E164: 5 | F164: 2 | G164: - | H164: - | I164: - | J164: - | K164: - | L164: 2 | M164: - | N164: - | O164: - | P164: 1 | Q164: 2 | R164: 2
C165: 依知村 | D165: 212-02 | E165: 189 | F165: 1 | G165: - | H165: - | I165: 1 | J165: - | K165: - | L165: - | M165: - | N165: - | O165: - | P165: - | Q165: 188 | R165: 187
C166: 荻野村 | D166: 212-03 | E166: 99 | F166: - | G166: - | H166: - | I166: - | J166: - | K166: - | L166: - | M166: - | N166: - | O166: - | P166: - | Q166: 99 | R166: 99
C167: 睦合村 | D167: 212-04 | E167: 158 | F167: - | G167: - | H167: - | I167: - | J167: - | K167: - | L167: - | M167: - | N167: - | O167: - | P167: - | Q167: 158 | R167: 158
C168: 小鮎村 | D168: 212-05 | E168: 108 | F168: 4 | G168: 1 | H168: - | I168: 3 | J168: - | K168: - | L168: - | M168: - | N168: - | O168: - | P168: - | Q168: 104 | R168: 104
C169: 玉川村 | D169: 212-06 | E169: 59 | F169: - | G169: - | H169: - | I169: - | J169: - | K169: - | L169: - | M169: - | N169: - | O169: - | P169: - | Q169: 59 | R169: 59
C170: 南毛利村 | D170: 212-07 | E170: 156 | F170: - | G170: - | H170: - | I170: - | J170: - | K170: - | L170: - | M170: - | N170: - | O170: - | P170: - | Q170: 156 | R170: 156
C171: 相川村 | D171: 212-08 | E171: 156 | F171: 1 | G171: - | H171: - | I171: 1 | J171: - | K171: - | L171: - | M171: - | N171: - | O171: - | P171: - | Q171: 155 | R171: 155
B172: 大和市 | D172: 213-00 | E172: 214 | F172: 1 | G172: - | H172: - | I172: 1 | J172: - | K172: - | L172: - | M172: - | N172: - | O172: - | P172: 1 | Q172: 212 | R172: 212
C173: 大和町 | D173: 213-01 | E173: 112 | F173: 1 | G173: - | H173: - | I173: 1 | J173: - | K173: - | L173: - | M173: - | N173: - | O173: - | P173: 1 | Q173: 110 | R173: 110
C174: 渋谷村２－２ | D174: 213-02 | E174: 102 | F174: - | G174: - | H174: - | I174: - | J174: - | K174: - | L174: - | M174: - | N174: - | O174: - | P174: - | Q174: 102 | R174: 102
B175: 伊勢原市 | D175: 214-00 | E175: 852 | F175: 32 | G175: - | H175: 2 | I175: 28 | J175: 1 | K175: - | L175: 1 | M175: - | N175: - | O175: - | P175: - | Q175: 820 | R175: 817
C176: 伊勢原町 | D176: 214-01 | E176: 86 | F176: 3 | G176: - | H176: - | I176: 3 | J176: - | K176: - | L176: - | M176: - | N176: - | O176: - | P176: - | Q176: 83 | R176: 83
C177: 岡崎村２－２ | D177: 214-02 | E177: 24 | F177: - | G177: - | H177: - | I177: - | J177: - | K177: - | L177: - | M177: - | N177: - | O177: - | P177: - | Q177: 24 | R177: 24
C178: 成瀬村 | D178: 214-03 | E178: 137 | F178: 4 | G178: - | H178: - | I178: 4 | J178: - | K178: - | L178: - | M178: - | N178: - | O178: - | P178: - | Q178: 133 | R178: 133
C179: 大山町 | D179: 214-04 | E179: 27 | F179: - | G179: - | H179: - | I179: - | J179: - | K179: - | L179: - | M179: - | N179: - | O179: - | P179: - | Q179: 27 | R179: 27
C180: 比々多村 | D180: 214-05 | E180: 228 | F180: 1 | G180: - | H180: - | I180: - | J180: - | K180: - | L180: 1 | M180: - | N180: - | O180: - | P180: - | Q180: 227 | R180: 227
C181: 大田村 | D181: 214-06 | E181: 199 | F181: 12 | G181: - | H181: 2 | I181: 10 | J181: - | K181: - | L181: - | M181: - | N181: - | O181: - | P181: - | Q181: 187 | R181: 185
C182: 高部屋村 | D182: 214-07 | E182: 151 | F182: 12 | G182: - | H182: - | I182: 11 | J182: 1 | K182: - | L182: - | M182: - | N182: - | O182: - | P182: - | Q182: 139 | R182: 138
B183: 海老名市 | D183: 215-00 | E183: 449 | F183: 7 | G183: - | H183: - | I183: 6 | J183: - | K183: - | L183: 1 | M183: - | N183: - | O183: - | P183: - | Q183: 442 | R183: 441
C184: 海老名町 | D184: 215-01 | E184: 196 | F184: 4 | G184: - | H184: - | I184: 3 | J184: - | K184: - | L184: 1 | M184: - | N184: - | O184: - | P184: - | Q184: 192 | R184: 191
C185: 有馬村 | D185: 215-02 | E185: 253 | F185: 3 | G185: - | H185: - | I185: 3 | J185: - | K185: - | L185: - | M185: - | N185: - | O185: - | P185: - | Q185: 250 | R185: 250
B186: 座間市 | D186: 216-00 | E186: 200 | F186: 11 | G186: - | H186: - | I186: 6 | J186: - | K186: - | L186: 2 | M186: - | N186: 3 | O186: - | P186: 1 | Q186: 188 | R186: 188
B187: 南足柄市 | D187: 217-00 | E187: 650 | F187: 5 | G187: 1 | H187: - | I187: 1 | J187: - | K187: - | L187: 2 | M187: - | N187: 1 | O187: - | P187: - | Q187: 645 | R187: 645
C188: 南足柄町 | D188: 217-01 | E188: 172 | F188: - | G188: - | H188: - | I188: - | J188: - | K188: - | L188: - | M188: - | N188: - | O188: - | P188: - | Q188: 172 | R188: 172
C189: 北足柄村２－２ | D189: 217-02 | E189: 94 | F189: - | G189: - | H189: - | I189: - | J189: - | K189: - | L189: - | M189: - | N189: - | O189: - | P189: - | Q189: 94 | R189: 94
C190: 福沢村 | D190: 217-03 | E190: 201 | F190: 2 | G190: - | H190: - | I190: - | J190: - | K190: - | L190: 1 | M190: - | N190: 1 | O190: - | P190: - | Q190: 199 | R190: 199
C191: 岡本村 | D191: 217-04 | E191: 183 | F191: 3 | G191: 1 | H191: - | I191: 1 | J191: - | K191: - | L191: 1 | M191: - | N191: - | O191: - | P191: - | Q191: 180 | R191: 180
B192: 綾瀬市 | D192: 218-00 | E192: 224 | F192: 8 | G192: - | H192: - | I192: 8 | J192: - | K192: - | L192: - | M192: - | N192: - | O192: - | P192: - | Q192: 216 | R192: 216
A193: 三浦郡
B194: 葉山町 | D194: 301-00 | E194: 22 | F194: - | G194: - | H194: - | I194: - | J194: - | K194: - | L194: - | M194: - | N194: - | O194: - | P194: - | Q194: 22 | R194: 22
A195: 高座郡
B196: 寒川町 | D196: 321-00 | E196: 214 | F196: 5 | G196: - | H196: - | I196: 5 | J196: - | K196: - | L196: - | M196: - | N196: - | O196: - | P196: - | Q196: 209 | R196: 209
A197: 中郡
B198: 大磯町 | D198: 341-00 | E198: 224 | F198: 4 | G198: - | H198: - | I198: 3 | J198: - | K198: - | L198: 1 | M198: - | N198: - | O198: - | P198: - | Q198: 220 | R198: 220
C199: 大磯町 | D199: 341-01 | E199: 46 | F199: - | G199: - | H199: - | I199: - | J199: - | K199: - | L199: - | M199: - | N199: - | O199: - | P199: - | Q199: 46 | R199: 46
C200: 国府村 | D200: 341-02 | E200: 178 | F200: 4 | G200: - | H200: - | I200: 3 | J200: - | K200: - | L200: 1 | M200: - | N200: - | O200: - | P200: - | Q200: 174 | R200: 174
B201: 二宮町 | D201: 342-00 | E201: 95 | F201: 1 | G201: - | H201: - | I201: 1 | J201: - | K201: - | L201: - | M201: - | N201: - | O201: - | P201: - | Q201: 94 | R201: 94
A202: 足柄上郡
B203: 中井町 | D203: 361-00 | E203: 329 | F203: 12 | G203: - | H203: - | I203: 12 | J203: - | K203: - | L203: - | M203: - | N203: - | O203: - | P203: - | Q203: 317 | R203: 317
B204: 大井町 | D204: 362-00 | E204: 289 | F204: 1 | G204: - | H204: - | I204: 1 | J204: - | K204: - | L204: - | M204: - | N204: - | O204: - | P204: - | Q204: 288 | R204: 288
C205: 金田村 | D205: 362-01 | E205: 80 | F205: - | G205: - | H205: - | I205: - | J205: - | K205: - | L205: - | M205: - | N205: - | O205: - | P205: - | Q205: 80 | R205: 80
C206: 相和村 | D206: 362-02 | E206: 152 | F206: 1 | G206: - | H206: - | I206: 1 | J206: - | K206: - | L206: - | M206: - | N206: - | O206: - | P206: - | Q206: 151 | R206: 151
... 55 more rows

Sheet 2010旧市町村 (hidden)
A1: Ⅱ 農業経営体
A2: １ 組織形態別経営体数
Q7: 単位：経営体
A8: 新旧市区町村 | F8: 法 人 化 し て い る | O8: 地方公共団 体・財産区 | P8: 法人化し ていない
F9: 小 計 | G9: 農事組合 法 人 | H9: 会 社 | K9: 各 種 団 体 | N9: その他の 法 人
E10: 計 | H10: 株式会社 | I10: 合名・合資 会 社 | J10: 合同会社 | K10: 農 協 | L10: 森林組合 | M10: その他の 各種団体
Q11: 個人経営体
A13: 県計 | D13: 000-00 | E13: 15,612 | F13: 233 | G13: 10 | H13: 200 | I13: 1 | J13: - | K13: 17 | L13: - | M13: 4 | N13: 1 | O13: 2 | P13: 15,377 | Q13: 15,370
B14: 横浜市 | D14: 100-00 | E14: 2,531 | F14: 25 | G14: - | H14: 23 | I14: - | J14: - | K14: 1 | L14: - | M14: - | N14: 1 | O14: - | P14: 2,506 | Q14: 2,506
B15: 鶴見区 | D15: 101-00 | E15: 25 | F15: 1 | G15: - | H15: 1 | I15: - | J15: - | K15: - | L15: - | M15: - | N15: - | O15: - | P15: 24 | Q15: 24
B16: 神奈川区 | D16: 102-00 | E16: 152 | F16: 4 | G16: - | H16: 4 | I16: - | J16: - | K16: - | L16: - | M16: - | N16: - | O16: - | P16: 148 | Q16: 148
B17: 西区 | D17: 103-00 | E17: - | F17: - | G17: - | H17: - | I17: - | J17: - | K17: - | L17: - | M17: - | N17: - | O17: - | P17: - | Q17: -
B18: 中区 | D18: 104-00 | E18: 1 | F18: X | G18: X | H18: X | I18: X | J18: X | K18: X | L18: X | M18: X | N18: X | O18: X | P18: X | Q18: X
B19: 南区（南区２－１） | D19: 105-00 | E19: 3 | F19: X | G19: X | H19: X | I19: X | J19: X | K19: X | L19: X | M19: X | N19: X | O19: X | P19: X | Q19: X
B20: 保土ケ谷区 | D20: 106-00 | E20: 100 | F20: 1 | G20: - | H20: 1 | I20: - | J20: - | K20: - | L20: - | M20: - | N20: - | O20: - | P20: 99 | Q20: 99
C21: 保土ケ谷区２－１ | D21: 106-01 | E21: 80 | F21: - | G21: - | H21: - | I21: - | J21: - | K21: - | L21: - | M21: - | N21: - | O21: - | P21: 80 | Q21: 80
C22: 二俣川村２－１ | D22: 106-02 | E22: 1 | F22: X | G22: X | H22: X | I22: X | J22: X | K22: X | L22: X | M22: X | N22: X | O22: X | P22: X | Q22: X
C23: 新治村２－１ | D23: 106-03 | E23: 19 | F23: X | G23: X | H23: X | I23: X | J23: X | K23: X | L23: X | M23: X | N23: X | O23: X | P23: X | Q23: X
B24: 磯子区 | D24: 107-00 | E24: 25 | F24: 1 | G24: - | H24: 1 | I24: - | J24: - | K24: - | L24: - | M24: - | N24: - | O24: - | P24: 24 | Q24: 24
B25: 金沢区 | D25: 108-00 | E25: 31 | F25: - | G25: - | H25: - | I25: - | J25: - | K25: - | L25: - | M25: - | N25: - | O25: - | P25: 31 | Q25: 31
B26: 港北区 | D26: 109-00 | E26: 264 | F26: 1 | G26: - | H26: - | I26: - | J26: - | K26: - | L26: - | M26: - | N26: 1 | O26: - | P26: 263 | Q26: 263
C27: 港北 | D27: 109-01 | E27: 111 | F27: - | G27: - | H27: - | I27: - | J27: - | K27: - | L27: - | M27: - | N27: - | O27: - | P27: 111 | Q27: 111
C28: 新田村２－１ | D28: 109-02 | E28: 153 | F28: 1 | G28: - | H28: - | I28: - | J28: - | K28: - | L28: - | M28: - | N28: 1 | O28: - | P28: 152 | Q28: 152
B29: 戸塚区 | D29: 110-00 | E29: 243 | F29: 6 | G29: - | H29: 6 | I29: - | J29: - | K29: - | L29: - | M29: - | N29: - | O29: - | P29: 237 | Q29: 237
C30: 戸塚町 | D30: 110-01 | E30: 22 | F30: 1 | G30: - | H30: 1 | I30: - | J30: - | K30: - | L30: - | M30: - | N30: - | O30: - | P30: 21 | Q30: 21
C31: 豊田村２－１ | D31: 110-02 | E31: 6 | F31: 1 | G31: - | H31: 1 | I31: - | J31: - | K31: - | L31: - | M31: - | N31: - | O31: - | P31: 5 | Q31: 5
C32: 川上村 | D32: 110-03 | E32: 56 | F32: 2 | G32: - | H32: 2 | I32: - | J32: - | K32: - | L32: - | M32: - | N32: - | O32: - | P32: 54 | Q32: 54
C33: 大正村２－１ | D33: 110-04 | E33: 133 | F33: 2 | G33: - | H33: 2 | I33: - | J33: - | K33: - | L33: - | M33: - | N33: - | O33: - | P33: 131 | Q33: 131
C34: 中川村３－１ | D34: 110-05 | E34: 26 | F34: - | G34: - | H34: - | I34: - | J34: - | K34: - | L34: - | M34: - | N34: - | O34: - | P34: 26 | Q34: 26
B35: 港南区（南区２－２） | D35: 111-00 | E35: 52 | F35: 1 | G35: - | H35: 1 | I35: - | J35: - | K35: - | L35: - | M35: - | N35: - | O35: - | P35: 51 | Q35: 51
B36: 旭区 | D36: 112-00 | E36: 173 | F36: - | G36: - | H36: - | I36: - | J36: - | K36: - | L36: - | M36: - | N36: - | O36: - | P36: 173 | Q36: 173
C37: 保土ケ谷区２－２ | D37: 112-01 | E37: 15 | F37: - | G37: - | H37: - | I37: - | J37: - | K37: - | L37: - | M37: - | N37: - | O37: - | P37: 15 | Q37: 15
C38: 二俣川村２－２ | D38: 112-02 | E38: 71 | F38: - | G38: - | H38: - | I38: - | J38: - | K38: - | L38: - | M38: - | N38: - | O38: - | P38: 71 | Q38: 71
C39: 都岡村 | D39: 112-03 | E39: 87 | F39: - | G39: - | H39: - | I39: - | J39: - | K39: - | L39: - | M39: - | N39: - | O39: - | P39: 87 | Q39: 87
B40: 緑区 | D40: 113-00 | E40: 264 | F40: 2 | G40: - | H40: 2 | I40: - | J40: - | K40: - | L40: - | M40: - | N40: - | O40: - | P40: 262 | Q40: 262
C41: 中里村２－１ | D41: 113-01 | E41: 67 | F41: 1 | G41: - | H41: 1 | I41: - | J41: - | K41: - | L41: - | M41: - | N41: - | O41: - | P41: 66 | Q41: 66
C42: 田奈村２－１ | D42: 113-02 | E42: 75 | F42: 1 | G42: - | H42: 1 | I42: - | J42: - | K42: - | L42: - | M42: - | N42: - | O42: - | P42: 74 | Q42: 74
C43: 新治村２－２ | D43: 113-03 | E43: 122 | F43: - | G43: - | H43: - | I43: - | J43: - | K43: - | L43: - | M43: - | N43: - | O43: - | P43: 122 | Q43: 122
B44: 瀬谷区 | D44: 114-00 | E44: 193 | F44: 1 | G44: - | H44: 1 | I44: - | J44: - | K44: - | L44: - | M44: - | N44: - | O44: - | P44: 192 | Q44: 192
C45: 中川村３－２ | D45: 114-01 | E45: 42 | F45: 1 | G45: - | H45: 1 | I45: - | J45: - | K45: - | L45: - | M45: - | N45: - | O45: - | P45: 41 | Q45: 41
C46: 瀬谷村 | D46: 114-02 | E46: 151 | F46: - | G46: - | H46: - | I46: - | J46: - | K46: - | L46: - | M46: - | N46: - | O46: - | P46: 151 | Q46: 151
B47: 栄区 | D47: 115-00 | E47: 67 | F47: - | G47: - | H47: - | I47: - | J47: - | K47: - | L47: - | M47: - | N47: - | O47: - | P47: 67 | Q47: 67
C48: 本郷村 | D48: 115-01 | E48: 33 | F48: - | G48: - | H48: - | I48: - | J48: - | K48: - | L48: - | M48: - | N48: - | O48: - | P48: 33 | Q48: 33
C49: 豊田村２－２ | D49: 115-02 | E49: 34 | F49: - | G49: - | H49: - | I49: - | J49: - | K49: - | L49: - | M49: - | N49: - | O49: - | P49: 34 | Q49: 34
B50: 泉区 | D50: 116-00 | E50: 325 | F50: 4 | G50: - | H50: 3 | I50: - | J50: - | K50: 1 | L50: - | M50: - | N50: - | O50: - | P50: 321 | Q50: 321
C51: 中和田村 | D51: 116-01 | E51: 285 | F51: 4 | G51: - | H51: 3 | I51: - | J51: - | K51: 1 | L51: - | M51: - | N51: - | O51: - | P51: 281 | Q51: 281
C52: 中川村３－３ | D52: 116-02 | E52: 40 | F52: - | G52: - | H52: - | I52: - | J52: - | K52: - | L52: - | M52: - | N52: - | O52: - | P52: 40 | Q52: 40
C53: 大正村２－２ | D53: 116-03 | E53: - | F53: - | G53: - | H53: - | I53: - | J53: - | K53: - | L53: - | M53: - | N53: - | O53: - | P53: - | Q53: -
B54: 青葉区 | D54: 117-00 | E54: 256 | F54: 1 | G54: - | H54: 1 | I54: - | J54: - | K54: - | L54: - | M54: - | N54: - | O54: - | P54: 255 | Q54: 255
C55: 山内村２－１ | D55: 117-01 | E55: 66 | F55: - | G55: - | H55: - | I55: - | J55: - | K55: - | L55: - | M55: - | N55: - | O55: - | P55: 66 | Q55: 66
C56: 中里村２－２ | D56: 117-02 | E56: 109 | F56: - | G56: - | H56: - | I56: - | J56: - | K56: - | L56: - | M56: - | N56: - | O56: - | P56: 109 | Q56: 109
C57: 田奈村２－２ | D57: 117-03 | E57: 81 | F57: 1 | G57: - | H57: 1 | I57: - | J57: - | K57: - | L57: - | M57: - | N57: - | O57: - | P57: 80 | Q57: 80
C58: 都筑中川村２－１ | D58: 117-04 | E58: - | F58: - | G58: - | H58: - | I58: - | J58: - | K58: - | L58: - | M58: - | N58: - | O58: - | P58: - | Q58: -
C59: 川和町２－１ | D59: 117-05 | E59: - | F59: - | G59: - | H59: - | I59: - | J59: - | K59: - | L59: - | M59: - | N59: - | O59: - | P59: - | Q59: -
B60: 都筑区 | D60: 118-00 | E60: 357 | F60: 1 | G60: - | H60: 1 | I60: - | J60: - | K60: - | L60: - | M60: - | N60: - | O60: - | P60: 356 | Q60: 356
C61: 新田村２－２ | D61: 118-01 | E61: 6 | F61: - | G61: - | H61: - | I61: - | J61: - | K61: - | L61: - | M61: - | N61: - | O61: - | P61: 6 | Q61: 6
C62: 都筑中川村２－２ | D62: 118-02 | E62: 99 | F62: 1 | G62: - | H62: 1 | I62: - | J62: - | K62: - | L62: - | M62: - | N62: - | O62: - | P62: 98 | Q62: 98
C63: 川和町２－２ | D63: 118-03 | E63: 232 | F63: - | G63: - | H63: - | I63: - | J63: - | K63: - | L63: - | M63: - | N63: - | O63: - | P63: 232 | Q63: 232
C64: 山内村２－２ | D64: 118-04 | E64: 20 | F64: - | G64: - | H64: - | I64: - | J64: - | K64: - | L64: - | M64: - | N64: - | O64: - | P64: 20 | Q64: 20
B65: 川崎市 | D65: 130-00 | E65: 778 | F65: 2 | G65: - | H65: 2 | I65: - | J65: - | K65: - | L65: - | M65: - | N65: - | O65: - | P65: 776 | Q65: 776
B66: 川崎区 | D66: 131-00 | E66: - | F66: - | G66: - | H66: - | I66: - | J66: - | K66: - | L66: - | M66: - | N66: - | O66: - | P66: - | Q66: -
B67: 幸区 | D67: 132-00 | E67: 4 | F67: - | G67: - | H67: - | I67: - | J67: - | K67: - | L67: - | M67: - | N67: - | O67: - | P67: 4 | Q67: 4
B68: 中原区 | D68: 133-00 | E68: 53 | F68: - | G68: - | H68: - | I68: - | J68: - | K68: - | L68: - | M68: - | N68: - | O68: - | P68: 53 | Q68: 53
B69: 高津区 | D69: 134-00 | E69: 131 | F69: 1 | G69: - | H69: 1 | I69: - | J69: - | K69: - | L69: - | M69: - | N69: - | O69: - | P69: 130 | Q69: 130
C70: 高津町 | D70: 134-01 | E70: 36 | F70: 1 | G70: - | H70: 1 | I70: - | J70: - | K70: - | L70: - | M70: - | N70: - | O70: - | P70: 35 | Q70: 35
C71: 宮前村２－１ | D71: 134-02 | E71: 6 | F71: - | G71: - | H71: - | I71: - | J71: - | K71: - | L71: - | M71: - | N71: - | O71: - | P71: 6 | Q71: 6
C72: 橘村 | D72: 134-03 | E72: 70 | F72: - | G72: - | H72: - | I72: - | J72: - | K72: - | L72: - | M72: - | N72: - | O72: - | P72: 70 | Q72: 70
C73: 向ヶ丘村３－１ | D73: 134-04 | E73: 19 | F73: - | G73: - | H73: - | I73: - | J73: - | K73: - | L73: - | M73: - | N73: - | O73: - | P73: 19 | Q73: 19
B74: 多摩区 | D74: 135-00 | E74: 176 | F74: - | G74: - | H74: - | I74: - | J74: - | K74: - | L74: - | M74: - | N74: - | O74: - | P74: 176 | Q74: 176
C75: 稲田町 | D75: 135-01 | E75: 111 | F75: - | G75: - | H75: - | I75: - | J75: - | K75: - | L75: - | M75: - | N75: - | O75: - | P75: 111 | Q75: 111
C76: 生田村２－１ | D76: 135-02 | E76: 60 | F76: - | G76: - | H76: - | I76: - | J76: - | K76: - | L76: - | M76: - | N76: - | O76: - | P76: 60 | Q76: 60
C77: 向ヶ丘村３－２ | D77: 135-03 | E77: 5 | F77: - | G77: - | H77: - | I77: - | J77: - | K77: - | L77: - | M77: - | N77: - | O77: - | P77: 5 | Q77: 5
B78: 宮前区 | D78: 136-00 | E78: 217 | F78: 1 | G78: - | H78: 1 | I78: - | J78: - | K78: - | L78: - | M78: - | N78: - | O78: - | P78: 216 | Q78: 216
C79: 宮前村２－２ | D79: 136-01 | E79: 134 | F79: - | G79: - | H79: - | I79: - | J79: - | K79: - | L79: - | M79: - | N79: - | O79: - | P79: 134 | Q79: 134
C80: 向ヶ丘村３－３ | D80: 136-02 | E80: 83 | F80: 1 | G80: - | H80: 1 | I80: - | J80: - | K80: - | L80: - | M80: - | N80: - | O80: - | P80: 82 | Q80: 82
B81: 麻生区 | D81: 137-00 | E81: 197 | F81: - | G81: - | H81: - | I81: - | J81: - | K81: - | L81: - | M81: - | N81: - | O81: - | P81: 197 | Q81: 197
C82: 生田村２－２ | D82: 137-01 | E82: 37 | F82: - | G82: - | H82: - | I82: - | J82: - | K82: - | L82: - | M82: - | N82: - | O82: - | P82: 37 | Q82: 37
C83: 柿生村 | D83: 137-02 | E83: 160 | F83: - | G83: - | H83: - | I83: - | J83: - | K83: - | L83: - | M83: - | N83: - | O83: - | P83: 160 | Q83: 160
B84: 横須賀市 | D84: 201-00 | E84: 392 | F84: 4 | G84: 1 | H84: 3 | I84: - | J84: - | K84: - | L84: - | M84: - | N84: - | O84: - | P84: 388 | Q84: 388
C85: 横須賀市 | D85: 201-01 | E85: 2 | F85: X | G85: X | H85: X | I85: X | J85: X | K85: X | L85: X | M85: X | N85: X | O85: X | P85: X | Q85: X
C86: （浦賀町） | D86: 201-02 | E86: 14 | F86: - | G86: - | H86: - | I86: - | J86: - | K86: - | L86: - | M86: - | N86: - | O86: - | P86: 14 | Q86: 14
C87: （大津） | D87: 201-03 | E87: - | F87: - | G87: - | H87: - | I87: - | J87: - | K87: - | L87: - | M87: - | N87: - | O87: - | P87: - | Q87: -
C88: 衣笠村 | D88: 201-04 | E88: 5 | F88: X | G88: X | H88: X | I88: X | J88: X | K88: X | L88: X | M88: X | N88: X | O88: X | P88: X | Q88: X
C89: 久里浜村 | D89: 201-05 | E89: 14 | F89: - | G89: - | H89: - | I89: - | J89: - | K89: - | L89: - | M89: - | N89: - | O89: - | P89: 14 | Q89: 14
C90: 武山村 | D90: 201-06 | E90: 73 | F90: 2 | G90: - | H90: 2 | I90: - | J90: - | K90: - | L90: - | M90: - | N90: - | O90: - | P90: 71 | Q90: 71
C91: 大楠町 | D91: 201-07 | E91: 50 | F91: 1 | G91: - | H91: 1 | I91: - | J91: - | K91: - | L91: - | M91: - | N91: - | O91: - | P91: 49 | Q91: 49
C92: 北下浦村 | D92: 201-08 | E92: 111 | F92: 1 | G92: 1 | H92: - | I92: - | J92: - | K92: - | L92: - | M92: - | N92: - | O92: - | P92: 110 | Q92: 110
C93: 長井町 | D93: 201-09 | E93: 123 | F93: - | G93: - | H93: - | I93: - | J93: - | K93: - | L93: - | M93: - | N93: - | O93: - | P93: 123 | Q93: 123
B94: 平塚市 | D94: 203-00 | E94: 1,230 | F94: 15 | G94: - | H94: 15 | I94: - | J94: - | K94: - | L94: - | M94: - | N94: - | O94: - | P94: 1,215 | Q94: 1,215
C95: 平塚市 | D95: 203-01 | E95: 7 | F95: - | G95: - | H95: - | I95: - | J95: - | K95: - | L95: - | M95: - | N95: - | O95: - | P95: 7 | Q95: 7
C96: 旭村 | D96: 203-02 | E96: 110 | F96: - | G96: - | H96: - | I96: - | J96: - | K96: - | L96: - | M96: - | N96: - | O96: - | P96: 110 | Q96: 110
C97: 大野町 | D97: 203-03 | E97: 154 | F97: 3 | G97: - | H97: 3 | I97: - | J97: - | K97: - | L97: - | M97: - | N97: - | O97: - | P97: 151 | Q97: 151
C98: 土沢村 | D98: 203-04 | E98: 220 | F98: 2 | G98: - | H98: 2 | I98: - | J98: - | K98: - | L98: - | M98: - | N98: - | O98: - | P98: 218 | Q98: 218
C99: 豊田村 | D99: 203-05 | E99: 90 | F99: 1 | G99: - | H99: 1 | I99: - | J99: - | K99: - | L99: - | M99: - | N99: - | O99: - | P99: 89 | Q99: 89
C100: 金田村 | D100: 203-06 | E100: 77 | F100: 2 | G100: - | H100: 2 | I100: - | J100: - | K100: - | L100: - | M100: - | N100: - | O100: - | P100: 75 | Q100: 75
C101: 金目村 | D101: 203-07 | E101: 151 | F101: 2 | G101: - | H101: 2 | I101: - | J101: - | K101: - | L101: - | M101: - | N101: - | O101: - | P101: 149 | Q101: 149
C102: 神田村 | D102: 203-08 | E102: 118 | F102: 2 | G102: - | H102: 2 | I102: - | J102: - | K102: - | L102: - | M102: - | N102: - | O102: - | P102: 116 | Q102: 116
C103: 城島村 | D103: 203-09 | E103: 162 | F103: 2 | G103: - | H103: 2 | I103: - | J103: - | K103: - | L103: - | M103: - | N103: - | O103: - | P103: 160 | Q103: 160
C104: 岡崎村２－１ | D104: 203-10 | E104: 117 | F104: 1 | G104: - | H104: 1 | I104: - | J104: - | K104: - | L104: - | M104: - | N104: - | O104: - | P104: 116 | Q104: 116
C105: 大根村２－１ | D105: 203-11 | E105: 24 | F105: - | G105: - | H105: - | I105: - | J105: - | K105: - | L105: - | M105: - | N105: - | O105: - | P105: 24 | Q105: 24
B106: 鎌倉市 | D106: 204-00 | E106: 84 | F106: - | G106: - | H106: - | I106: - | J106: - | K106: - | L106: - | M106: - | N106: - | O106: - | P106: 84 | Q106: 84
C107: 鎌倉市 | D107: 204-01 | E107: 5 | F107: - | G107: - | H107: - | I107: - | J107: - | K107: - | L107: - | M107: - | N107: - | O107: - | P107: 5 | Q107: 5
C108: 深沢村 | D108: 204-02 | E108: 24 | F108: - | G108: - | H108: - | I108: - | J108: - | K108: - | L108: - | M108: - | N108: - | O108: - | P108: 24 | Q108: 24
C109: 大船町 | D109: 204-03 | E109: 55 | F109: - | G109: - | H109: - | I109: - | J109: - | K109: - | L109: - | M109: - | N109: - | O109: - | P109: 55 | Q109: 55
B110: 藤沢市 | D110: 205-00 | E110: 739 | F110: 32 | G110: 2 | H110: 29 | I110: - | J110: - | K110: 1 | L110: - | M110: - | N110: - | O110: - | P110: 707 | Q110: 705
C111: 藤沢市 | D111: 205-01 | E111: 49 | F111: 1 | G111: - | H111: 1 | I111: - | J111: - | K111: - | L111: - | M111: - | N111: - | O111: - | P111: 48 | Q111: 48
C112: 六会村 | D112: 205-02 | E112: 184 | F112: 7 | G112: - | H112: 7 | I112: - | J112: - | K112: - | L112: - | M112: - | N112: - | O112: - | P112: 177 | Q112: 177
C113: （明治） | D113: 205-03 | E113: 76 | F113: 1 | G113: - | H113: 1 | I113: - | J113: - | K113: - | L113: - | M113: - | N113: - | O113: - | P113: 75 | Q113: 75
C114: 村岡村 | D114: 205-04 | E114: 27 | F114: - | G114: - | H114: - | I114: - | J114: - | K114: - | L114: - | M114: - | N114: - | O114: - | P114: 27 | Q114: 27
C115: 渋谷村２－１ | D115: 205-05 | E115: 71 | F115: 3 | G115: - | H115: 2 | I115: - | J115: - | K115: 1 | L115: - | M115: - | N115: - | O115: - | P115: 68 | Q115: 68
C116: 小出村２－１ | D116: 205-06 | E116: 71 | F116: 4 | G116: - | H116: 4 | I116: - | J116: - | K116: - | L116: - | M116: - | N116: - | O116: - | P116: 67 | Q116: 66
C117: 御所見村 | D117: 205-07 | E117: 261 | F117: 16 | G117: 2 | H117: 14 | I117: - | J117: - | K117: - | L117: - | M117: - | N117: - | O117: - | P117: 245 | Q117: 244
B118: 小田原市 | D118: 206-00 | E118: 1,423 | F118: 13 | G118: 3 | H118: 7 | I118: - | J118: - | K118: 3 | L118: - | M118: - | N118: - | O118: - | P118: 1,410 | Q118: 1,407
C119: （足柄） | D119: 206-01 | E119: 92 | F119: 1 | G119: 1 | H119: - | I119: - | J119: - | K119: - | L119: - | M119: - | N119: - | O119: - | P119: 91 | Q119: 91
C120: （久野） | D120: 206-02 | E120: 149 | F120: 3 | G120: 1 | H120: 2 | I120: - | J120: - | K120: - | L120: - | M120: - | N120: - | O120: - | P120: 146 | Q120: 145
C121: 早川村 | D121: 206-03 | E121: 87 | F121: 1 | G121: - | H121: - | I121: - | J121: - | K121: 1 | L121: - | M121: - | N121: - | O121: - | P121: 86 | Q121: 86
C122: 大窪村 | D122: 206-04 | E122: 61 | F122: - | G122: - | H122: - | I122: - | J122: - | K122: - | L122: - | M122: - | N122: - | O122: - | P122: 61 | Q122: 61
C123: 酒匂町 | D123: 206-05 | E123: 2 | F123: X | G123: X | H123: X | I123: X | J123: X | K123: X | L123: X | M123: X | N123: X | O123: X | P123: X | Q123: X
C124: 下府中村 | D124: 206-06 | E124: 8 | F124: X | G124: X | H124: X | I124: X | J124: X | K124: X | L124: X | M124: X | N124: X | O124: X | P124: X | Q124: X
C125: 下曽我村 | D125: 206-07 | E125: 131 | F125: - | G125: - | H125: - | I125: - | J125: - | K125: - | L125: - | M125: - | N125: - | O125: - | P125: 131 | Q125: 131
C126: 片浦村 | D126: 206-08 | E126: 124 | F126: 1 | G126: 1 | H126: - | I126: - | J126: - | K126: - | L126: - | M126: - | N126: - | O126: - | P126: 123 | Q126: 123
C127: 国府津町 | D127: 206-09 | E127: 89 | F127: - | G127: - | H127: - | I127: - | J127: - | K127: - | L127: - | M127: - | N127: - | O127: - | P127: 89 | Q127: 89
C128: 桜井村 | D128: 206-10 | E128: 108 | F128: - | G128: - | H128: - | I128: - | J128: - | K128: - | L128: - | M128: - | N128: - | O128: - | P128: 108 | Q128: 107
C129: （富水） | D129: 206-11 | E129: 105 | F129: 2 | G129: - | H129: 1 | I129: - | J129: - | K129: 1 | L129: - | M129: - | N129: - | O129: - | P129: 103 | Q129: 103
C130: 上府中村 | D130: 206-12 | E130: 85 | F130: - | G130: - | H130: - | I130: - | J130: - | K130: - | L130: - | M130: - | N130: - | O130: - | P130: 85 | Q130: 84
C131: 曽我村２－１ | D131: 206-13 | E131: 141 | F131: 1 | G131: - | H131: 1 | I131: - | J131: - | K131: - | L131: - | M131: - | N131: - | O131: - | P131: 140 | Q131: 140
C132: 豊川村 | D132: 206-14 | E132: 71 | F132: 1 | G132: - | H132: - | I132: - | J132: - | K132: 1 | L132: - | M132: - | N132: - | O132: - | P132: 70 | Q132: 70
C133: 下中村 | D133: 206-15 | E133: 136 | F133: 3 | G133: - | H133: 3 | I133: - | J133: - | K133: - | L133: - | M133: - | N133: - | O133: - | P133: 133 | Q133: 133
C134: 前羽村 | D134: 206-16 | E134: 34 | F134: - | G134: - | H134: - | I134: - | J134: - | K134: - | L134: - | M134: - | N134: - | O134: - | P134: 34 | Q134: 34
B135: 茅ヶ崎市 | D135: 207-00 | E135: 402 | F135: 5 | G135: - | H135: 5 | I135: - | J135: - | K135: - | L135: - | M135: - | N135: - | O135: - | P135: 397 | Q135: 397
C136: （茅ヶ崎町） | D136: 207-01 | E136: 10 | F136: - | G136: - | H136: - | I136: - | J136: - | K136: - | L136: - | M136: - | N136: - | O136: - | P136: 10 | Q136: 10
C137: （鶴嶺） | D137: 207-02 | E137: 145 | F137: 1 | G137: - | H137: 1 | I137: - | J137: - | K137: - | L137: - | M137: - | N137: - | O137: - | P137: 144 | Q137: 144
C138: （松林） | D138: 207-03 | E138: 109 | F138: 2 | G138: - | H138: 2 | I138: - | J138: - | K138: - | L138: - | M138: - | N138: - | O138: - | P138: 107 | Q138: 107
C139: 小出村２－２ | D139: 207-04 | E139: 138 | F139: 2 | G139: - | H139: 2 | I139: - | J139: - | K139: - | L139: - | M139: - | N139: - | O139: - | P139: 136 | Q139: 136
B140: 逗子市 | D140: 208-00 | E140: 2 | F140: X | G140: X | H140: X | I140: X | J140: X | K140: X | L140: X | M140: X | N140: X | O140: X | P140: X | Q140: X
B141: 相模原市 | D141: 209-00 | E141: 854 | F141: 35 | G141: - | H141: 33 | I141: - | J141: - | K141: 2 | L141: - | M141: - | N141: - | O141: 1 | P141: 818 | Q141: 817
C142: （橋本）・（旧相原村） | D142: 209-01 | E142: 38 | F142: - | G142: - | H142: - | I142: - | J142: - | K142: - | L142: - | M142: - | N142: - | O142: 1 | P142: 37 | Q142: 37
C143: 大沢村 | D143: 209-02 | E143: 87 | F143: 4 | G143: - | H143: 2 | I143: - | J143: - | K143: 2 | L143: - | M143: - | N143: - | O143: - | P143: 83 | Q143: 83
C144: 田名村 | D144: 209-03 | E144: 85 | F144: 2 | G144: - | H144: 2 | I144: - | J144: - | K144: - | L144: - | M144: - | N144: - | O144: - | P144: 83 | Q144: 83
C145: 上溝町 | D145: 209-04 | E145: 71 | F145: 4 | G145: - | H145: 4 | I145: - | J145: - | K145: - | L145: - | M145: - | N145: - | O145: - | P145: 67 | Q145: 67
C146: 麻溝村 | D146: 209-05 | E146: 110 | F146: 10 | G146: - | H146: 10 | I146: - | J146: - | K146: - | L146: - | M146: - | N146: - | O146: - | P146: 100 | Q146: 100
C147: （大野村北） | D147: 209-06 | E147: 24 | F147: - | G147: - | H147: - | I147: - | J147: - | K147: - | L147: - | M147: - | N147: - | O147: - | P147: 24 | Q147: 24
C148: （大野村中） | D148: 209-07 | E148: 35 | F148: 3 | G148: - | H148: 3 | I148: - | J148: - | K148: - | L148: - | M148: - | N148: - | O148: - | P148: 32 | Q148: 32
C149: （大野村南） | D149: 209-08 | E149: 44 | F149: - | G149: - | H149: - | I149: - | J149: - | K149: - | L149: - | M149: - | N149: - | O149: - | P149: 44 | Q149: 44
C150: 新磯村 | D150: 209-09 | E150: 85 | F150: 2 | G150: - | H150: 2 | I150: - | J150: - | K150: - | L150: - | M150: - | N150: - | O150: - | P150: 83 | Q150: 83
C151: 青根村 | D151: 209-10 | E151: 14 | F151: - | G151: - | H151: - | I151: - | J151: - | K151: - | L151: - | M151: - | N151: - | O151: - | P151: 14 | Q151: 14
C152: 串川村 | D152: 209-11 | E152: 49 | F152: 3 | G152: - | H152: 3 | I152: - | J152: - | K152: - | L152: - | M152: - | N152: - | O152: - | P152: 46 | Q152: 46
C153: 中野町 | D153: 209-12 | E153: 28 | F153: 1 | G153: - | H153: 1 | I153: - | J153: - | K153: - | L153: - | M153: - | N153: - | O153: - | P153: 27 | Q153: 27
C154: 鳥屋村 | D154: 209-13 | E154: 12 | F154: - | G154: - | H154: - | I154: - | J154: - | K154: - | L154: - | M154: - | N154: - | O154: - | P154: 12 | Q154: 12
C155: 青野原村 | D155: 209-14 | E155: 14 | F155: - | G155: - | H155: - | I155: - | J155: - | K155: - | L155: - | M155: - | N155: - | O155: - | P155: 14 | Q155: 14
C156: 三沢村２－２ | D156: 209-15 | E156: - | F156: - | G156: - | H156: - | I156: - | J156: - | K156: - | L156: - | M156: - | N156: - | O156: - | P156: - | Q156: -
C157: 内郷村 | D157: 209-16 | E157: 27 | F157: 1 | G157: - | H157: 1 | I157: - | J157: - | K157: - | L157: - | M157: - | N157: - | O157: - | P157: 26 | Q157: 26
C158: 与瀬町 | D158: 209-17 | E158: 7 | F158: - | G158: - | H158: - | I158: - | J158: - | K158: - | L158: - | M158: - | N158: - | O158: - | P158: 7 | Q158: 7
C159: 千木良村 | D159: 209-18 | E159: 6 | F159: - | G159: - | H159: - | I159: - | J159: - | K159: - | L159: - | M159: - | N159: - | O159: - | P159: 6 | Q159: 6
C160: 小原町 | D160: 209-19 | E160: - | F160: - | G160: - | H160: - | I160: - | J160: - | K160: - | L160: - | M160: - | N160: - | O160: - | P160: - | Q160: -
C161: 湘南村 | D161: 209-20 | E161: 37 | F161: - | G161: - | H161: - | I161: - | J161: - | K161: - | L161: - | M161: - | N161: - | O161: - | P161: 37 | Q161: 37
C162: 川尻村 | D162: 209-21 | E162: 37 | F162: 3 | G162: - | H162: 3 | I162: - | J162: - | K162: - | L162: - | M162: - | N162: - | O162: - | P162: 34 | Q162: 34
C163: 三沢村２－１ | D163: 209-22 | E163: 9 | F163: 2 | G163: - | H163: 2 | I163: - | J163: - | K163: - | L163: - | M163: - | N163: - | O163: - | P163: 7 | Q163: 7
C164: 日連村 | D164: 209-23 | E164: 7 | F164: - | G164: - | H164: - | I164: - | J164: - | K164: - | L164: - | M164: - | N164: - | O164: - | P164: 7 | Q164: 7
C165: 吉野町 | D165: 209-24 | E165: 2 | F165: X | G165: X | H165: X | I165: X | J165: X | K165: X | L165: X | M165: X | N165: X | O165: X | P165: X | Q165: X
C166: 小渕村 | D166: 209-25 | E166: 1 | F166: X | G166: X | H166: X | I166: X | J166: X | K166: X | L166: X | M166: X | N166: X | O166: X | P166: X | Q166: X
C167: 沢井村 | D167: 209-26 | E167: 4 | F167: - | G167: - | H167: - | I167: - | J167: - | K167: - | L167: - | M167: - | N167: - | O167: - | P167: 4 | Q167: 4
C168: 牧野村 | D168: 209-27 | E168: 13 | F168: - | G168: - | H168: - | I168: - | J168: - | K168: - | L168: - | M168: - | N168: - | O168: - | P168: 13 | Q168: 12
C169: 佐野川村 | D169: 209-28 | E169: 7 | F169: - | G169: - | H169: - | I169: - | J169: - | K169: - | L169: - | M169: - | N169: - | O169: - | P169: 7 | Q169: 7
C170: 名倉村 | D170: 209-29 | E170: 1 | F170: X | G170: X | H170: X | I170: X | J170: X | K170: X | L170: X | M170: X | N170: X | O170: X | P170: X | Q170: X
B171: 三浦市 | D171: 210-00 | E171: 807 | F171: 3 | G171: - | H171: 2 | I171: - | J171: - | K171: 1 | L171: - | M171: - | N171: - | O171: - | P171: 804 | Q171: 804
C172: 南下浦町 | D172: 210-01 | E172: 382 | F172: 2 | G172: - | H172: 2 | I172: - | J172: - | K172: - | L172: - | M172: - | N172: - | O172: - | P172: 380 | Q172: 380
C173: 三崎町 | D173: 210-02 | E173: 130 | F173: - | G173: - | H173: - | I173: - | J173: - | K173: - | L173: - | M173: - | N173: - | O173: - | P173: 130 | Q173: 130
C174: 初声村 | D174: 210-03 | E174: 295 | F174: 1 | G174: - | H174: - | I174: - | J174: - | K174: 1 | L174: - | M174: - | N174: - | O174: - | P174: 294 | Q174: 294
B175: 秦野市 | D175: 211-00 | E175: 844 | F175: 10 | G175: - | H175: 8 | I175: - | J175: - | K175: 2 | L175: - | M175: - | N175: - | O175: - | P175: 834 | Q175: 834
C176: 秦野町 | D176: 211-01 | E176: 72 | F176: - | G176: - | H176: - | I176: - | J176: - | K176: - | L176: - | M176: - | N176: - | O176: - | P176: 72 | Q176: 72
C177: 東秦野村 | D177: 211-02 | E177: 154 | F177: 3 | G177: - | H177: 3 | I177: - | J177: - | K177: - | L177: - | M177: - | N177: - | O177: - | P177: 151 | Q177: 151
C178: 南秦野町 | D178: 211-03 | E178: 128 | F178: 3 | G178: - | H178: 1 | I178: - | J178: - | K178: 2 | L178: - | M178: - | N178: - | O178: - | P178: 125 | Q178: 125
C179: 北秦野村 | D179: 211-04 | E179: 123 | F179: 2 | G179: - | H179: 2 | I179: - | J179: - | K179: - | L179: - | M179: - | N179: - | O179: - | P179: 121 | Q179: 121
C180: 大根村２－２ | D180: 211-05 | E180: 132 | F180: 1 | G180: - | H180: 1 | I180: - | J180: - | K180: - | L180: - | M180: - | N180: - | O180: - | P180: 131 | Q180: 131
C181: 西秦野村 | D181: 211-06 | E181: 174 | F181: 1 | G181: - | H181: 1 | I181: - | J181: - | K181: - | L181: - | M181: - | N181: - | O181: - | P181: 173 | Q181: 173
C182: 上秦野村 | D182: 211-07 | E182: 61 | F182: - | G182: - | H182: - | I182: - | J182: - | K182: - | L182: - | M182: - | N182: - | O182: - | P182: 61 | Q182: 61
B183: 厚木市 | D183: 212-00 | E183: 851 | F183: 9 | G183: 1 | H183: 7 | I183: - | J183: - | K183: 1 | L183: - | M183: - | N183: - | O183: - | P183: 842 | Q183: 841
C184: 厚木町 | D184: 212-01 | E184: 1 | F184: X | G184: X | H184: X | I184: X | J184: X | K184: X | L184: X | M184: X | N184: X | O184: X | P184: X | Q184: X
C185: 依知村 | D185: 212-02 | E185: 175 | F185: - | G185: - | H185: - | I185: - | J185: - | K185: - | L185: - | M185: - | N185: - | O185: - | P185: 175 | Q185: 174
C186: 荻野村 | D186: 212-03 | E186: 93 | F186: - | G186: - | H186: - | I186: - | J186: - | K186: - | L186: - | M186: - | N186: - | O186: - | P186: 93 | Q186: 93
C187: 睦合村 | D187: 212-04 | E187: 140 | F187: 2 | G187: - | H187: 1 | I187: - | J187: - | K187: 1 | L187: - | M187: - | N187: - | O187: - | P187: 138 | Q187: 138
C188: 小鮎村 | D188: 212-05 | E188: 99 | F188: 5 | G188: 1 | H188: 4 | I188: - | J188: - | K188: - | L188: - | M188: - | N188: - | O188: - | P188: 94 | Q188: 94
C189: 玉川村 | D189: 212-06 | E189: 61 | F189: X | G189: X | H189: X | I189: X | J189: X | K189: X | L189: X | M189: X | N189: X | O189: X | P189: X | Q189: X
C190: 南毛利村 | D190: 212-07 | E190: 134 | F190: 1 | G190: - | H190: 1 | I190: - | J190: - | K190: - | L190: - | M190: - | N190: - | O190: - | P190: 133 | Q190: 133
C191: 相川村 | D191: 212-08 | E191: 148 | F191: 1 | G191: - | H191: 1 | I191: - | J191: - | K191: - | L191: - | M191: - | N191: - | O191: - | P191: 147 | Q191: 147
B192: 大和市 | D192: 213-00 | E192: 206 | F192: - | G192: - | H192: - | I192: - | J192: - | K192: - | L192: - | M192: - | N192: - | O192: - | P192: 206 | Q192: 206
C193: 大和町 | D193: 213-01 | E193: 107 | F193: - | G193: - | H193: - | I193: - | J193: - | K193: - | L193: - | M193: - | N193: - | O193: - | P193: 107 | Q193: 107
C194: 渋谷村２－２ | D194: 213-02 | E194: 99 | F194: - | G194: - | H194: - | I194: - | J194: - | K194: - | L194: - | M194: - | N194: - | O194: - | P194: 99 | Q194: 99
B195: 伊勢原市 | D195: 214-00 | E195: 753 | F195: 23 | G195: - | H195: 21 | I195: 1 | J195: - | K195: 1 | L195: - | M195: - | N195: - | O195: - | P195: 730 | Q195: 730
C196: 伊勢原町 | D196: 214-01 | E196: 80 | F196: 2 | G196: - | H196: 2 | I196: - | J196: - | K196: - | L196: - | M196: - | N196: - | O196: - | P196: 78 | Q196: 78
C197: 岡崎村２－２ | D197: 214-02 | E197: 21 | F197: - | G197: - | H197: - | I197: - | J197: - | K197: - | L197: - | M197: - | N197: - | O197: - | P197: 21 | Q197: 21
C198: 成瀬村 | D198: 214-03 | E198: 120 | F198: 2 | G198: - | H198: 2 | I198: - | J198: - | K198: - | L198: - | M198: - | N198: - | O198: - | P198: 118 | Q198: 118
C199: 大山町 | D199: 214-04 | E199: 22 | F199: - | G199: - | H199: - | I199: - | J199: - | K199: - | L199: - | M199: - | N199: - | O199: - | P199: 22 | Q199: 22
C200: 比々多村 | D200: 214-05 | E200: 218 | F200: 1 | G200: - | H200: - | I200: - | J200: - | K200: 1 | L200: - | M200: - | N200: - | O200: - | P200: 217 | Q200: 217
C201: 大田村 | D201: 214-06 | E201: 172 | F201: 11 | G201: - | H201: 11 | I201: - | J201: - | K201: - | L201: - | M201: - | N201: - | O201: - | P201: 161 | Q201: 161
C202: 高部屋村 | D202: 214-07 | E202: 120 | F202: 7 | G202: - | H202: 6 | I202: 1 | J202: - | K202: - | L202: - | M202: - | N202: - | O202: - | P202: 113 | Q202: 113
B203: 海老名市 | D203: 215-00 | E203: 415 | F203: 4 | G203: - | H203: 4 | I203: - | J203: - | K203: - | L203: - | M203: - | N203: - | O203: - | P203: 411 | Q203: 411
C204: 海老名町 | D204: 215-01 | E204: 175 | F204: 2 | G204: - | H204: 2 | I204: - | J204: - | K204: - | L204: - | M204: - | N204: - | O204: - | P204: 173 | Q204: 173
C205: 有馬村 | D205: 215-02 | E205: 240 | F205: 2 | G205: - | H205: 2 | I205: - | J205: - | K205: - | L205: - | M205: - | N205: - | O205: - | P205: 238 | Q205: 238
... 51 more rows

Sheet 2015旧市町村 (hidden)
A1: Ⅱ 農業経営体
A2: ２ 組織形態別経営体数
Q5: 単位：経営体
A6: 新旧市区町村 | F6: 法 人 化 し て い る | O6: 地方公共 団 体 ・ 財 産 区 | P6: 法人化し ていない
F7: 小 計 | G7: 農事組合 法 人 | H7: 会 社 | K7: 各 種 団 体 | N7: その他の 法 人
E8: 計 | I8: 合名･合資 会 社 | M8: その他の 各種団体
H9: 株式会社 | J9: 合同会社 | K9: 農 協 | L9: 森林組合 | Q9: 家 族 経 営 体
A13: 神奈川県 | E13: 13809 | F13: 268 | G13: 12 | H13: 224 | I13: 2 | J13: 1 | K13: 17 | L13: 1 | M13: 2 | N13: 9 | O13: 2 | P13: 13539 | Q13: 13520
B14: 横浜市 | D14: 100-00 | E14: 2205 | F14: 44 | G14: - | H14: 38 | I14: - | J14: - | K14: 2 | L14: - | M14: - | N14: 4 | O14: - | P14: 2161 | Q14: 2160
B15: 鶴見区 | D15: 101-00 | E15: 22 | F15: 1 | G15: - | H15: 1 | I15: - | J15: - | K15: - | L15: - | M15: - | N15: - | O15: - | P15: 21 | Q15: 21
B16: 神奈川区 | D16: 102-00 | E16: 130 | F16: 5 | G16: - | H16: 5 | I16: - | J16: - | K16: - | L16: - | M16: - | N16: - | O16: - | P16: 125 | Q16: 125
B17: 西区 | D17: 103-00 | E17: - | F17: - | G17: - | H17: - | I17: - | J17: - | K17: - | L17: - | M17: - | N17: - | O17: - | P17: - | Q17: -
B18: 中区 | D18: 104-00 | E18: 1 | F18: X | G18: X | H18: X | I18: X | J18: X | K18: X | L18: X | M18: X | N18: X | O18: X | P18: X | Q18: X
B19: 南区(南区２－１) | D19: 105-00 | E19: 4 | F19: X | G19: X | H19: X | I19: X | J19: X | K19: X | L19: X | M19: X | N19: X | O19: X | P19: X | Q19: X
B20: 保土ケ谷区 | D20: 106-00 | E20: 91 | F20: 2 | G20: - | H20: 2 | I20: - | J20: - | K20: - | L20: - | M20: - | N20: - | O20: - | P20: 89 | Q20: 89
C21: 保土ケ谷区２－１ | D21: 106-01 | E21: 71 | F21: 1 | G21: - | H21: 1 | I21: - | J21: - | K21: - | L21: - | M21: - | N21: - | O21: - | P21: 70 | Q21: 70
C22: 二俣川村２－１ | D22: 106-02 | E22: 2 | F22: X | G22: X | H22: X | I22: X | J22: X | K22: X | L22: X | M22: X | N22: X | O22: X | P22: X | Q22: X
C23: 新治村２－１ | D23: 106-03 | E23: 18 | F23: X | G23: X | H23: X | I23: X | J23: X | K23: X | L23: X | M23: X | N23: X | O23: X | P23: X | Q23: X
B24: 磯子区 | D24: 107-00 | E24: 17 | F24: 1 | G24: - | H24: 1 | I24: - | J24: - | K24: - | L24: - | M24: - | N24: - | O24: - | P24: 16 | Q24: 16
B25: 金沢区 | D25: 108-00 | E25: 26 | F25: - | G25: - | H25: - | I25: - | J25: - | K25: - | L25: - | M25: - | N25: - | O25: - | P25: 26 | Q25: 26
B26: 港北区 | D26: 109-00 | E26: 233 | F26: 2 | G26: - | H26: 1 | I26: - | J26: - | K26: - | L26: - | M26: - | N26: 1 | O26: - | P26: 231 | Q26: 231
C27: 港北 | D27: 109-01 | E27: 91 | F27: 1 | G27: - | H27: 1 | I27: - | J27: - | K27: - | L27: - | M27: - | N27: - | O27: - | P27: 90 | Q27: 90
C28: 新田村２－１ | D28: 109-02 | E28: 142 | F28: 1 | G28: - | H28: - | I28: - | J28: - | K28: - | L28: - | M28: - | N28: 1 | O28: - | P28: 141 | Q28: 141
B29: 戸塚区 | D29: 110-00 | E29: 211 | F29: 7 | G29: - | H29: 7 | I29: - | J29: - | K29: - | L29: - | M29: - | N29: - | O29: - | P29: 204 | Q29: 204
C30: 戸塚町 | D30: 110-01 | E30: 20 | F30: 1 | G30: - | H30: 1 | I30: - | J30: - | K30: - | L30: - | M30: - | N30: - | O30: - | P30: 19 | Q30: 19
C31: 豊田村２－１ | D31: 110-02 | E31: 4 | F31: 1 | G31: - | H31: 1 | I31: - | J31: - | K31: - | L31: - | M31: - | N31: - | O31: - | P31: 3 | Q31: 3
C32: 川上村 | D32: 110-03 | E32: 42 | F32: - | G32: - | H32: - | I32: - | J32: - | K32: - | L32: - | M32: - | N32: - | O32: - | P32: 42 | Q32: 42
C33: 大正村２－１ | D33: 110-04 | E33: 121 | F33: 5 | G33: - | H33: 5 | I33: - | J33: - | K33: - | L33: - | M33: - | N33: - | O33: - | P33: 116 | Q33: 116
C34: 中川村３－１ | D34: 110-05 | E34: 24 | F34: - | G34: - | H34: - | I34: - | J34: - | K34: - | L34: - | M34: - | N34: - | O34: - | P34: 24 | Q34: 24
B35: 港南区(南区２－２) | D35: 111-00 | E35: 49 | F35: 1 | G35: - | H35: 1 | I35: - | J35: - | K35: - | L35: - | M35: - | N35: - | O35: - | P35: 48 | Q35: 48
B36: 旭区 | D36: 112-00 | E36: 166 | F36: 4 | G36: - | H36: 3 | I36: - | J36: - | K36: - | L36: - | M36: - | N36: 1 | O36: - | P36: 162 | Q36: 162
C37: 保土ケ谷区２－２ | D37: 112-01 | E37: 11 | F37: - | G37: - | H37: - | I37: - | J37: - | K37: - | L37: - | M37: - | N37: - | O37: - | P37: 11 | Q37: 11
C38: 二俣川村２－２ | D38: 112-02 | E38: 73 | F38: 1 | G38: - | H38: 1 | I38: - | J38: - | K38: - | L38: - | M38: - | N38: - | O38: - | P38: 72 | Q38: 72
C39: 都岡村 | D39: 112-03 | E39: 82 | F39: 3 | G39: - | H39: 2 | I39: - | J39: - | K39: - | L39: - | M39: - | N39: 1 | O39: - | P39: 79 | Q39: 79
B40: 緑区 | D40: 113-00 | E40: 237 | F40: 4 | G40: - | H40: 3 | I40: - | J40: - | K40: - | L40: - | M40: - | N40: 1 | O40: - | P40: 233 | Q40: 233
C41: 中里村２－１ | D41: 113-01 | E41: 66 | F41: 2 | G41: - | H41: 2 | I41: - | J41: - | K41: - | L41: - | M41: - | N41: - | O41: - | P41: 64 | Q41: 64
C42: 田奈村２－１ | D42: 113-02 | E42: 74 | F42: 1 | G42: - | H42: 1 | I42: - | J42: - | K42: - | L42: - | M42: - | N42: - | O42: - | P42: 73 | Q42: 73
C43: 新治村２－２ | D43: 113-03 | E43: 97 | F43: 1 | G43: - | H43: - | I43: - | J43: - | K43: - | L43: - | M43: - | N43: 1 | O43: - | P43: 96 | Q43: 96
B44: 瀬谷区 | D44: 114-00 | E44: 162 | F44: 3 | G44: - | H44: 3 | I44: - | J44: - | K44: - | L44: - | M44: - | N44: - | O44: - | P44: 159 | Q44: 158
C45: 中川村３－２ | D45: 114-01 | E45: 39 | F45: 1 | G45: - | H45: 1 | I45: - | J45: - | K45: - | L45: - | M45: - | N45: - | O45: - | P45: 38 | Q45: 37
C46: 瀬谷村 | D46: 114-02 | E46: 123 | F46: 2 | G46: - | H46: 2 | I46: - | J46: - | K46: - | L46: - | M46: - | N46: - | O46: - | P46: 121 | Q46: 121
B47: 栄区 | D47: 115-00 | E47: 52 | F47: 2 | G47: - | H47: 2 | I47: - | J47: - | K47: - | L47: - | M47: - | N47: - | O47: - | P47: 50 | Q47: 50
C48: 本郷村 | D48: 115-01 | E48: 25 | F48: - | G48: - | H48: - | I48: - | J48: - | K48: - | L48: - | M48: - | N48: - | O48: - | P48: 25 | Q48: 25
C49: 豊田村２－２ | D49: 115-02 | E49: 27 | F49: 2 | G49: - | H49: 2 | I49: - | J49: - | K49: - | L49: - | M49: - | N49: - | O49: - | P49: 25 | Q49: 25
B50: 泉区 | D50: 116-00 | E50: 274 | F50: 6 | G50: - | H50: 5 | I50: - | J50: - | K50: 1 | L50: - | M50: - | N50: - | O50: - | P50: 268 | Q50: 268
C51: 中和田村 | D51: 116-01 | E51: 244 | F51: 6 | G51: - | H51: 5 | I51: - | J51: - | K51: 1 | L51: - | M51: - | N51: - | O51: - | P51: 238 | Q51: 238
C52: 中川村３－３ | D52: 116-02 | E52: 30 | F52: - | G52: - | H52: - | I52: - | J52: - | K52: - | L52: - | M52: - | N52: - | O52: - | P52: 30 | Q52: 30
C53: 大正村２－２ | D53: 116-03 | E53: - | F53: - | G53: - | H53: - | I53: - | J53: - | K53: - | L53: - | M53: - | N53: - | O53: - | P53: - | Q53: -
B54: 青葉区 | D54: 117-00 | E54: 215 | F54: 4 | G54: - | H54: 2 | I54: - | J54: - | K54: 1 | L54: - | M54: - | N54: 1 | O54: - | P54: 211 | Q54: 211
C55: 山内村２－１ | D55: 117-01 | E55: 51 | F55: - | G55: - | H55: - | I55: - | J55: - | K55: - | L55: - | M55: - | N55: - | O55: - | P55: 51 | Q55: 51
C56: 中里村２－２ | D56: 117-02 | E56: 95 | F56: 1 | G56: - | H56: 1 | I56: - | J56: - | K56: - | L56: - | M56: - | N56: - | O56: - | P56: 94 | Q56: 94
C57: 田奈村２－２ | D57: 117-03 | E57: 69 | F57: 3 | G57: - | H57: 1 | I57: - | J57: - | K57: 1 | L57: - | M57: - | N57: 1 | O57: - | P57: 66 | Q57: 66
C58: 都筑中川村２－１ | D58: 117-04 | E58: - | F58: - | G58: - | H58: - | I58: - | J58: - | K58: - | L58: - | M58: - | N58: - | O58: - | P58: - | Q58: -
C59: 川和町２－１ | D59: 117-05 | E59: - | F59: - | G59: - | H59: - | I59: - | J59: - | K59: - | L59: - | M59: - | N59: - | O59: - | P59: - | Q59: -
B60: 都筑区 | D60: 118-00 | E60: 315 | F60: 1 | G60: - | H60: 1 | I60: - | J60: - | K60: - | L60: - | M60: - | N60: - | O60: - | P60: 314 | Q60: 314
C61: 新田村２－２ | D61: 118-01 | E61: 4 | F61: - | G61: - | H61: - | I61: - | J61: - | K61: - | L61: - | M61: - | N61: - | O61: - | P61: 4 | Q61: 4
C62: 都筑中川村２－２ | D62: 118-02 | E62: 82 | F62: 1 | G62: - | H62: 1 | I62: - | J62: - | K62: - | L62: - | M62: - | N62: - | O62: - | P62: 81 | Q62: 81
C63: 川和町２－２ | D63: 118-03 | E63: 211 | F63: - | G63: - | H63: - | I63: - | J63: - | K63: - | L63: - | M63: - | N63: - | O63: - | P63: 211 | Q63: 211
C64: 山内村２－２ | D64: 118-04 | E64: 18 | F64: - | G64: - | H64: - | I64: - | J64: - | K64: - | L64: - | M64: - | N64: - | O64: - | P64: 18 | Q64: 18
B65: 川崎市 | D65: 130-00 | E65: 672 | F65: 6 | G65: - | H65: 6 | I65: - | J65: - | K65: - | L65: - | M65: - | N65: - | O65: - | P65: 666 | Q65: 666
B66: 川崎区 | D66: 131-00 | E66: - | F66: - | G66: - | H66: - | I66: - | J66: - | K66: - | L66: - | M66: - | N66: - | O66: - | P66: - | Q66: -
B67: 幸区 | D67: 132-00 | E67: 5 | F67: - | G67: - | H67: - | I67: - | J67: - | K67: - | L67: - | M67: - | N67: - | O67: - | P67: 5 | Q67: 5
B68: 中原区 | D68: 133-00 | E68: 47 | F68: - | G68: - | H68: - | I68: - | J68: - | K68: - | L68: - | M68: - | N68: - | O68: - | P68: 47 | Q68: 47
B69: 高津区 | D69: 134-00 | E69: 115 | F69: 2 | G69: - | H69: 2 | I69: - | J69: - | K69: - | L69: - | M69: - | N69: - | O69: - | P69: 113 | Q69: 113
C70: 高津町 | D70: 134-01 | E70: 35 | F70: 1 | G70: - | H70: 1 | I70: - | J70: - | K70: - | L70: - | M70: - | N70: - | O70: - | P70: 34 | Q70: 34
C71: 宮前村２－１ | D71: 134-02 | E71: 4 | F71: - | G71: - | H71: - | I71: - | J71: - | K71: - | L71: - | M71: - | N71: - | O71: - | P71: 4 | Q71: 4
C72: 橘村 | D72: 134-03 | E72: 59 | F72: 1 | G72: - | H72: 1 | I72: - | J72: - | K72: - | L72: - | M72: - | N72: - | O72: - | P72: 58 | Q72: 58
C73: 向ヶ丘村３－１ | D73: 134-04 | E73: 17 | F73: - | G73: - | H73: - | I73: - | J73: - | K73: - | L73: - | M73: - | N73: - | O73: - | P73: 17 | Q73: 17
B74: 多摩区 | D74: 135-00 | E74: 154 | F74: 1 | G74: - | H74: 1 | I74: - | J74: - | K74: - | L74: - | M74: - | N74: - | O74: - | P74: 153 | Q74: 153
C75: 稲田町 | D75: 135-01 | E75: 97 | F75: 1 | G75: - | H75: 1 | I75: - | J75: - | K75: - | L75: - | M75: - | N75: - | O75: - | P75: 96 | Q75: 96
C76: 生田村２－１ | D76: 135-02 | E76: 50 | F76: - | G76: - | H76: - | I76: - | J76: - | K76: - | L76: - | M76: - | N76: - | O76: - | P76: 50 | Q76: 50
C77: 向ヶ丘村３－２ | D77: 135-03 | E77: 7 | F77: - | G77: - | H77: - | I77: - | J77: - | K77: - | L77: - | M77: - | N77: - | O77: - | P77: 7 | Q77: 7
B78: 宮前区 | D78: 136-00 | E78: 184 | F78: 3 | G78: - | H78: 3 | I78: - | J78: - | K78: - | L78: - | M78: - | N78: - | O78: - | P78: 181 | Q78: 181
C79: 宮前村２－２ | D79: 136-01 | E79: 117 | F79: 2 | G79: - | H79: 2 | I79: - | J79: - | K79: - | L79: - | M79: - | N79: - | O79: - | P79: 115 | Q79: 115
C80: 向ヶ丘村３－３ | D80: 136-02 | E80: 67 | F80: 1 | G80: - | H80: 1 | I80: - | J80: - | K80: - | L80: - | M80: - | N80: - | O80: - | P80: 66 | Q80: 66
B81: 麻生区 | D81: 137-00 | E81: 167 | F81: - | G81: - | H81: - | I81: - | J81: - | K81: - | L81: - | M81: - | N81: - | O81: - | P81: 167 | Q81: 167
C82: 生田村２－２ | D82: 137-01 | E82: 36 | F82: - | G82: - | H82: - | I82: - | J82: - | K82: - | L82: - | M82: - | N82: - | O82: - | P82: 36 | Q82: 36
C83: 柿生村 | D83: 137-02 | E83: 131 | F83: - | G83: - | H83: - | I83: - | J83: - | K83: - | L83: - | M83: - | N83: - | O83: - | P83: 131 | Q83: 131
B84: 相模原市 | D84: 150-00 | E84: 653 | F84: 30 | G84: 1 | H84: 26 | I84: - | J84: - | K84: 2 | L84: - | M84: - | N84: 1 | O84: 1 | P84: 622 | Q84: 617
B85: 緑区 | D85: 151-00 | E85: 295 | F85: 14 | G85: - | H85: 11 | I85: - | J85: - | K85: 2 | L85: - | M85: - | N85: 1 | O85: - | P85: 281 | Q85: 276
C86: (橋本)・(旧相原村) | D86: 151-01 | E86: 25 | F86: - | G86: - | H86: - | I86: - | J86: - | K86: - | L86: - | M86: - | N86: - | O86: - | P86: 25 | Q86: 25
C87: 大沢村 | D87: 151-02 | E87: 71 | F87: 4 | G87: - | H87: 2 | I87: - | J87: - | K87: 2 | L87: - | M87: - | N87: - | O87: - | P87: 67 | Q87: 67
C88: 田名村 | D88: 151-03 | E88: - | F88: - | G88: - | H88: - | I88: - | J88: - | K88: - | L88: - | M88: - | N88: - | O88: - | P88: - | Q88: -
C89: 青根村 | D89: 151-04 | E89: 9 | F89: - | G89: - | H89: - | I89: - | J89: - | K89: - | L89: - | M89: - | N89: - | O89: - | P89: 9 | Q89: 9
C90: 串川村 | D90: 151-05 | E90: 32 | F90: 2 | G90: - | H90: 2 | I90: - | J90: - | K90: - | L90: - | M90: - | N90: - | O90: - | P90: 30 | Q90: 29
C91: 中野町 | D91: 151-06 | E91: 24 | F91: 1 | G91: - | H91: 1 | I91: - | J91: - | K91: - | L91: - | M91: - | N91: - | O91: - | P91: 23 | Q91: 23
C92: 鳥屋村 | D92: 151-07 | E92: 11 | F92: - | G92: - | H92: - | I92: - | J92: - | K92: - | L92: - | M92: - | N92: - | O92: - | P92: 11 | Q92: 11
C93: 青野原村 | D93: 151-08 | E93: 8 | F93: - | G93: - | H93: - | I93: - | J93: - | K93: - | L93: - | M93: - | N93: - | O93: - | P93: 8 | Q93: 8
C94: 三沢村２－２ | D94: 151-09 | E94: - | F94: - | G94: - | H94: - | I94: - | J94: - | K94: - | L94: - | M94: - | N94: - | O94: - | P94: - | Q94: -
C95: 内郷村 | D95: 151-10 | E95: 16 | F95: 1 | G95: - | H95: 1 | I95: - | J95: - | K95: - | L95: - | M95: - | N95: - | O95: - | P95: 15 | Q95: 14
C96: 与瀬町 | D96: 151-11 | E96: 7 | F96: - | G96: - | H96: - | I96: - | J96: - | K96: - | L96: - | M96: - | N96: - | O96: - | P96: 7 | Q96: 7
C97: 千木良村 | D97: 151-12 | E97: 6 | F97: - | G97: - | H97: - | I97: - | J97: - | K97: - | L97: - | M97: - | N97: - | O97: - | P97: 6 | Q97: 6
C98: 小原町 | D98: 151-13 | E98: - | F98: - | G98: - | H98: - | I98: - | J98: - | K98: - | L98: - | M98: - | N98: - | O98: - | P98: - | Q98: -
C99: 湘南村 | D99: 151-14 | E99: 23 | F99: - | G99: - | H99: - | I99: - | J99: - | K99: - | L99: - | M99: - | N99: - | O99: - | P99: 23 | Q99: 22
C100: 川尻村 | D100: 151-15 | E100: 27 | F100: 2 | G100: - | H100: 2 | I100: - | J100: - | K100: - | L100: - | M100: - | N100: - | O100: - | P100: 25 | Q100: 25
C101: 三沢村２－１ | D101: 151-16 | E101: 6 | F101: 1 | G101: - | H101: 1 | I101: - | J101: - | K101: - | L101: - | M101: - | N101: - | O101: - | P101: 5 | Q101: 5
C102: 日連村 | D102: 151-17 | E102: 4 | F102: - | G102: - | H102: - | I102: - | J102: - | K102: - | L102: - | M102: - | N102: - | O102: - | P102: 4 | Q102: 4
C103: 吉野町 | D103: 151-18 | E103: 2 | F103: X | G103: X | H103: X | I103: X | J103: X | K103: X | L103: X | M103: X | N103: X | O103: X | P103: X | Q103: X
C104: 小渕村 | D104: 151-19 | E104: 3 | F104: - | G104: - | H104: - | I104: - | J104: - | K104: - | L104: - | M104: - | N104: - | O104: - | P104: 3 | Q104: 3
C105: 沢井村 | D105: 151-20 | E105: 4 | F105: - | G105: - | H105: - | I105: - | J105: - | K105: - | L105: - | M105: - | N105: - | O105: - | P105: 4 | Q105: 4
C106: 牧野村 | D106: 151-21 | E106: 13 | F106: 3 | G106: - | H106: 2 | I106: - | J106: - | K106: - | L106: - | M106: - | N106: 1 | O106: - | P106: 10 | Q106: 9
C107: 佐野川村 | D107: 151-22 | E107: 2 | F107: X | G107: X | H107: X | I107: X | J107: X | K107: X | L107: X | M107: X | N107: X | O107: X | P107: X | Q107: X
C108: 名倉村 | D108: 151-23 | E108: 2 | F108: X | G108: X | H108: X | I108: X | J108: X | K108: X | L108: X | M108: X | N108: X | O108: X | P108: X | Q108: X
B109: 中央区 | D109: 152-00 | E109: 142 | F109: 8 | G109: 1 | H109: 7 | I109: - | J109: - | K109: - | L109: - | M109: - | N109: - | O109: 1 | P109: 133 | Q109: 133
C110: (橋本)・(旧相原村) | D110: 152-01 | E110: 8 | F110: X | G110: X | H110: X | I110: X | J110: X | K110: X | L110: X | M110: X | N110: X | O110: X | P110: X | Q110: X
C111: 大沢村 | D111: 152-02 | E111: 1 | F111: X | G111: X | H111: X | I111: X | J111: X | K111: X | L111: X | M111: X | N111: X | O111: X | P111: X | Q111: X
C112: 田名村 | D112: 152-03 | E112: 62 | F112: 4 | G112: 1 | H112: 3 | I112: - | J112: - | K112: - | L112: - | M112: - | N112: - | O112: - | P112: 58 | Q112: 58
C113: 上溝町 | D113: 152-04 | E113: 55 | F113: 4 | G113: - | H113: 4 | I113: - | J113: - | K113: - | L113: - | M113: - | N113: - | O113: - | P113: 51 | Q113: 51
C114: 麻溝村 | D114: 152-05 | E114: - | F114: - | G114: - | H114: - | I114: - | J114: - | K114: - | L114: - | M114: - | N114: - | O114: - | P114: - | Q114: -
C115: (大野村北) | D115: 152-06 | E115: 16 | F115: - | G115: - | H115: - | I115: - | J115: - | K115: - | L115: - | M115: - | N115: - | O115: - | P115: 16 | Q115: 16
B116: 南区 | D116: 153-00 | E116: 216 | F116: 8 | G116: - | H116: 8 | I116: - | J116: - | K116: - | L116: - | M116: - | N116: - | O116: - | P116: 208 | Q116: 208
C117: 上溝町 | D117: 153-01 | E117: - | F117: - | G117: - | H117: - | I117: - | J117: - | K117: - | L117: - | M117: - | N117: - | O117: - | P117: - | Q117: -
C118: 麻溝村 | D118: 153-02 | E118: 76 | F118: 6 | G118: - | H118: 6 | I118: - | J118: - | K118: - | L118: - | M118: - | N118: - | O118: - | P118: 70 | Q118: 70
C119: (大野村北) | D119: 153-03 | E119: - | F119: - | G119: - | H119: - | I119: - | J119: - | K119: - | L119: - | M119: - | N119: - | O119: - | P119: - | Q119: -
C120: (大野村中) | D120: 153-04 | E120: 30 | F120: - | G120: - | H120: - | I120: - | J120: - | K120: - | L120: - | M120: - | N120: - | O120: - | P120: 30 | Q120: 30
C121: (大野村南) | D121: 153-05 | E121: 38 | F121: - | G121: - | H121: - | I121: - | J121: - | K121: - | L121: - | M121: - | N121: - | O121: - | P121: 38 | Q121: 38
C122: 新磯村 | D122: 153-06 | E122: 72 | F122: 2 | G122: - | H122: 2 | I122: - | J122: - | K122: - | L122: - | M122: - | N122: - | O122: - | P122: 70 | Q122: 70
B123: 横須賀市 | D123: 201-00 | E123: 374 | F123: 7 | G123: 1 | H123: 5 | I123: - | J123: 1 | K123: - | L123: - | M123: - | N123: - | O123: - | P123: 367 | Q123: 367
C124: 横須賀市 | D124: 201-01 | E124: 2 | F124: X | G124: X | H124: X | I124: X | J124: X | K124: X | L124: X | M124: X | N124: X | O124: X | P124: X | Q124: X
C125: (浦賀町) | D125: 201-02 | E125: 13 | F125: - | G125: - | H125: - | I125: - | J125: - | K125: - | L125: - | M125: - | N125: - | O125: - | P125: 13 | Q125: 13
C126: (大津) | D126: 201-03 | E126: - | F126: - | G126: - | H126: - | I126: - | J126: - | K126: - | L126: - | M126: - | N126: - | O126: - | P126: - | Q126: -
C127: 衣笠村 | D127: 201-04 | E127: 7 | F127: X | G127: X | H127: X | I127: X | J127: X | K127: X | L127: X | M127: X | N127: X | O127: X | P127: X | Q127: X
C128: 久里浜村 | D128: 201-05 | E128: 13 | F128: - | G128: - | H128: - | I128: - | J128: - | K128: - | L128: - | M128: - | N128: - | O128: - | P128: 13 | Q128: 13
C129: 武山村 | D129: 201-06 | E129: 67 | F129: 1 | G129: - | H129: 1 | I129: - | J129: - | K129: - | L129: - | M129: - | N129: - | O129: - | P129: 66 | Q129: 66
C130: 大楠町 | D130: 201-07 | E130: 59 | F130: 3 | G130: - | H130: 2 | I130: - | J130: 1 | K130: - | L130: - | M130: - | N130: - | O130: - | P130: 56 | Q130: 56
C131: 北下浦村 | D131: 201-08 | E131: 100 | F131: 2 | G131: 1 | H131: 1 | I131: - | J131: - | K131: - | L131: - | M131: - | N131: - | O131: - | P131: 98 | Q131: 98
C132: 長井町 | D132: 201-09 | E132: 113 | F132: 1 | G132: - | H132: 1 | I132: - | J132: - | K132: - | L132: - | M132: - | N132: - | O132: - | P132: 112 | Q132: 112
B133: 平塚市 | D133: 203-00 | E133: 1115 | F133: 18 | G133: - | H133: 18 | I133: - | J133: - | K133: - | L133: - | M133: - | N133: - | O133: - | P133: 1097 | Q133: 1097
C134: 平塚市 | D134: 203-01 | E134: 5 | F134: - | G134: - | H134: - | I134: - | J134: - | K134: - | L134: - | M134: - | N134: - | O134: - | P134: 5 | Q134: 5
C135: 旭村 | D135: 203-02 | E135: 101 | F135: - | G135: - | H135: - | I135: - | J135: - | K135: - | L135: - | M135: - | N135: - | O135: - | P135: 101 | Q135: 101
C136: 大野町 | D136: 203-03 | E136: 142 | F136: 3 | G136: - | H136: 3 | I136: - | J136: - | K136: - | L136: - | M136: - | N136: - | O136: - | P136: 139 | Q136: 139
C137: 土沢村 | D137: 203-04 | E137: 206 | F137: 2 | G137: - | H137: 2 | I137: - | J137: - | K137: - | L137: - | M137: - | N137: - | O137: - | P137: 204 | Q137: 204
C138: 豊田村 | D138: 203-05 | E138: 75 | F138: - | G138: - | H138: - | I138: - | J138: - | K138: - | L138: - | M138: - | N138: - | O138: - | P138: 75 | Q138: 75
C139: 金田村 | D139: 203-06 | E139: 72 | F139: 2 | G139: - | H139: 2 | I139: - | J139: - | K139: - | L139: - | M139: - | N139: - | O139: - | P139: 70 | Q139: 70
C140: 金目村 | D140: 203-07 | E140: 139 | F140: 4 | G140: - | H140: 4 | I140: - | J140: - | K140: - | L140: - | M140: - | N140: - | O140: - | P140: 135 | Q140: 135
C141: 神田村 | D141: 203-08 | E141: 102 | F141: 2 | G141: - | H141: 2 | I141: - | J141: - | K141: - | L141: - | M141: - | N141: - | O141: - | P141: 100 | Q141: 100
C142: 城島村 | D142: 203-09 | E142: 142 | F142: 3 | G142: - | H142: 3 | I142: - | J142: - | K142: - | L142: - | M142: - | N142: - | O142: - | P142: 139 | Q142: 139
C143: 岡崎村２－１ | D143: 203-10 | E143: 107 | F143: 2 | G143: - | H143: 2 | I143: - | J143: - | K143: - | L143: - | M143: - | N143: - | O143: - | P143: 105 | Q143: 105
C144: 大根村２－１ | D144: 203-11 | E144: 24 | F144: - | G144: - | H144: - | I144: - | J144: - | K144: - | L144: - | M144: - | N144: - | O144: - | P144: 24 | Q144: 24
B145: 鎌倉市 | D145: 204-00 | E145: 72 | F145: 1 | G145: - | H145: 1 | I145: - | J145: - | K145: - | L145: - | M145: - | N145: - | O145: - | P145: 71 | Q145: 71
C146: 鎌倉市 | D146: 204-01 | E146: 6 | F146: - | G146: - | H146: - | I146: - | J146: - | K146: - | L146: - | M146: - | N146: - | O146: - | P146: 6 | Q146: 6
C147: 深沢村 | D147: 204-02 | E147: 19 | F147: - | G147: - | H147: - | I147: - | J147: - | K147: - | L147: - | M147: - | N147: - | O147: - | P147: 19 | Q147: 19
C148: 大船町 | D148: 204-03 | E148: 47 | F148: 1 | G148: - | H148: 1 | I148: - | J148: - | K148: - | L148: - | M148: - | N148: - | O148: - | P148: 46 | Q148: 46
B149: 藤沢市 | D149: 205-00 | E149: 718 | F149: 21 | G149: 1 | H149: 18 | I149: - | J149: - | K149: 1 | L149: - | M149: - | N149: 1 | O149: - | P149: 697 | Q149: 695
C150: 藤沢市 | D150: 205-01 | E150: 48 | F150: 3 | G150: - | H150: 2 | I150: - | J150: - | K150: - | L150: - | M150: - | N150: 1 | O150: - | P150: 45 | Q150: 45
C151: 六会村 | D151: 205-02 | E151: 182 | F151: 2 | G151: - | H151: 2 | I151: - | J151: - | K151: - | L151: - | M151: - | N151: - | O151: - | P151: 180 | Q151: 180
C152: (明治) | D152: 205-03 | E152: 70 | F152: - | G152: - | H152: - | I152: - | J152: - | K152: - | L152: - | M152: - | N152: - | O152: - | P152: 70 | Q152: 70
C153: 村岡村 | D153: 205-04 | E153: 22 | F153: - | G153: - | H153: - | I153: - | J153: - | K153: - | L153: - | M153: - | N153: - | O153: - | P153: 22 | Q153: 22
C154: 渋谷村２－１ | D154: 205-05 | E154: 69 | F154: 1 | G154: - | H154: - | I154: - | J154: - | K154: 1 | L154: - | M154: - | N154: - | O154: - | P154: 68 | Q154: 68
C155: 小出村２－１ | D155: 205-06 | E155: 72 | F155: 3 | G155: - | H155: 3 | I155: - | J155: - | K155: - | L155: - | M155: - | N155: - | O155: - | P155: 69 | Q155: 68
C156: 御所見村 | D156: 205-07 | E156: 255 | F156: 12 | G156: 1 | H156: 11 | I156: - | J156: - | K156: - | L156: - | M156: - | N156: - | O156: - | P156: 243 | Q156: 242
B157: 小田原市 | D157: 206-00 | E157: 1271 | F157: 13 | G157: 1 | H157: 10 | I157: - | J157: - | K157: 2 | L157: - | M157: - | N157: - | O157: - | P157: 1258 | Q157: 1254
C158: (足柄) | D158: 206-01 | E158: 85 | F158: 1 | G158: - | H158: 1 | I158: - | J158: - | K158: - | L158: - | M158: - | N158: - | O158: - | P158: 84 | Q158: 84
C159: (久野) | D159: 206-02 | E159: 128 | F159: 1 | G159: - | H159: 1 | I159: - | J159: - | K159: - | L159: - | M159: - | N159: - | O159: - | P159: 127 | Q159: 127
C160: 早川村 | D160: 206-03 | E160: 78 | F160: 1 | G160: - | H160: - | I160: - | J160: - | K160: 1 | L160: - | M160: - | N160: - | O160: - | P160: 77 | Q160: 77
C161: 大窪村 | D161: 206-04 | E161: 49 | F161: - | G161: - | H161: - | I161: - | J161: - | K161: - | L161: - | M161: - | N161: - | O161: - | P161: 49 | Q161: 49
C162: 酒匂町 | D162: 206-05 | E162: 2 | F162: X | G162: X | H162: X | I162: X | J162: X | K162: X | L162: X | M162: X | N162: X | O162: X | P162: X | Q162: X
C163: 下府中村 | D163: 206-06 | E163: 5 | F163: X | G163: X | H163: X | I163: X | J163: X | K163: X | L163: X | M163: X | N163: X | O163: X | P163: X | Q163: X
C164: 下曽我村 | D164: 206-07 | E164: 131 | F164: 1 | G164: - | H164: 1 | I164: - | J164: - | K164: - | L164: - | M164: - | N164: - | O164: - | P164: 130 | Q164: 130
C165: 片浦村 | D165: 206-08 | E165: 109 | F165: - | G165: - | H165: - | I165: - | J165: - | K165: - | L165: - | M165: - | N165: - | O165: - | P165: 109 | Q165: 109
C166: 国府津町 | D166: 206-09 | E166: 62 | F166: - | G166: - | H166: - | I166: - | J166: - | K166: - | L166: - | M166: - | N166: - | O166: - | P166: 62 | Q166: 61
C167: 桜井村 | D167: 206-10 | E167: 97 | F167: - | G167: - | H167: - | I167: - | J167: - | K167: - | L167: - | M167: - | N167: - | O167: - | P167: 97 | Q167: 96
C168: (富水) | D168: 206-11 | E168: 89 | F168: 1 | G168: - | H168: 1 | I168: - | J168: - | K168: - | L168: - | M168: - | N168: - | O168: - | P168: 88 | Q168: 88
C169: 上府中村 | D169: 206-12 | E169: 77 | F169: - | G169: - | H169: - | I169: - | J169: - | K169: - | L169: - | M169: - | N169: - | O169: - | P169: 77 | Q169: 76
C170: 曽我村２－１ | D170: 206-13 | E170: 125 | F170: 1 | G170: - | H170: 1 | I170: - | J170: - | K170: - | L170: - | M170: - | N170: - | O170: - | P170: 124 | Q170: 124
C171: 豊川村 | D171: 206-14 | E171: 68 | F171: 1 | G171: - | H171: - | I171: - | J171: - | K171: 1 | L171: - | M171: - | N171: - | O171: - | P171: 67 | Q171: 67
C172: 下中村 | D172: 206-15 | E172: 115 | F172: 6 | G172: 1 | H172: 5 | I172: - | J172: - | K172: - | L172: - | M172: - | N172: - | O172: - | P172: 109 | Q172: 109
C173: 前羽村 | D173: 206-16 | E173: 51 | F173: - | G173: - | H173: - | I173: - | J173: - | K173: - | L173: - | M173: - | N173: - | O173: - | P173: 51 | Q173: 50
B174: 茅ヶ崎市 | D174: 207-00 | E174: 350 | F174: 7 | G174: - | H174: 6 | I174: 1 | J174: - | K174: - | L174: - | M174: - | N174: - | O174: - | P174: 343 | Q174: 343
C175: (茅ヶ崎町) | D175: 207-01 | E175: 10 | F175: - | G175: - | H175: - | I175: - | J175: - | K175: - | L175: - | M175: - | N175: - | O175: - | P175: 10 | Q175: 10
C176: (鶴嶺) | D176: 207-02 | E176: 126 | F176: 2 | G176: - | H176: 2 | I176: - | J176: - | K176: - | L176: - | M176: - | N176: - | O176: - | P176: 124 | Q176: 124
C177: (松林) | D177: 207-03 | E177: 97 | F177: 2 | G177: - | H177: 2 | I177: - | J177: - | K177: - | L177: - | M177: - | N177: - | O177: - | P177: 95 | Q177: 95
C178: 小出村２－２ | D178: 207-04 | E178: 117 | F178: 3 | G178: - | H178: 2 | I178: 1 | J178: - | K178: - | L178: - | M178: - | N178: - | O178: - | P178: 114 | Q178: 114
B179: 逗子市 | D179: 208-00 | E179: 2 | F179: X | G179: X | H179: X | I179: X | J179: X | K179: X | L179: X | M179: X | N179: X | O179: X | P179: X | Q179: X
B180: 三浦市 | D180: 210-00 | E180: 720 | F180: 5 | G180: - | H180: 4 | I180: - | J180: - | K180: 1 | L180: - | M180: - | N180: - | O180: - | P180: 715 | Q180: 715
C181: 南下浦町 | D181: 210-01 | E181: 346 | F181: 4 | G181: - | H181: 4 | I181: - | J181: - | K181: - | L181: - | M181: - | N181: - | O181: - | P181: 342 | Q181: 342
C182: 三崎町 | D182: 210-02 | E182: 123 | F182: - | G182: - | H182: - | I182: - | J182: - | K182: - | L182: - | M182: - | N182: - | O182: - | P182: 123 | Q182: 123
C183: 初声村 | D183: 210-03 | E183: 251 | F183: 1 | G183: - | H183: - | I183: - | J183: - | K183: 1 | L183: - | M183: - | N183: - | O183: - | P183: 250 | Q183: 250
B184: 秦野市 | D184: 211-00 | E184: 754 | F184: 12 | G184: 1 | H184: 9 | I184: - | J184: - | K184: 1 | L184: - | M184: 1 | N184: - | O184: - | P184: 742 | Q184: 742
C185: 秦野町 | D185: 211-01 | E185: 67 | F185: - | G185: - | H185: - | I185: - | J185: - | K185: - | L185: - | M185: - | N185: - | O185: - | P185: 67 | Q185: 67
C186: 東秦野村 | D186: 211-02 | E186: 128 | F186: 3 | G186: - | H186: 2 | I186: - | J186: - | K186: - | L186: - | M186: 1 | N186: - | O186: - | P186: 125 | Q186: 125
C187: 南秦野町 | D187: 211-03 | E187: 114 | F187: 3 | G187: 1 | H187: 1 | I187: - | J187: - | K187: 1 | L187: - | M187: - | N187: - | O187: - | P187: 111 | Q187: 111
C188: 北秦野村 | D188: 211-04 | E188: 106 | F188: 3 | G188: - | H188: 3 | I188: - | J188: - | K188: - | L188: - | M188: - | N188: - | O188: - | P188: 103 | Q188: 103
C189: 大根村２－２ | D189: 211-05 | E189: 116 | F189: 1 | G189: - | H189: 1 | I189: - | J189: - | K189: - | L189: - | M189: - | N189: - | O189: - | P189: 115 | Q189: 115
C190: 西秦野村 | D190: 211-06 | E190: 164 | F190: 1 | G190: - | H190: 1 | I190: - | J190: - | K190: - | L190: - | M190: - | N190: - | O190: - | P190: 163 | Q190: 163
C191: 上秦野村 | D191: 211-07 | E191: 59 | F191: 1 | G191: - | H191: 1 | I191: - | J191: - | K191: - | L191: - | M191: - | N191: - | O191: - | P191: 58 | Q191: 58
B192: 厚木市 | D192: 212-00 | E192: 787 | F192: 10 | G192: 1 | H192: 8 | I192: - | J192: - | K192: 1 | L192: - | M192: - | N192: - | O192: - | P192: 777 | Q192: 776
C193: 厚木町 | D193: 212-01 | E193: - | F193: - | G193: - | H193: - | I193: - | J193: - | K193: - | L193: - | M193: - | N193: - | O193: - | P193: - | Q193: -
C194: 依知村 | D194: 212-02 | E194: 158 | F194: 2 | G194: - | H194: 2 | I194: - | J194: - | K194: - | L194: - | M194: - | N194: - | O194: - | P194: 156 | Q194: 155
C195: 荻野村 | D195: 212-03 | E195: 65 | F195: - | G195: - | H195: - | I195: - | J195: - | K195: - | L195: - | M195: - | N195: - | O195: - | P195: 65 | Q195: 65
C196: 睦合村 | D196: 212-04 | E196: 137 | F196: 1 | G196: - | H196: - | I196: - | J196: - | K196: 1 | L196: - | M196: - | N196: - | O196: - | P196: 136 | Q196: 136
C197: 小鮎村 | D197: 212-05 | E197: 104 | F197: 5 | G197: 1 | H197: 4 | I197: - | J197: - | K197: - | L197: - | M197: - | N197: - | O197: - | P197: 99 | Q197: 99
C198: 玉川村 | D198: 212-06 | E198: 55 | F198: - | G198: - | H198: - | I198: - | J198: - | K198: - | L198: - | M198: - | N198: - | O198: - | P198: 55 | Q198: 55
C199: 南毛利村 | D199: 212-07 | E199: 133 | F199: 2 | G199: - | H199: 2 | I199: - | J199: - | K199: - | L199: - | M199: - | N199: - | O199: - | P199: 131 | Q199: 131
C200: 相川村 | D200: 212-08 | E200: 135 | F200: - | G200: - | H200: - | I200: - | J200: - | K200: - | L200: - | M200: - | N200: - | O200: - | P200: 135 | Q200: 135
B201: 大和市 | D201: 213-00 | E201: 194 | F201: 4 | G201: - | H201: 4 | I201: - | J201: - | K201: - | L201: - | M201: - | N201: - | O201: - | P201: 190 | Q201: 190
C202: 大和町 | D202: 213-01 | E202: 101 | F202: 2 | G202: - | H202: 2 | I202: - | J202: - | K202: - | L202: - | M202: - | N202: - | O202: - | P202: 99 | Q202: 99
C203: 渋谷村２－２ | D203: 213-02 | E203: 93 | F203: 2 | G203: - | H203: 2 | I203: - | J203: - | K203: - | L203: - | M203: - | N203: - | O203: - | P203: 91 | Q203: 91
B204: 伊勢原市 | D204: 214-00 | E204: 665 | F204: 26 | G204: 1 | H204: 22 | I204: 1 | J204: - | K204: - | L204: 1 | M204: - | N204: 1 | O204: - | P204: 639 | Q204: 639
C205: 伊勢原町 | D205: 214-01 | E205: 67 | F205: 2 | G205: - | H205: 2 | I205: - | J205: - | K205: - | L205: - | M205: - | N205: - | O205: - | P205: 65 | Q205: 65
... 60 more rows

Sheet 2020旧市町村 (hidden)
A1: Ⅱ 農業経営体（総数）
A2: ２ 組織形態別経営体数
X3: 単位：経営体
A4: 新旧市区町村 | I4: 合計 | J4: 法人化している | V4: 地方公共団 体・財産区 | W4: 法人化し ていない
J5: 計 | K5: 農事組合 法人 | L5: 会社 | Q5: 各種団体 | U5: その他の 法人 | X5: 個人経営体
A6: コード | E6: 名称 | L6: 小計 | M6: 株式会社 | N6: 合名・合資 会社 | O6: 合同会社 | P6: 相互会社 | Q6: 小計 | R6: 農協 | S6: 森林組合 | T6: その他の 各種団体
A7: 都道府県 | B7: 振興局 | C7: 市区町村 | D7: 旧市区町村 | E7: 都道府県 | F7: 振興局 | G7: 市区町村 | H7: 旧市区町村
A10: 14 | B10: 00 | C10: 000 | D10: 00 | E10: 神奈川県 | I10: 11402 | J10: 294 | K10: 17 | L10: 246 | M10: 238 | N10: 1 | O10: 7 | P10: - | Q10: 13 | R10: 12 | S10: - | T10: 1 | U10: 18 | V10: 1 | W10: 11107 | X10: 11091
A11: 14 | B11: 00 | C11: 100 | D11: 00 | E11: 神奈川県 | G11: 横浜市 | I11: 1931 | J11: 48 | K11: 2 | L11: 42 | M11: 40 | N11: - | O11: 2 | P11: - | Q11: - | R11: - | S11: - | T11: - | U11: 4 | V11: - | W11: 1883 | X11: 1879
A12: 14 | B12: 00 | C12: 101 | D12: 00 | E12: 神奈川県 | G12: 鶴見区 | I12: 17 | J12: 1 | K12: - | L12: 1 | M12: 1 | N12: - | O12: - | P12: - | Q12: - | R12: - | S12: - | T12: - | U12: - | V12: - | W12: 16 | X12: 16
A13: 14 | B13: 00 | C13: 102 | D13: 00 | E13: 神奈川県 | G13: 神奈川区 | I13: 122 | J13: 4 | K13: - | L13: 4 | M13: 3 | N13: - | O13: 1 | P13: - | Q13: - | R13: - | S13: - | T13: - | U13: - | V13: - | W13: 118 | X13: 118
A14: 14 | B14: 00 | C14: 103 | D14: 00 | E14: 神奈川県 | G14: 西区 | I14: 1 | J14: 1 | K14: x | L14: x | M14: x | N14: x | O14: x | P14: x | Q14: x | R14: x | S14: x | T14: x | U14: x | V14: x | W14: x | X14: -
A15: 14 | B15: 00 | C15: 104 | D15: 00 | E15: 神奈川県 | G15: 中区 | I15: - | J15: - | K15: - | L15: - | M15: - | N15: - | O15: - | P15: - | Q15: - | R15: - | S15: - | T15: - | U15: - | V15: - | W15: - | X15: -
A16: 14 | B16: 00 | C16: 105 | D16: 00 | E16: 神奈川県 | G16: 南区（南区２－１） | I16: 7 | J16: - | K16: x | L16: x | M16: x | N16: x | O16: x | P16: x | Q16: x | R16: x | S16: x | T16: x | U16: x | V16: x | W16: x | X16: 7
A17: 14 | B17: 00 | C17: 106 | D17: 00 | E17: 神奈川県 | G17: 保土ケ谷区 | I17: 84 | J17: 4 | K17: - | L17: 4 | M17: 4 | N17: - | O17: - | P17: - | Q17: - | R17: - | S17: - | T17: - | U17: - | V17: - | W17: 80 | X17: 80
A18: 14 | B18: 00 | C18: 106 | D18: 01 | E18: 神奈川県 | G18: 保土ケ谷区 | H18: 保土ケ谷区２－１ | I18: 64 | J18: 3 | K18: - | L18: 3 | M18: 3 | N18: - | O18: - | P18: - | Q18: - | R18: - | S18: - | T18: - | U18: - | V18: - | W18: 61 | X18: 61
A19: 14 | B19: 00 | C19: 106 | D19: 02 | E19: 神奈川県 | G19: 保土ケ谷区 | H19: 二俣川村２－１ | I19: 2 | J19: - | K19: x | L19: x | M19: x | N19: x | O19: x | P19: x | Q19: x | R19: x | S19: x | T19: x | U19: x | V19: x | W19: x | X19: 2
A20: 14 | B20: 00 | C20: 106 | D20: 03 | E20: 神奈川県 | G20: 保土ケ谷区 | H20: 新治村２－１ | I20: 18 | J20: 1 | K20: x | L20: x | M20: x | N20: x | O20: x | P20: x | Q20: x | R20: x | S20: x | T20: x | U20: x | V20: x | W20: x | X20: 17
A21: 14 | B21: 00 | C21: 107 | D21: 00 | E21: 神奈川県 | G21: 磯子区 | I21: 18 | J21: 1 | K21: - | L21: 1 | M21: 1 | N21: - | O21: - | P21: - | Q21: - | R21: - | S21: - | T21: - | U21: - | V21: - | W21: 17 | X21: 17
A22: 14 | B22: 00 | C22: 108 | D22: 00 | E22: 神奈川県 | G22: 金沢区 | I22: 26 | J22: 1 | K22: - | L22: 1 | M22: 1 | N22: - | O22: - | P22: - | Q22: - | R22: - | S22: - | T22: - | U22: - | V22: - | W22: 25 | X22: 25
A23: 14 | B23: 00 | C23: 109 | D23: 00 | E23: 神奈川県 | G23: 港北区 | I23: 215 | J23: 5 | K23: - | L23: 4 | M23: 4 | N23: - | O23: - | P23: - | Q23: - | R23: - | S23: - | T23: - | U23: 1 | V23: - | W23: 210 | X23: 210
A24: 14 | B24: 00 | C24: 109 | D24: 01 | E24: 神奈川県 | G24: 港北区 | H24: 港北 | I24: 86 | J24: 2 | K24: - | L24: 1 | M24: 1 | N24: - | O24: - | P24: - | Q24: - | R24: - | S24: - | T24: - | U24: 1 | V24: - | W24: 84 | X24: 84
A25: 14 | B25: 00 | C25: 109 | D25: 02 | E25: 神奈川県 | G25: 港北区 | H25: 新田村２－１ | I25: 129 | J25: 3 | K25: - | L25: 3 | M25: 3 | N25: - | O25: - | P25: - | Q25: - | R25: - | S25: - | T25: - | U25: - | V25: - | W25: 126 | X25: 126
A26: 14 | B26: 00 | C26: 110 | D26: 00 | E26: 神奈川県 | G26: 戸塚区 | I26: 175 | J26: 7 | K26: - | L26: 6 | M26: 6 | N26: - | O26: - | P26: - | Q26: - | R26: - | S26: - | T26: - | U26: 1 | V26: - | W26: 168 | X26: 168
A27: 14 | B27: 00 | C27: 110 | D27: 01 | E27: 神奈川県 | G27: 戸塚区 | H27: 戸塚町 | I27: 15 | J27: - | K27: - | L27: - | M27: - | N27: - | O27: - | P27: - | Q27: - | R27: - | S27: - | T27: - | U27: - | V27: - | W27: 15 | X27: 15
A28: 14 | B28: 00 | C28: 110 | D28: 02 | E28: 神奈川県 | G28: 戸塚区 | H28: 豊田村２－１ | I28: 4 | J28: 1 | K28: - | L28: 1 | M28: 1 | N28: - | O28: - | P28: - | Q28: - | R28: - | S28: - | T28: - | U28: - | V28: - | W28: 3 | X28: 3
A29: 14 | B29: 00 | C29: 110 | D29: 03 | E29: 神奈川県 | G29: 戸塚区 | H29: 川上村 | I29: 35 | J29: 3 | K29: - | L29: 3 | M29: 3 | N29: - | O29: - | P29: - | Q29: - | R29: - | S29: - | T29: - | U29: - | V29: - | W29: 32 | X29: 32
A30: 14 | B30: 00 | C30: 110 | D30: 04 | E30: 神奈川県 | G30: 戸塚区 | H30: 大正村２－１ | I30: 101 | J30: 3 | K30: - | L30: 2 | M30: 2 | N30: - | O30: - | P30: - | Q30: - | R30: - | S30: - | T30: - | U30: 1 | V30: - | W30: 98 | X30: 98
A31: 14 | B31: 00 | C31: 110 | D31: 05 | E31: 神奈川県 | G31: 戸塚区 | H31: 中川村３－１ | I31: 20 | J31: - | K31: - | L31: - | M31: - | N31: - | O31: - | P31: - | Q31: - | R31: - | S31: - | T31: - | U31: - | V31: - | W31: 20 | X31: 20
A32: 14 | B32: 00 | C32: 111 | D32: 00 | E32: 神奈川県 | G32: 港南区（南区２－２） | I32: 43 | J32: - | K32: - | L32: - | M32: - | N32: - | O32: - | P32: - | Q32: - | R32: - | S32: - | T32: - | U32: - | V32: - | W32: 43 | X32: 42
A33: 14 | B33: 00 | C33: 112 | D33: 00 | E33: 神奈川県 | G33: 旭区 | I33: 116 | J33: 1 | K33: - | L33: 1 | M33: 1 | N33: - | O33: - | P33: - | Q33: - | R33: - | S33: - | T33: - | U33: - | V33: - | W33: 115 | X33: 115
A34: 14 | B34: 00 | C34: 112 | D34: 01 | E34: 神奈川県 | G34: 旭区 | H34: 保土ケ谷区２－２ | I34: 10 | J34: - | K34: - | L34: - | M34: - | N34: - | O34: - | P34: - | Q34: - | R34: - | S34: - | T34: - | U34: - | V34: - | W34: 10 | X34: 10
A35: 14 | B35: 00 | C35: 112 | D35: 02 | E35: 神奈川県 | G35: 旭区 | H35: 二俣川村２－２ | I35: 42 | J35: - | K35: - | L35: - | M35: - | N35: - | O35: - | P35: - | Q35: - | R35: - | S35: - | T35: - | U35: - | V35: - | W35: 42 | X35: 42
A36: 14 | B36: 00 | C36: 112 | D36: 03 | E36: 神奈川県 | G36: 旭区 | H36: 都岡村 | I36: 64 | J36: 1 | K36: - | L36: 1 | M36: 1 | N36: - | O36: - | P36: - | Q36: - | R36: - | S36: - | T36: - | U36: - | V36: - | W36: 63 | X36: 63
A37: 14 | B37: 00 | C37: 113 | D37: 00 | E37: 神奈川県 | G37: 緑区 | I37: 214 | J37: 3 | K37: - | L37: 3 | M37: 3 | N37: - | O37: - | P37: - | Q37: - | R37: - | S37: - | T37: - | U37: - | V37: - | W37: 211 | X37: 211
A38: 14 | B38: 00 | C38: 113 | D38: 01 | E38: 神奈川県 | G38: 緑区 | H38: 中里村２－１ | I38: 65 | J38: 2 | K38: - | L38: 2 | M38: 2 | N38: - | O38: - | P38: - | Q38: - | R38: - | S38: - | T38: - | U38: - | V38: - | W38: 63 | X38: 63
A39: 14 | B39: 00 | C39: 113 | D39: 02 | E39: 神奈川県 | G39: 緑区 | H39: 田奈村２－１ | I39: 67 | J39: 1 | K39: - | L39: 1 | M39: 1 | N39: - | O39: - | P39: - | Q39: - | R39: - | S39: - | T39: - | U39: - | V39: - | W39: 66 | X39: 66
A40: 14 | B40: 00 | C40: 113 | D40: 03 | E40: 神奈川県 | G40: 緑区 | H40: 新治村２－２ | I40: 82 | J40: - | K40: - | L40: - | M40: - | N40: - | O40: - | P40: - | Q40: - | R40: - | S40: - | T40: - | U40: - | V40: - | W40: 82 | X40: 82
A41: 14 | B41: 00 | C41: 114 | D41: 00 | E41: 神奈川県 | G41: 瀬谷区 | I41: 154 | J41: 4 | K41: - | L41: 4 | M41: 4 | N41: - | O41: - | P41: - | Q41: - | R41: - | S41: - | T41: - | U41: - | V41: - | W41: 150 | X41: 150
A42: 14 | B42: 00 | C42: 114 | D42: 01 | E42: 神奈川県 | G42: 瀬谷区 | H42: 中川村３－２ | I42: 39 | J42: 2 | K42: - | L42: 2 | M42: 2 | N42: - | O42: - | P42: - | Q42: - | R42: - | S42: - | T42: - | U42: - | V42: - | W42: 37 | X42: 37
A43: 14 | B43: 00 | C43: 114 | D43: 02 | E43: 神奈川県 | G43: 瀬谷区 | H43: 瀬谷村 | I43: 115 | J43: 2 | K43: - | L43: 2 | M43: 2 | N43: - | O43: - | P43: - | Q43: - | R43: - | S43: - | T43: - | U43: - | V43: - | W43: 113 | X43: 113
A44: 14 | B44: 00 | C44: 115 | D44: 00 | E44: 神奈川県 | G44: 栄区 | I44: 49 | J44: 2 | K44: - | L44: 2 | M44: 1 | N44: - | O44: 1 | P44: - | Q44: - | R44: - | S44: - | T44: - | U44: - | V44: - | W44: 47 | X44: 47
A45: 14 | B45: 00 | C45: 115 | D45: 01 | E45: 神奈川県 | G45: 栄区 | H45: 本郷村 | I45: 22 | J45: - | K45: - | L45: - | M45: - | N45: - | O45: - | P45: - | Q45: - | R45: - | S45: - | T45: - | U45: - | V45: - | W45: 22 | X45: 22
A46: 14 | B46: 00 | C46: 115 | D46: 02 | E46: 神奈川県 | G46: 栄区 | H46: 豊田村２－２ | I46: 27 | J46: 2 | K46: - | L46: 2 | M46: 1 | N46: - | O46: 1 | P46: - | Q46: - | R46: - | S46: - | T46: - | U46: - | V46: - | W46: 25 | X46: 25
A47: 14 | B47: 00 | C47: 116 | D47: 00 | E47: 神奈川県 | G47: 泉区 | I47: 247 | J47: 7 | K47: 1 | L47: 5 | M47: 5 | N47: - | O47: - | P47: - | Q47: - | R47: - | S47: - | T47: - | U47: 1 | V47: - | W47: 240 | X47: 238
A48: 14 | B48: 00 | C48: 116 | D48: 01 | E48: 神奈川県 | G48: 泉区 | H48: 中和田村 | I48: 217 | J48: 7 | K48: 1 | L48: 5 | M48: 5 | N48: - | O48: - | P48: - | Q48: - | R48: - | S48: - | T48: - | U48: 1 | V48: - | W48: 210 | X48: 208
A49: 14 | B49: 00 | C49: 116 | D49: 02 | E49: 神奈川県 | G49: 泉区 | H49: 中川村３－３ | I49: 30 | J49: - | K49: - | L49: - | M49: - | N49: - | O49: - | P49: - | Q49: - | R49: - | S49: - | T49: - | U49: - | V49: - | W49: 30 | X49: 30
A50: 14 | B50: 00 | C50: 116 | D50: 03 | E50: 神奈川県 | G50: 泉区 | H50: 大正村２－２ | I50: - | J50: - | K50: - | L50: - | M50: - | N50: - | O50: - | P50: - | Q50: - | R50: - | S50: - | T50: - | U50: - | V50: - | W50: - | X50: -
A51: 14 | B51: 00 | C51: 117 | D51: 00 | E51: 神奈川県 | G51: 青葉区 | I51: 178 | J51: 1 | K51: 1 | L51: - | M51: - | N51: - | O51: - | P51: - | Q51: - | R51: - | S51: - | T51: - | U51: - | V51: - | W51: 177 | X51: 177
A52: 14 | B52: 00 | C52: 117 | D52: 01 | E52: 神奈川県 | G52: 青葉区 | H52: 山内村２－１ | I52: 42 | J52: - | K52: - | L52: - | M52: - | N52: - | O52: - | P52: - | Q52: - | R52: - | S52: - | T52: - | U52: - | V52: - | W52: 42 | X52: 42
A53: 14 | B53: 00 | C53: 117 | D53: 02 | E53: 神奈川県 | G53: 青葉区 | H53: 中里村２－２ | I53: 77 | J53: - | K53: - | L53: - | M53: - | N53: - | O53: - | P53: - | Q53: - | R53: - | S53: - | T53: - | U53: - | V53: - | W53: 77 | X53: 77
A54: 14 | B54: 00 | C54: 117 | D54: 03 | E54: 神奈川県 | G54: 青葉区 | H54: 田奈村２－２ | I54: 59 | J54: 1 | K54: 1 | L54: - | M54: - | N54: - | O54: - | P54: - | Q54: - | R54: - | S54: - | T54: - | U54: - | V54: - | W54: 58 | X54: 58
A55: 14 | B55: 00 | C55: 117 | D55: 04 | E55: 神奈川県 | G55: 青葉区 | H55: 都筑中川村２－１ | I55: - | J55: - | K55: - | L55: - | M55: - | N55: - | O55: - | P55: - | Q55: - | R55: - | S55: - | T55: - | U55: - | V55: - | W55: - | X55: -
A56: 14 | B56: 00 | C56: 117 | D56: 05 | E56: 神奈川県 | G56: 青葉区 | H56: 川和町２－１ | I56: - | J56: - | K56: - | L56: - | M56: - | N56: - | O56: - | P56: - | Q56: - | R56: - | S56: - | T56: - | U56: - | V56: - | W56: - | X56: -
A57: 14 | B57: 00 | C57: 118 | D57: 00 | E57: 神奈川県 | G57: 都筑区 | I57: 265 | J57: 6 | K57: - | L57: 5 | M57: 5 | N57: - | O57: - | P57: - | Q57: - | R57: - | S57: - | T57: - | U57: 1 | V57: - | W57: 259 | X57: 258
A58: 14 | B58: 00 | C58: 118 | D58: 01 | E58: 神奈川県 | G58: 都筑区 | H58: 新田村２－２ | I58: 3 | J58: - | K58: - | L58: - | M58: - | N58: - | O58: - | P58: - | Q58: - | R58: - | S58: - | T58: - | U58: - | V58: - | W58: 3 | X58: 3
A59: 14 | B59: 00 | C59: 118 | D59: 02 | E59: 神奈川県 | G59: 都筑区 | H59: 都筑中川村２－２ | I59: 66 | J59: - | K59: - | L59: - | M59: - | N59: - | O59: - | P59: - | Q59: - | R59: - | S59: - | T59: - | U59: - | V59: - | W59: 66 | X59: 66
A60: 14 | B60: 00 | C60: 118 | D60: 03 | E60: 神奈川県 | G60: 都筑区 | H60: 川和町２－２ | I60: 178 | J60: 6 | K60: - | L60: 5 | M60: 5 | N60: - | O60: - | P60: - | Q60: - | R60: - | S60: - | T60: - | U60: 1 | V60: - | W60: 172 | X60: 171
A61: 14 | B61: 00 | C61: 118 | D61: 04 | E61: 神奈川県 | G61: 都筑区 | H61: 山内村２－２ | I61: 18 | J61: - | K61: - | L61: - | M61: - | N61: - | O61: - | P61: - | Q61: - | R61: - | S61: - | T61: - | U61: - | V61: - | W61: 18 | X61: 18
A62: 14 | B62: 00 | C62: 130 | D62: 00 | E62: 神奈川県 | G62: 川崎市 | I62: 590 | J62: 7 | K62: 1 | L62: 5 | M62: 5 | N62: - | O62: - | P62: - | Q62: - | R62: - | S62: - | T62: - | U62: 1 | V62: - | W62: 583 | X62: 583
A63: 14 | B63: 00 | C63: 131 | D63: 00 | E63: 神奈川県 | G63: 川崎区 | I63: - | J63: - | K63: - | L63: - | M63: - | N63: - | O63: - | P63: - | Q63: - | R63: - | S63: - | T63: - | U63: - | V63: - | W63: - | X63: -
A64: 14 | B64: 00 | C64: 132 | D64: 00 | E64: 神奈川県 | G64: 幸区 | I64: 5 | J64: - | K64: - | L64: - | M64: - | N64: - | O64: - | P64: - | Q64: - | R64: - | S64: - | T64: - | U64: - | V64: - | W64: 5 | X64: 5
A65: 14 | B65: 00 | C65: 133 | D65: 00 | E65: 神奈川県 | G65: 中原区 | I65: 40 | J65: - | K65: - | L65: - | M65: - | N65: - | O65: - | P65: - | Q65: - | R65: - | S65: - | T65: - | U65: - | V65: - | W65: 40 | X65: 40
A66: 14 | B66: 00 | C66: 134 | D66: 00 | E66: 神奈川県 | G66: 高津区 | I66: 102 | J66: 2 | K66: - | L66: 2 | M66: 2 | N66: - | O66: - | P66: - | Q66: - | R66: - | S66: - | T66: - | U66: - | V66: - | W66: 100 | X66: 100
A67: 14 | B67: 00 | C67: 134 | D67: 01 | E67: 神奈川県 | G67: 高津区 | H67: 高津町 | I67: 30 | J67: 1 | K67: - | L67: 1 | M67: 1 | N67: - | O67: - | P67: - | Q67: - | R67: - | S67: - | T67: - | U67: - | V67: - | W67: 29 | X67: 29
A68: 14 | B68: 00 | C68: 134 | D68: 02 | E68: 神奈川県 | G68: 高津区 | H68: 宮前村２－１ | I68: 3 | J68: - | K68: - | L68: - | M68: - | N68: - | O68: - | P68: - | Q68: - | R68: - | S68: - | T68: - | U68: - | V68: - | W68: 3 | X68: 3
A69: 14 | B69: 00 | C69: 134 | D69: 03 | E69: 神奈川県 | G69: 高津区 | H69: 橘村 | I69: 53 | J69: 1 | K69: - | L69: 1 | M69: 1 | N69: - | O69: - | P69: - | Q69: - | R69: - | S69: - | T69: - | U69: - | V69: - | W69: 52 | X69: 52
A70: 14 | B70: 00 | C70: 134 | D70: 04 | E70: 神奈川県 | G70: 高津区 | H70: 向ヶ丘村３－１ | I70: 16 | J70: - | K70: - | L70: - | M70: - | N70: - | O70: - | P70: - | Q70: - | R70: - | S70: - | T70: - | U70: - | V70: - | W70: 16 | X70: 16
A71: 14 | B71: 00 | C71: 135 | D71: 00 | E71: 神奈川県 | G71: 多摩区 | I71: 135 | J71: - | K71: - | L71: - | M71: - | N71: - | O71: - | P71: - | Q71: - | R71: - | S71: - | T71: - | U71: - | V71: - | W71: 135 | X71: 135
A72: 14 | B72: 00 | C72: 135 | D72: 01 | E72: 神奈川県 | G72: 多摩区 | H72: 稲田町 | I72: 85 | J72: - | K72: - | L72: - | M72: - | N72: - | O72: - | P72: - | Q72: - | R72: - | S72: - | T72: - | U72: - | V72: - | W72: 85 | X72: 85
A73: 14 | B73: 00 | C73: 135 | D73: 02 | E73: 神奈川県 | G73: 多摩区 | H73: 生田村２－１ | I73: 45 | J73: - | K73: - | L73: - | M73: - | N73: - | O73: - | P73: - | Q73: - | R73: - | S73: - | T73: - | U73: - | V73: - | W73: 45 | X73: 45
A74: 14 | B74: 00 | C74: 135 | D74: 03 | E74: 神奈川県 | G74: 多摩区 | H74: 向ヶ丘村３－２ | I74: 5 | J74: - | K74: - | L74: - | M74: - | N74: - | O74: - | P74: - | Q74: - | R74: - | S74: - | T74: - | U74: - | V74: - | W74: 5 | X74: 5
A75: 14 | B75: 00 | C75: 136 | D75: 00 | E75: 神奈川県 | G75: 宮前区 | I75: 160 | J75: 3 | K75: 1 | L75: 1 | M75: 1 | N75: - | O75: - | P75: - | Q75: - | R75: - | S75: - | T75: - | U75: 1 | V75: - | W75: 157 | X75: 157
A76: 14 | B76: 00 | C76: 136 | D76: 01 | E76: 神奈川県 | G76: 宮前区 | H76: 宮前村２－２ | I76: 104 | J76: 1 | K76: - | L76: 1 | M76: 1 | N76: - | O76: - | P76: - | Q76: - | R76: - | S76: - | T76: - | U76: - | V76: - | W76: 103 | X76: 103
A77: 14 | B77: 00 | C77: 136 | D77: 02 | E77: 神奈川県 | G77: 宮前区 | H77: 向ヶ丘村３－３ | I77: 56 | J77: 2 | K77: 1 | L77: - | M77: - | N77: - | O77: - | P77: - | Q77: - | R77: - | S77: - | T77: - | U77: 1 | V77: - | W77: 54 | X77: 54
A78: 14 | B78: 00 | C78: 137 | D78: 00 | E78: 神奈川県 | G78: 麻生区 | I78: 148 | J78: 2 | K78: - | L78: 2 | M78: 2 | N78: - | O78: - | P78: - | Q78: - | R78: - | S78: - | T78: - | U78: - | V78: - | W78: 146 | X78: 146
A79: 14 | B79: 00 | C79: 137 | D79: 01 | E79: 神奈川県 | G79: 麻生区 | H79: 生田村２－２ | I79: 30 | J79: - | K79: - | L79: - | M79: - | N79: - | O79: - | P79: - | Q79: - | R79: - | S79: - | T79: - | U79: - | V79: - | W79: 30 | X79: 30
A80: 14 | B80: 00 | C80: 137 | D80: 02 | E80: 神奈川県 | G80: 麻生区 | H80: 柿生村 | I80: 118 | J80: 2 | K80: - | L80: 2 | M80: 2 | N80: - | O80: - | P80: - | Q80: - | R80: - | S80: - | T80: - | U80: - | V80: - | W80: 116 | X80: 116
A81: 14 | B81: 00 | C81: 150 | D81: 00 | E81: 神奈川県 | G81: 相模原市 | I81: 488 | J81: 37 | K81: 2 | L81: 32 | M81: 32 | N81: - | O81: - | P81: - | Q81: 1 | R81: 1 | S81: - | T81: - | U81: 2 | V81: 1 | W81: 450 | X81: 446
A82: 14 | B82: 00 | C82: 151 | D82: 00 | E82: 神奈川県 | G82: 緑区 | I82: 223 | J82: 17 | K82: 1 | L82: 14 | M82: 14 | N82: - | O82: - | P82: - | Q82: 1 | R82: 1 | S82: - | T82: - | U82: 1 | V82: - | W82: 206 | X82: 202
A83: 14 | B83: 00 | C83: 151 | D83: 01 | E83: 神奈川県 | G83: 緑区 | H83: （橋本）・（旧相原村）２－１ | I83: 20 | J83: 1 | K83: - | L83: 1 | M83: 1 | N83: - | O83: - | P83: - | Q83: - | R83: - | S83: - | T83: - | U83: - | V83: - | W83: 19 | X83: 19
A84: 14 | B84: 00 | C84: 151 | D84: 02 | E84: 神奈川県 | G84: 緑区 | H84: 大沢村２－１ | I84: 62 | J84: 5 | K84: - | L84: 3 | M84: 3 | N84: - | O84: - | P84: - | Q84: 1 | R84: 1 | S84: - | T84: - | U84: 1 | V84: - | W84: 57 | X84: 57
A85: 14 | B85: 00 | C85: 151 | D85: 03 | E85: 神奈川県 | G85: 緑区 | H85: 田名村２－１ | I85: - | J85: - | K85: - | L85: - | M85: - | N85: - | O85: - | P85: - | Q85: - | R85: - | S85: - | T85: - | U85: - | V85: - | W85: - | X85: -
A86: 14 | B86: 00 | C86: 151 | D86: 04 | E86: 神奈川県 | G86: 緑区 | H86: 青根村 | I86: - | J86: - | K86: - | L86: - | M86: - | N86: - | O86: - | P86: - | Q86: - | R86: - | S86: - | T86: - | U86: - | V86: - | W86: - | X86: -
A87: 14 | B87: 00 | C87: 151 | D87: 05 | E87: 神奈川県 | G87: 緑区 | H87: 串川村 | I87: 17 | J87: 2 | K87: - | L87: 2 | M87: 2 | N87: - | O87: - | P87: - | Q87: - | R87: - | S87: - | T87: - | U87: - | V87: - | W87: 15 | X87: 15
A88: 14 | B88: 00 | C88: 151 | D88: 06 | E88: 神奈川県 | G88: 緑区 | H88: 中野町 | I88: 24 | J88: 1 | K88: - | L88: 1 | M88: 1 | N88: - | O88: - | P88: - | Q88: - | R88: - | S88: - | T88: - | U88: - | V88: - | W88: 23 | X88: 23
A89: 14 | B89: 00 | C89: 151 | D89: 07 | E89: 神奈川県 | G89: 緑区 | H89: 鳥屋村 | I89: 8 | J89: - | K89: - | L89: - | M89: - | N89: - | O89: - | P89: - | Q89: - | R89: - | S89: - | T89: - | U89: - | V89: - | W89: 8 | X89: 8
A90: 14 | B90: 00 | C90: 151 | D90: 08 | E90: 神奈川県 | G90: 緑区 | H90: 青野原村 | I90: 5 | J90: 1 | K90: 1 | L90: - | M90: - | N90: - | O90: - | P90: - | Q90: - | R90: - | S90: - | T90: - | U90: - | V90: - | W90: 4 | X90: 4
A91: 14 | B91: 00 | C91: 151 | D91: 09 | E91: 神奈川県 | G91: 緑区 | H91: 三沢村２－２ | I91: - | J91: - | K91: - | L91: - | M91: - | N91: - | O91: - | P91: - | Q91: - | R91: - | S91: - | T91: - | U91: - | V91: - | W91: - | X91: -
A92: 14 | B92: 00 | C92: 151 | D92: 10 | E92: 神奈川県 | G92: 緑区 | H92: 内郷村 | I92: 17 | J92: 1 | K92: - | L92: 1 | M92: 1 | N92: - | O92: - | P92: - | Q92: - | R92: - | S92: - | T92: - | U92: - | V92: - | W92: 16 | X92: 15
A93: 14 | B93: 00 | C93: 151 | D93: 11 | E93: 神奈川県 | G93: 緑区 | H93: 与瀬町 | I93: 4 | J93: - | K93: - | L93: - | M93: - | N93: - | O93: - | P93: - | Q93: - | R93: - | S93: - | T93: - | U93: - | V93: - | W93: 4 | X93: 4
A94: 14 | B94: 00 | C94: 151 | D94: 12 | E94: 神奈川県 | G94: 緑区 | H94: 千木良村 | I94: 4 | J94: - | K94: - | L94: - | M94: - | N94: - | O94: - | P94: - | Q94: - | R94: - | S94: - | T94: - | U94: - | V94: - | W94: 4 | X94: 4
A95: 14 | B95: 00 | C95: 151 | D95: 13 | E95: 神奈川県 | G95: 緑区 | H95: 小原町 | I95: - | J95: - | K95: - | L95: - | M95: - | N95: - | O95: - | P95: - | Q95: - | R95: - | S95: - | T95: - | U95: - | V95: - | W95: - | X95: -
A96: 14 | B96: 00 | C96: 151 | D96: 14 | E96: 神奈川県 | G96: 緑区 | H96: 湘南村 | I96: 14 | J96: 1 | K96: - | L96: 1 | M96: 1 | N96: - | O96: - | P96: - | Q96: - | R96: - | S96: - | T96: - | U96: - | V96: - | W96: 13 | X96: 12
A97: 14 | B97: 00 | C97: 151 | D97: 15 | E97: 神奈川県 | G97: 緑区 | H97: 川尻村 | I97: 24 | J97: 2 | K97: - | L97: 2 | M97: 2 | N97: - | O97: - | P97: - | Q97: - | R97: - | S97: - | T97: - | U97: - | V97: - | W97: 22 | X97: 22
A98: 14 | B98: 00 | C98: 151 | D98: 16 | E98: 神奈川県 | G98: 緑区 | H98: 三沢村２－１ | I98: 4 | J98: 1 | K98: - | L98: 1 | M98: 1 | N98: - | O98: - | P98: - | Q98: - | R98: - | S98: - | T98: - | U98: - | V98: - | W98: 3 | X98: 3
A99: 14 | B99: 00 | C99: 151 | D99: 17 | E99: 神奈川県 | G99: 緑区 | H99: 日連村 | I99: 4 | J99: - | K99: - | L99: - | M99: - | N99: - | O99: - | P99: - | Q99: - | R99: - | S99: - | T99: - | U99: - | V99: - | W99: 4 | X99: 4
A100: 14 | B100: 00 | C100: 151 | D100: 18 | E100: 神奈川県 | G100: 緑区 | H100: 吉野町 | I100: 2 | J100: - | K100: x | L100: x | M100: x | N100: x | O100: x | P100: x | Q100: x | R100: x | S100: x | T100: x | U100: x | V100: x | W100: x | X100: 2
A101: 14 | B101: 00 | C101: 151 | D101: 19 | E101: 神奈川県 | G101: 緑区 | H101: 小渕村 | I101: 1 | J101: - | K101: x | L101: x | M101: x | N101: x | O101: x | P101: x | Q101: x | R101: x | S101: x | T101: x | U101: x | V101: x | W101: x | X101: 1
A102: 14 | B102: 00 | C102: 151 | D102: 20 | E102: 神奈川県 | G102: 緑区 | H102: 沢井村 | I102: 3 | J102: - | K102: - | L102: - | M102: - | N102: - | O102: - | P102: - | Q102: - | R102: - | S102: - | T102: - | U102: - | V102: - | W102: 3 | X102: 3
A103: 14 | B103: 00 | C103: 151 | D103: 21 | E103: 神奈川県 | G103: 緑区 | H103: 牧野村 | I103: 7 | J103: 2 | K103: - | L103: 2 | M103: 2 | N103: - | O103: - | P103: - | Q103: - | R103: - | S103: - | T103: - | U103: - | V103: - | W103: 5 | X103: 4
A104: 14 | B104: 00 | C104: 151 | D104: 22 | E104: 神奈川県 | G104: 緑区 | H104: 佐野川村 | I104: 2 | J104: - | K104: x | L104: x | M104: x | N104: x | O104: x | P104: x | Q104: x | R104: x | S104: x | T104: x | U104: x | V104: x | W104: x | X104: 1
A105: 14 | B105: 00 | C105: 151 | D105: 23 | E105: 神奈川県 | G105: 緑区 | H105: 名倉村 | I105: 1 | J105: - | K105: x | L105: x | M105: x | N105: x | O105: x | P105: x | Q105: x | R105: x | S105: x | T105: x | U105: x | V105: x | W105: x | X105: 1
A106: 14 | B106: 00 | C106: 152 | D106: 00 | E106: 神奈川県 | G106: 中央区 | I106: 101 | J106: 6 | K106: 1 | L106: 5 | M106: 5 | N106: - | O106: - | P106: - | Q106: - | R106: - | S106: - | T106: - | U106: - | V106: 1 | W106: 94 | X106: 94
A107: 14 | B107: 00 | C107: 152 | D107: 01 | E107: 神奈川県 | G107: 中央区 | H107: （橋本）・（旧相原村）２－２ | I107: 6 | J107: - | K107: x | L107: x | M107: x | N107: x | O107: x | P107: x | Q107: x | R107: x | S107: x | T107: x | U107: x | V107: x | W107: x | X107: 5
A108: 14 | B108: 00 | C108: 152 | D108: 02 | E108: 神奈川県 | G108: 中央区 | H108: 大沢村２－２ | I108: 2 | J108: - | K108: x | L108: x | M108: x | N108: x | O108: x | P108: x | Q108: x | R108: x | S108: x | T108: x | U108: x | V108: x | W108: x | X108: 2
A109: 14 | B109: 00 | C109: 152 | D109: 03 | E109: 神奈川県 | G109: 中央区 | H109: 田名村２－２ | I109: 48 | J109: 4 | K109: 1 | L109: 3 | M109: 3 | N109: - | O109: - | P109: - | Q109: - | R109: - | S109: - | T109: - | U109: - | V109: - | W109: 44 | X109: 44
A110: 14 | B110: 00 | C110: 152 | D110: 04 | E110: 神奈川県 | G110: 中央区 | H110: 上溝町２－1 | I110: 37 | J110: 2 | K110: - | L110: 2 | M110: 2 | N110: - | O110: - | P110: - | Q110: - | R110: - | S110: - | T110: - | U110: - | V110: - | W110: 35 | X110: 35
A111: 14 | B111: 00 | C111: 152 | D111: 05 | E111: 神奈川県 | G111: 中央区 | H111: 麻溝村２－1 | I111: - | J111: - | K111: - | L111: - | M111: - | N111: - | O111: - | P111: - | Q111: - | R111: - | S111: - | T111: - | U111: - | V111: - | W111: - | X111: -
A112: 14 | B112: 00 | C112: 152 | D112: 06 | E112: 神奈川県 | G112: 中央区 | H112: （大野村北）２－1 | I112: 8 | J112: - | K112: - | L112: - | M112: - | N112: - | O112: - | P112: - | Q112: - | R112: - | S112: - | T112: - | U112: - | V112: - | W112: 8 | X112: 8
A113: 14 | B113: 00 | C113: 153 | D113: 00 | E113: 神奈川県 | G113: 南区 | I113: 164 | J113: 14 | K113: - | L113: 13 | M113: 13 | N113: - | O113: - | P113: - | Q113: - | R113: - | S113: - | T113: - | U113: 1 | V113: - | W113: 150 | X113: 150
A114: 14 | B114: 00 | C114: 153 | D114: 01 | E114: 神奈川県 | G114: 南区 | H114: 上溝町２－２ | I114: - | J114: - | K114: - | L114: - | M114: - | N114: - | O114: - | P114: - | Q114: - | R114: - | S114: - | T114: - | U114: - | V114: - | W114: - | X114: -
A115: 14 | B115: 00 | C115: 153 | D115: 02 | E115: 神奈川県 | G115: 南区 | H115: 麻溝村２－２ | I115: 61 | J115: 7 | K115: - | L115: 7 | M115: 7 | N115: - | O115: - | P115: - | Q115: - | R115: - | S115: - | T115: - | U115: - | V115: - | W115: 54 | X115: 54
A116: 14 | B116: 00 | C116: 153 | D116: 03 | E116: 神奈川県 | G116: 南区 | H116: （大野村北）２－２ | I116: - | J116: - | K116: - | L116: - | M116: - | N116: - | O116: - | P116: - | Q116: - | R116: - | S116: - | T116: - | U116: - | V116: - | W116: - | X116: -
A117: 14 | B117: 00 | C117: 153 | D117: 04 | E117: 神奈川県 | G117: 南区 | H117: （大野村中） | I117: 24 | J117: 1 | K117: - | L117: 1 | M117: 1 | N117: - | O117: - | P117: - | Q117: - | R117: - | S117: - | T117: - | U117: - | V117: - | W117: 23 | X117: 23
A118: 14 | B118: 00 | C118: 153 | D118: 05 | E118: 神奈川県 | G118: 南区 | H118: （大野村南） | I118: 30 | J118: 2 | K118: - | L118: 1 | M118: 1 | N118: - | O118: - | P118: - | Q118: - | R118: - | S118: - | T118: - | U118: 1 | V118: - | W118: 28 | X118: 28
A119: 14 | B119: 00 | C119: 153 | D119: 06 | E119: 神奈川県 | G119: 南区 | H119: 新磯村 | I119: 49 | J119: 4 | K119: - | L119: 4 | M119: 4 | N119: - | O119: - | P119: - | Q119: - | R119: - | S119: - | T119: - | U119: - | V119: - | W119: 45 | X119: 45
A120: 14 | B120: 00 | C120: 201 | D120: 00 | E120: 神奈川県 | G120: 横須賀市 | I120: 333 | J120: 10 | K120: 1 | L120: 9 | M120: 8 | N120: - | O120: 1 | P120: - | Q120: - | R120: - | S120: - | T120: - | U120: - | V120: - | W120: 323 | X120: 323
A121: 14 | B121: 00 | C121: 201 | D121: 01 | E121: 神奈川県 | G121: 横須賀市 | H121: 横須賀市 | I121: 2 | J121: - | K121: x | L121: x | M121: x | N121: x | O121: x | P121: x | Q121: x | R121: x | S121: x | T121: x | U121: x | V121: x | W121: x | X121: 2
A122: 14 | B122: 00 | C122: 201 | D122: 02 | E122: 神奈川県 | G122: 横須賀市 | H122: （浦賀町） | I122: 11 | J122: - | K122: - | L122: - | M122: - | N122: - | O122: - | P122: - | Q122: - | R122: - | S122: - | T122: - | U122: - | V122: - | W122: 11 | X122: 11
A123: 14 | B123: 00 | C123: 201 | D123: 03 | E123: 神奈川県 | G123: 横須賀市 | H123: （大津） | I123: - | J123: - | K123: - | L123: - | M123: - | N123: - | O123: - | P123: - | Q123: - | R123: - | S123: - | T123: - | U123: - | V123: - | W123: - | X123: -
A124: 14 | B124: 00 | C124: 201 | D124: 04 | E124: 神奈川県 | G124: 横須賀市 | H124: 衣笠村 | I124: 6 | J124: - | K124: x | L124: x | M124: x | N124: x | O124: x | P124: x | Q124: x | R124: x | S124: x | T124: x | U124: x | V124: x | W124: x | X124: 6
A125: 14 | B125: 00 | C125: 201 | D125: 05 | E125: 神奈川県 | G125: 横須賀市 | H125: 久里浜村 | I125: 11 | J125: - | K125: - | L125: - | M125: - | N125: - | O125: - | P125: - | Q125: - | R125: - | S125: - | T125: - | U125: - | V125: - | W125: 11 | X125: 11
A126: 14 | B126: 00 | C126: 201 | D126: 06 | E126: 神奈川県 | G126: 横須賀市 | H126: 武山村 | I126: 65 | J126: 2 | K126: - | L126: 2 | M126: 2 | N126: - | O126: - | P126: - | Q126: - | R126: - | S126: - | T126: - | U126: - | V126: - | W126: 63 | X126: 63
A127: 14 | B127: 00 | C127: 201 | D127: 07 | E127: 神奈川県 | G127: 横須賀市 | H127: 大楠町 | I127: 49 | J127: 4 | K127: - | L127: 4 | M127: 3 | N127: - | O127: 1 | P127: - | Q127: - | R127: - | S127: - | T127: - | U127: - | V127: - | W127: 45 | X127: 45
A128: 14 | B128: 00 | C128: 201 | D128: 08 | E128: 神奈川県 | G128: 横須賀市 | H128: 北下浦村 | I128: 86 | J128: 3 | K128: 1 | L128: 2 | M128: 2 | N128: - | O128: - | P128: - | Q128: - | R128: - | S128: - | T128: - | U128: - | V128: - | W128: 83 | X128: 83
A129: 14 | B129: 00 | C129: 201 | D129: 09 | E129: 神奈川県 | G129: 横須賀市 | H129: 長井町 | I129: 103 | J129: 1 | K129: - | L129: 1 | M129: 1 | N129: - | O129: - | P129: - | Q129: - | R129: - | S129: - | T129: - | U129: - | V129: - | W129: 102 | X129: 102
A130: 14 | B130: 00 | C130: 203 | D130: 00 | E130: 神奈川県 | G130: 平塚市 | I130: 845 | J130: 24 | K130: 1 | L130: 21 | M130: 20 | N130: - | O130: 1 | P130: - | Q130: 1 | R130: 1 | S130: - | T130: - | U130: 1 | V130: - | W130: 821 | X130: 819
A131: 14 | B131: 00 | C131: 203 | D131: 01 | E131: 神奈川県 | G131: 平塚市 | H131: 平塚市 | I131: 5 | J131: 1 | K131: - | L131: 1 | M131: 1 | N131: - | O131: - | P131: - | Q131: - | R131: - | S131: - | T131: - | U131: - | V131: - | W131: 4 | X131: 4
A132: 14 | B132: 00 | C132: 203 | D132: 02 | E132: 神奈川県 | G132: 平塚市 | H132: 旭村 | I132: 78 | J132: 2 | K132: 1 | L132: 1 | M132: - | N132: - | O132: 1 | P132: - | Q132: - | R132: - | S132: - | T132: - | U132: - | V132: - | W132: 76 | X132: 76
A133: 14 | B133: 00 | C133: 203 | D133: 03 | E133: 神奈川県 | G133: 平塚市 | H133: 大野町 | I133: 111 | J133: 2 | K133: - | L133: 2 | M133: 2 | N133: - | O133: - | P133: - | Q133: - | R133: - | S133: - | T133: - | U133: - | V133: - | W133: 109 | X133: 108
A134: 14 | B134: 00 | C134: 203 | D134: 04 | E134: 神奈川県 | G134: 平塚市 | H134: 土沢村 | I134: 151 | J134: 5 | K134: - | L134: 5 | M134: 5 | N134: - | O134: - | P134: - | Q134: - | R134: - | S134: - | T134: - | U134: - | V134: - | W134: 146 | X134: 146
A135: 14 | B135: 00 | C135: 203 | D135: 05 | E135: 神奈川県 | G135: 平塚市 | H135: 豊田村 | I135: 58 | J135: 1 | K135: - | L135: 1 | M135: 1 | N135: - | O135: - | P135: - | Q135: - | R135: - | S135: - | T135: - | U135: - | V135: - | W135: 57 | X135: 57
A136: 14 | B136: 00 | C136: 203 | D136: 06 | E136: 神奈川県 | G136: 平塚市 | H136: 金田村 | I136: 54 | J136: 1 | K136: - | L136: 1 | M136: 1 | N136: - | O136: - | P136: - | Q136: - | R136: - | S136: - | T136: - | U136: - | V136: - | W136: 53 | X136: 53
A137: 14 | B137: 00 | C137: 203 | D137: 07 | E137: 神奈川県 | G137: 平塚市 | H137: 金目村 | I137: 115 | J137: 4 | K137: - | L137: 4 | M137: 4 | N137: - | O137: - | P137: - | Q137: - | R137: - | S137: - | T137: - | U137: - | V137: - | W137: 111 | X137: 111
A138: 14 | B138: 00 | C138: 203 | D138: 08 | E138: 神奈川県 | G138: 平塚市 | H138: 神田村 | I138: 57 | J138: 1 | K138: - | L138: 1 | M138: 1 | N138: - | O138: - | P138: - | Q138: - | R138: - | S138: - | T138: - | U138: - | V138: - | W138: 56 | X138: 56
A139: 14 | B139: 00 | C139: 203 | D139: 09 | E139: 神奈川県 | G139: 平塚市 | H139: 城島村 | I139: 105 | J139: 5 | K139: - | L139: 4 | M139: 4 | N139: - | O139: - | P139: - | Q139: 1 | R139: 1 | S139: - | T139: - | U139: - | V139: - | W139: 100 | X139: 100
A140: 14 | B140: 00 | C140: 203 | D140: 10 | E140: 神奈川県 | G140: 平塚市 | H140: 岡崎村２－１ | I140: 93 | J140: 2 | K140: - | L140: 1 | M140: 1 | N140: - | O140: - | P140: - | Q140: - | R140: - | S140: - | T140: - | U140: 1 | V140: - | W140: 91 | X140: 91
A141: 14 | B141: 00 | C141: 203 | D141: 11 | E141: 神奈川県 | G141: 平塚市 | H141: 大根村２－１ | I141: 18 | J141: - | K141: - | L141: - | M141: - | N141: - | O141: - | P141: - | Q141: - | R141: - | S141: - | T141: - | U141: - | V141: - | W141: 18 | X141: 17
A142: 14 | B142: 00 | C142: 204 | D142: 00 | E142: 神奈川県 | G142: 鎌倉市 | I142: 66 | J142: 1 | K142: - | L142: 1 | M142: 1 | N142: - | O142: - | P142: - | Q142: - | R142: - | S142: - | T142: - | U142: - | V142: - | W142: 65 | X142: 65
A143: 14 | B143: 00 | C143: 204 | D143: 01 | E143: 神奈川県 | G143: 鎌倉市 | H143: 鎌倉市 | I143: 6 | J143: - | K143: - | L143: - | M143: - | N143: - | O143: - | P143: - | Q143: - | R143: - | S143: - | T143: - | U143: - | V143: - | W143: 6 | X143: 6
A144: 14 | B144: 00 | C144: 204 | D144: 02 | E144: 神奈川県 | G144: 鎌倉市 | H144: 深沢村 | I144: 19 | J144: - | K144: - | L144: - | M144: - | N144: - | O144: - | P144: - | Q144: - | R144: - | S144: - | T144: - | U144: - | V144: - | W144: 19 | X144: 19
A145: 14 | B145: 00 | C145: 204 | D145: 03 | E145: 神奈川県 | G145: 鎌倉市 | H145: 大船町 | I145: 41 | J145: 1 | K145: - | L145: 1 | M145: 1 | N145: - | O145: - | P145: - | Q145: - | R145: - | S145: - | T145: - | U145: - | V145: - | W145: 40 | X145: 40
A146: 14 | B146: 00 | C146: 205 | D146: 00 | E146: 神奈川県 | G146: 藤沢市 | I146: 604 | J146: 24 | K146: 2 | L146: 22 | M146: 22 | N146: - | O146: - | P146: - | Q146: - | R146: - | S146: - | T146: - | U146: - | V146: - | W146: 580 | X146: 579
A147: 14 | B147: 00 | C147: 205 | D147: 01 | E147: 神奈川県 | G147: 藤沢市 | H147: 藤沢市 | I147: 44 | J147: 3 | K147: 1 | L147: 2 | M147: 2 | N147: - | O147: - | P147: - | Q147: - | R147: - | S147: - | T147: - | U147: - | V147: - | W147: 41 | X147: 41
A148: 14 | B148: 00 | C148: 205 | D148: 02 | E148: 神奈川県 | G148: 藤沢市 | H148: 六会村 | I148: 168 | J148: 4 | K148: - | L148: 4 | M148: 4 | N148: - | O148: - | P148: - | Q148: - | R148: - | S148: - | T148: - | U148: - | V148: - | W148: 164 | X148: 164
A149: 14 | B149: 00 | C149: 205 | D149: 03 | E149: 神奈川県 | G149: 藤沢市 | H149: （明治） | I149: 52 | J149: - | K149: - | L149: - | M149: - | N149: - | O149: - | P149: - | Q149: - | R149: - | S149: - | T149: - | U149: - | V149: - | W149: 52 | X149: 52
A150: 14 | B150: 00 | C150: 205 | D150: 04 | E150: 神奈川県 | G150: 藤沢市 | H150: 村岡村 | I150: 15 | J150: 1 | K150: - | L150: 1 | M150: 1 | N150: - | O150: - | P150: - | Q150: - | R150: - | S150: - | T150: - | U150: - | V150: - | W150: 14 | X150: 14
A151: 14 | B151: 00 | C151: 205 | D151: 05 | E151: 神奈川県 | G151: 藤沢市 | H151: 渋谷村２－１ | I151: 57 | J151: 1 | K151: - | L151: 1 | M151: 1 | N151: - | O151: - | P151: - | Q151: - | R151: - | S151: - | T151: - | U151: - | V151: - | W151: 56 | X151: 56
A152: 14 | B152: 00 | C152: 205 | D152: 06 | E152: 神奈川県 | G152: 藤沢市 | H152: 小出村２－１ | I152: 62 | J152: 3 | K152: - | L152: 3 | M152: 3 | N152: - | O152: - | P152: - | Q152: - | R152: - | S152: - | T152: - | U152: - | V152: - | W152: 59 | X152: 59
A153: 14 | B153: 00 | C153: 205 | D153: 07 | E153: 神奈川県 | G153: 藤沢市 | H153: 御所見村 | I153: 206 | J153: 12 | K153: 1 | L153: 11 | M153: 11 | N153: - | O153: - | P153: - | Q153: - | R153: - | S153: - | T153: - | U153: - | V153: - | W153: 194 | X153: 193
A154: 14 | B154: 00 | C154: 206 | D154: 00 | E154: 神奈川県 | G154: 小田原市 | I154: 991 | J154: 13 | K154: 2 | L154: 9 | M154: 9 | N154: - | O154: - | P154: - | Q154: 1 | R154: 1 | S154: - | T154: - | U154: 1 | V154: - | W154: 978 | X154: 977
A155: 14 | B155: 00 | C155: 206 | D155: 01 | E155: 神奈川県 | G155: 小田原市 | H155: （足柄） | I155: 66 | J155: 1 | K155: - | L155: 1 | M155: 1 | N155: - | O155: - | P155: - | Q155: - | R155: - | S155: - | T155: - | U155: - | V155: - | W155: 65 | X155: 65
A156: 14 | B156: 00 | C156: 206 | D156: 02 | E156: 神奈川県 | G156: 小田原市 | H156: （久野） | I156: 89 | J156: 1 | K156: - | L156: 1 | M156: 1 | N156: - | O156: - | P156: - | Q156: - | R156: - | S156: - | T156: - | U156: - | V156: - | W156: 88 | X156: 88
A157: 14 | B157: 00 | C157: 206 | D157: 03 | E157: 神奈川県 | G157: 小田原市 | H157: 早川村 | I157: 52 | J157: 1 | K157: - | L157: - | M157: - | N157: - | O157: - | P157: - | Q157: 1 | R157: 1 | S157: - | T157: - | U157: - | V157: - | W157: 51 | X157: 51
A158: 14 | B158: 00 | C158: 206 | D158: 04 | E158: 神奈川県 | G158: 小田原市 | H158: 大窪村 | I158: 41 | J158: - | K158: - | L158: - | M158: - | N158: - | O158: - | P158: - | Q158: - | R158: - | S158: - | T158: - | U158: - | V158: - | W158: 41 | X158: 41
A159: 14 | B159: 00 | C159: 206 | D159: 05 | E159: 神奈川県 | G159: 小田原市 | H159: 酒匂町 | I159: 2 | J159: - | K159: x | L159: x | M159: x | N159: x | O159: x | P159: x | Q159: x | R159: x | S159: x | T159: x | U159: x | V159: x | W159: x | X159: 2
A160: 14 | B160: 00 | C160: 206 | D160: 06 | E160: 神奈川県 | G160: 小田原市 | H160: 下府中村 | I160: 11 | J160: - | K160: x | L160: x | M160: x | N160: x | O160: x | P160: x | Q160: x | R160: x | S160: x | T160: x | U160: x | V160: x | W160: x | X160: 11
A161: 14 | B161: 00 | C161: 206 | D161: 07 | E161: 神奈川県 | G161: 小田原市 | H161: 下曽我村 | I161: 106 | J161: - | K161: - | L161: - | M161: - | N161: - | O161: - | P161: - | Q161: - | R161: - | S161: - | T161: - | U161: - | V161: - | W161: 106 | X161: 106
A162: 14 | B162: 00 | C162: 206 | D162: 08 | E162: 神奈川県 | G162: 小田原市 | H162: 片浦村 | I162: 84 | J162: - | K162: - | L162: - | M162: - | N162: - | O162: - | P162: - | Q162: - | R162: - | S162: - | T162: - | U162: - | V162: - | W162: 84 | X162: 84
A163: 14 | B163: 00 | C163: 206 | D163: 09 | E163: 神奈川県 | G163: 小田原市 | H163: 国府津町 | I163: 52 | J163: - | K163: - | L163: - | M163: - | N163: - | O163: - | P163: - | Q163: - | R163: - | S163: - | T163: - | U163: - | V163: - | W163: 52 | X163: 52
A164: 14 | B164: 00 | C164: 206 | D164: 10 | E164: 神奈川県 | G164: 小田原市 | H164: 桜井村 | I164: 79 | J164: 1 | K164: - | L164: 1 | M164: 1 | N164: - | O164: - | P164: - | Q164: - | R164: - | S164: - | T164: - | U164: - | V164: - | W164: 78 | X164: 78
A165: 14 | B165: 00 | C165: 206 | D165: 11 | E165: 神奈川県 | G165: 小田原市 | H165: （富水） | I165: 71 | J165: 1 | K165: - | L165: 1 | M165: 1 | N165: - | O165: - | P165: - | Q165: - | R165: - | S165: - | T165: - | U165: - | V165: - | W165: 70 | X165: 70
A166: 14 | B166: 00 | C166: 206 | D166: 12 | E166: 神奈川県 | G166: 小田原市 | H166: 上府中村 | I166: 67 | J166: 2 | K166: 1 | L166: - | M166: - | N166: - | O166: - | P166: - | Q166: - | R166: - | S166: - | T166: - | U166: 1 | V166: - | W166: 65 | X166: 65
A167: 14 | B167: 00 | C167: 206 | D167: 13 | E167: 神奈川県 | G167: 小田原市 | H167: 曽我村２－１ | I167: 97 | J167: 1 | K167: - | L167: 1 | M167: 1 | N167: - | O167: - | P167: - | Q167: - | R167: - | S167: - | T167: - | U167: - | V167: - | W167: 96 | X167: 96
A168: 14 | B168: 00 | C168: 206 | D168: 14 | E168: 神奈川県 | G168: 小田原市 | H168: 豊川村 | I168: 49 | J168: - | K168: - | L168: - | M168: - | N168: - | O168: - | P168: - | Q168: - | R168: - | S168: - | T168: - | U168: - | V168: - | W168: 49 | X168: 49
A169: 14 | B169: 00 | C169: 206 | D169: 15 | E169: 神奈川県 | G169: 小田原市 | H169: 下中村 | I169: 91 | J169: 5 | K169: 1 | L169: 4 | M169: 4 | N169: - | O169: - | P169: - | Q169: - | R169: - | S169: - | T169: - | U169: - | V169: - | W169: 86 | X169: 85
A170: 14 | B170: 00 | C170: 206 | D170: 16 | E170: 神奈川県 | G170: 小田原市 | H170: 前羽村 | I170: 34 | J170: - | K170: - | L170: - | M170: - | N170: - | O170: - | P170: - | Q170: - | R170: - | S170: - | T170: - | U170: - | V170: - | W170: 34 | X170: 34
A171: 14 | B171: 00 | C171: 207 | D171: 00 | E171: 神奈川県 | G171: 茅ヶ崎市 | I171: 313 | J171: 8 | K171: - | L171: 7 | M171: 7 | N171: - | O171: - | P171: - | Q171: - | R171: - | S171: - | T171: - | U171: 1 | V171: - | W171: 305 | X171: 304
A172: 14 | B172: 00 | C172: 207 | D172: 01 | E172: 神奈川県 | G172: 茅ヶ崎市 | H172: （茅ヶ崎町） | I172: 8 | J172: - | K172: - | L172: - | M172: - | N172: - | O172: - | P172: - | Q172: - | R172: - | S172: - | T172: - | U172: - | V172: - | W172: 8 | X172: 8
A173: 14 | B173: 00 | C173: 207 | D173: 02 | E173: 神奈川県 | G173: 茅ヶ崎市 | H173: （鶴嶺） | I173: 113 | J173: 1 | K173: - | L173: 1 | M173: 1 | N173: - | O173: - | P173: - | Q173: - | R173: - | S173: - | T173: - | U173: - | V173: - | W173: 112 | X173: 112
A174: 14 | B174: 00 | C174: 207 | D174: 03 | E174: 神奈川県 | G174: 茅ヶ崎市 | H174: （松林） | I174: 93 | J174: 3 | K174: - | L174: 2 | M174: 2 | N174: - | O174: - | P174: - | Q174: - | R174: - | S174: - | T174: - | U174: 1 | V174: - | W174: 90 | X174: 89
A175: 14 | B175: 00 | C175: 207 | D175: 04 | E175: 神奈川県 | G175: 茅ヶ崎市 | H175: 小出村２－２ | I175: 99 | J175: 4 | K175: - | L175: 4 | M175: 4 | N175: - | O175: - | P175: - | Q175: - | R175: - | S175: - | T175: - | U175: - | V175: - | W175: 95 | X175: 95
A176: 14 | B176: 00 | C176: 208 | D176: 00 | E176: 神奈川県 | G176: 逗子市 | I176: 2 | J176: - | K176: x | L176: x | M176: x | N176: x | O176: x | P176: x | Q176: x | R176: x | S176: x | T176: x | U176: x | V176: x | W176: x | X176: 2
A177: 14 | B177: 00 | C177: 210 | D177: 00 | E177: 神奈川県 | G177: 三浦市 | I177: 672 | J177: 9 | K177: - | L177: 8 | M177: 8 | N177: - | O177: - | P177: - | Q177: 1 | R177: 1 | S177: - | T177: - | U177: - | V177: - | W177: 663 | X177: 663
A178: 14 | B178: 00 | C178: 210 | D178: 01 | E178: 神奈川県 | G178: 三浦市 | H178: 南下浦町 | I178: 317 | J178: 5 | K178: - | L178: 5 | M178: 5 | N178: - | O178: - | P178: - | Q178: - | R178: - | S178: - | T178: - | U178: - | V178: - | W178: 312 | X178: 312
A179: 14 | B179: 00 | C179: 210 | D179: 02 | E179: 神奈川県 | G179: 三浦市 | H179: 三崎町 | I179: 110 | J179: 3 | K179: - | L179: 3 | M179: 3 | N179: - | O179: - | P179: - | Q179: - | R179: - | S179: - | T179: - | U179: - | V179: - | W179: 107 | X179: 107
A180: 14 | B180: 00 | C180: 210 | D180: 03 | E180: 神奈川県 | G180: 三浦市 | H180: 初声村 | I180: 245 | J180: 1 | K180: - | L180: - | M180: - | N180: - | O180: - | P180: - | Q180: 1 | R180: 1 | S180: - | T180: - | U180: - | V180: - | W180: 244 | X180: 244
A181: 14 | B181: 00 | C181: 211 | D181: 00 | E181: 神奈川県 | G181: 秦野市 | I181: 525 | J181: 9 | K181: 1 | L181: 7 | M181: 7 | N181: - | O181: - | P181: - | Q181: - | R181: - | S181: - | T181: - | U181: 1 | V181: - | W181: 516 | X181: 515
A182: 14 | B182: 00 | C182: 211 | D182: 01 | E182: 神奈川県 | G182: 秦野市 | H182: 秦野町 | I182: 54 | J182: 1 | K182: - | L182: 1 | M182: 1 | N182: - | O182: - | P182: - | Q182: - | R182: - | S182: - | T182: - | U182: - | V182: - | W182: 53 | X182: 53
A183: 14 | B183: 00 | C183: 211 | D183: 02 | E183: 神奈川県 | G183: 秦野市 | H183: 東秦野村 | I183: 85 | J183: 3 | K183: - | L183: 3 | M183: 3 | N183: - | O183: - | P183: - | Q183: - | R183: - | S183: - | T183: - | U183: - | V183: - | W183: 82 | X183: 82
A184: 14 | B184: 00 | C184: 211 | D184: 03 | E184: 神奈川県 | G184: 秦野市 | H184: 南秦野町 | I184: 73 | J184: 1 | K184: - | L184: 1 | M184: 1 | N184: - | O184: - | P184: - | Q184: - | R184: - | S184: - | T184: - | U184: - | V184: - | W184: 72 | X184: 72
A185: 14 | B185: 00 | C185: 211 | D185: 04 | E185: 神奈川県 | G185: 秦野市 | H185: 北秦野村 | I185: 72 | J185: 2 | K185: 1 | L185: 1 | M185: 1 | N185: - | O185: - | P185: - | Q185: - | R185: - | S185: - | T185: - | U185: - | V185: - | W185: 70 | X185: 70
A186: 14 | B186: 00 | C186: 211 | D186: 05 | E186: 神奈川県 | G186: 秦野市 | H186: 大根村２－２ | I186: 80 | J186: 1 | K186: - | L186: 1 | M186: 1 | N186: - | O186: - | P186: - | Q186: - | R186: - | S186: - | T186: - | U186: - | V186: - | W186: 79 | X186: 79
A187: 14 | B187: 00 | C187: 211 | D187: 06 | E187: 神奈川県 | G187: 秦野市 | H187: 西秦野村 | I187: 120 | J187: 1 | K187: - | L187: - | M187: - | N187: - | O187: - | P187: - | Q187: - | R187: - | S187: - | T187: - | U187: 1 | V187: - | W187: 119 | X187: 119
A188: 14 | B188: 00 | C188: 211 | D188: 07 | E188: 神奈川県 | G188: 秦野市 | H188: 上秦野村 | I188: 41 | J188: - | K188: - | L188: - | M188: - | N188: - | O188: - | P188: - | Q188: - | R188: - | S188: - | T188: - | U188: - | V188: - | W188: 41 | X188: 40
A189: 14 | B189: 00 | C189: 212 | D189: 00 | E189: 神奈川県 | G189: 厚木市 | I189: 682 | J189: 12 | K189: 1 | L189: 9 | M189: 8 | N189: - | O189: 1 | P189: - | Q189: 1 | R189: 1 | S189: - | T189: - | U189: 1 | V189: - | W189: 670 | X189: 670
A190: 14 | B190: 00 | C190: 212 | D190: 01 | E190: 神奈川県 | G190: 厚木市 | H190: 厚木町 | I190: 3 | J190: - | K190: - | L190: - | M190: - | N190: - | O190: - | P190: - | Q190: - | R190: - | S190: - | T190: - | U190: - | V190: - | W190: 3 | X190: 3
A191: 14 | B191: 00 | C191: 212 | D191: 02 | E191: 神奈川県 | G191: 厚木市 | H191: 依知村 | I191: 118 | J191: 2 | K191: - | L191: 2 | M191: 1 | N191: - | O191: 1 | P191: - | Q191: - | R191: - | S191: - | T191: - | U191: - | V191: - | W191: 116 | X191: 116
A192: 14 | B192: 00 | C192: 212 | D192: 03 | E192: 神奈川県 | G192: 厚木市 | H192: 荻野村 | I192: 59 | J192: - | K192: - | L192: - | M192: - | N192: - | O192: - | P192: - | Q192: - | R192: - | S192: - | T192: - | U192: - | V192: - | W192: 59 | X192: 59
A193: 14 | B193: 00 | C193: 212 | D193: 04 | E193: 神奈川県 | G193: 厚木市 | H193: 睦合村 | I193: 122 | J193: 2 | K193: - | L193: 1 | M193: 1 | N193: - | O193: - | P193: - | Q193: 1 | R193: 1 | S193: - | T193: - | U193: - | V193: - | W193: 120 | X193: 120
A194: 14 | B194: 00 | C194: 212 | D194: 05 | E194: 神奈川県 | G194: 厚木市 | H194: 小鮎村 | I194: 77 | J194: 5 | K194: 1 | L194: 4 | M194: 4 | N194: - | O194: - | P194: - | Q194: - | R194: - | S194: - | T194: - | U194: - | V194: - | W194: 72 | X194: 72
A195: 14 | B195: 00 | C195: 212 | D195: 06 | E195: 神奈川県 | G195: 厚木市 | H195: 玉川村 | I195: 54 | J195: 1 | K195: - | L195: - | M195: - | N195: - | O195: - | P195: - | Q195: - | R195: - | S195: - | T195: - | U195: 1 | V195: - | W195: 53 | X195: 53
A196: 14 | B196: 00 | C196: 212 | D196: 07 | E196: 神奈川県 | G196: 厚木市 | H196: 南毛利村 | I196: 119 | J196: 1 | K196: - | L196: 1 | M196: 1 | N196: - | O196: - | P196: - | Q196: - | R196: - | S196: - | T196: - | U196: - | V196: - | W196: 118 | X196: 118
A197: 14 | B197: 00 | C197: 212 | D197: 08 | E197: 神奈川県 | G197: 厚木市 | H197: 相川村 | I197: 130 | J197: 1 | K197: - | L197: 1 | M197: 1 | N197: - | O197: - | P197: - | Q197: - | R197: - | S197: - | T197: - | U197: - | V197: - | W197: 129 | X197: 129
A198: 14 | B198: 00 | C198: 213 | D198: 00 | E198: 神奈川県 | G198: 大和市 | I198: 161 | J198: 2 | K198: - | L198: 2 | M198: 2 | N198: - | O198: - | P198: - | Q198: - | R198: - | S198: - | T198: - | U198: - | V198: - | W198: 159 | X198: 159
A199: 14 | B199: 00 | C199: 213 | D199: 01 | E199: 神奈川県 | G199: 大和市 | H199: 大和町 | I199: 81 | J199: 1 | K199: - | L199: 1 | M199: 1 | N199: - | O199: - | P199: - | Q199: - | R199: - | S199: - | T199: - | U199: - | V199: - | W199: 80 | X199: 80
A200: 14 | B200: 00 | C200: 213 | D200: 02 | E200: 神奈川県 | G200: 大和市 | H200: 渋谷村２－２ | I200: 80 | J200: 1 | K200: - | L200: 1 | M200: 1 | N200: - | O200: - | P200: - | Q200: - | R200: - | S200: - | T200: - | U200: - | V200: - | W200: 79 | X200: 79
A201: 14 | B201: 00 | C201: 214 | D201: 00 | E201: 神奈川県 | G201: 伊勢原市 | I201: 543 | J201: 25 | K201: 1 | L201: 22 | M201: 21 | N201: 1 | O201: - | P201: - | Q201: 1 | R201: 1 | S201: - | T201: - | U201: 1 | V201: - | W201: 518 | X201: 518
A202: 14 | B202: 00 | C202: 214 | D202: 01 | E202: 神奈川県 | G202: 伊勢原市 | H202: 伊勢原町 | I202: 58 | J202: 2 | K202: - | L202: 2 | M202: 2 | N202: - | O202: - | P202: - | Q202: - | R202: - | S202: - | T202: - | U202: - | V202: - | W202: 56 | X202: 56
... 54 more rows

Sheet 2005_2020市町 (hidden)
C1: 2005年 | D1: 2010年 | E1: 2015年 | F1: 2020年
A2: 神奈川県 | C2: ='2005旧市町'!E13 -> 17,121 | D2: ='2010旧市町村'!E13 -> 15,612 | E2: ='2015旧市町村'!E13 -> 13,809 | F2: ='2020旧市町村'!I10 -> 11,402
A3: 横浜市 | C3: ='2005旧市町'!E14 -> 2,726 | D3: ='2010旧市町村'!E14 -> 2,531 | E3: ='2015旧市町村'!E14 -> 2,205 | F3: ='2020旧市町村'!I11 -> 1,931
A4: 鶴見区 | C4: ='2005旧市町'!E15 -> 32 | D4: ='2010旧市町村'!E15 -> 25 | E4: ='2015旧市町村'!E15 -> 22 | F4: ='2020旧市町村'!I12 -> 17
A5: 神奈川区 | C5: ='2005旧市町'!E16 -> 159 | D5: ='2010旧市町村'!E16 -> 152 | E5: ='2015旧市町村'!E16 -> 130 | F5: ='2020旧市町村'!I13 -> 122
A6: 西区 | C6: ='2005旧市町'!E17 -> - | D6: ='2010旧市町村'!E17 -> - | E6: ='2015旧市町村'!E17 -> - | F6: ='2020旧市町村'!I14 -> 1
A7: 中区 | C7: ='2005旧市町'!E18 -> 4 | D7: ='2010旧市町村'!E18 -> 1 | E7: ='2015旧市町村'!E18 -> 1 | F7: ='2020旧市町村'!I15 -> -
A8: 南区（南区２－１） | C8: ='2005旧市町'!E19 -> 3 | D8: ='2010旧市町村'!E19 -> 3 | E8: ='2015旧市町村'!E19 -> 4 | F8: ='2020旧市町村'!I16 -> 7
A9: 保土ケ谷区 | C9: ='2005旧市町'!E20 -> 103 | D9: ='2010旧市町村'!E20 -> 100 | E9: ='2015旧市町村'!E20 -> 91 | F9: ='2020旧市町村'!I17 -> 84
A10: 磯子区 | C10: ='2005旧市町'!E24 -> 29 | D10: ='2010旧市町村'!E24 -> 25 | E10: ='2015旧市町村'!E24 -> 17 | F10: ='2020旧市町村'!I21 -> 18
A11: 金沢区 | C11: ='2005旧市町'!E25 -> 28 | D11: ='2010旧市町村'!E25 -> 31 | E11: ='2015旧市町村'!E25 -> 26 | F11: ='2020旧市町村'!I22 -> 26
A12: 港北区 | C12: ='2005旧市町'!E26 -> 286 | D12: ='2010旧市町村'!E26 -> 264 | E12: ='2015旧市町村'!E26 -> 233 | F12: ='2020旧市町村'!I23 -> 215
A13: 戸塚区 | C13: ='2005旧市町'!E29 -> 254 | D13: ='2010旧市町村'!E29 -> 243 | E13: ='2015旧市町村'!E29 -> 211 | F13: ='2020旧市町村'!I26 -> 175
A14: 港南区（南区２－２） | C14: ='2005旧市町'!E35 -> 53 | D14: ='2010旧市町村'!E35 -> 52 | E14: ='2015旧市町村'!E35 -> 49 | F14: ='2020旧市町村'!I32 -> 43
A15: 旭区 | C15: ='2005旧市町'!E36 -> 200 | D15: ='2010旧市町村'!E36 -> 173 | E15: ='2015旧市町村'!E36 -> 166 | F15: ='2020旧市町村'!I33 -> 116
A16: 緑区 | C16: ='2005旧市町'!E40 -> 286 | D16: ='2010旧市町村'!E40 -> 264 | E16: ='2015旧市町村'!E40 -> 237 | F16: ='2020旧市町村'!I37 -> 214
A17: 瀬谷区 | C17: ='2005旧市町'!E44 -> 194 | D17: ='2010旧市町村'!E44 -> 193 | E17: ='2015旧市町村'!E44 -> 162 | F17: ='2020旧市町村'!I41 -> 154
A18: 栄区 | C18: ='2005旧市町'!E47 -> 79 | D18: ='2010旧市町村'!E47 -> 67 | E18: ='2015旧市町村'!E47 -> 52 | F18: ='2020旧市町村'!I44 -> 49
A19: 泉区 | C19: ='2005旧市町'!E50 -> 339 | D19: ='2010旧市町村'!E50 -> 325 | E19: ='2015旧市町村'!E50 -> 274 | F19: ='2020旧市町村'!I47 -> 247
A20: 青葉区 | C20: ='2005旧市町'!E54 -> 295 | D20: ='2010旧市町村'!E54 -> 256 | E20: ='2015旧市町村'!E54 -> 215 | F20: ='2020旧市町村'!I51 -> 178
A21: 都筑区 | C21: ='2005旧市町'!E60 -> 382 | D21: ='2010旧市町村'!E60 -> 357 | E21: ='2015旧市町村'!E60 -> 315 | F21: ='2020旧市町村'!I57 -> 265
A22: 川崎市 | C22: ='2005旧市町'!E65 -> 821 | D22: ='2010旧市町村'!E65 -> 778 | E22: ='2015旧市町村'!E65 -> 672 | F22: ='2020旧市町村'!I62 -> 590
A23: 川崎区 | C23: ='2005旧市町'!E66 -> - | D23: ='2010旧市町村'!E66 -> - | E23: ='2015旧市町村'!E66 -> - | F23: ='2020旧市町村'!I63 -> -
A24: 幸区 | C24: ='2005旧市町'!E67 -> 3 | D24: ='2010旧市町村'!E67 -> 4 | E24: ='2015旧市町村'!E67 -> 5 | F24: ='2020旧市町村'!I64 -> 5
A25: 中原区 | C25: ='2005旧市町'!E68 -> 60 | D25: ='2010旧市町村'!E68 -> 53 | E25: ='2015旧市町村'!E68 -> 47 | F25: ='2020旧市町村'!I65 -> 40
A26: 高津区 | C26: ='2005旧市町'!E69 -> 137 | D26: ='2010旧市町村'!E69 -> 131 | E26: ='2015旧市町村'!E69 -> 115 | F26: ='2020旧市町村'!I66 -> 102
A27: 多摩区 | C27: ='2005旧市町'!E74 -> 194 | D27: ='2010旧市町村'!E74 -> 176 | E27: ='2015旧市町村'!E74 -> 154 | F27: ='2020旧市町村'!I71 -> 135
A28: 宮前区 | C28: ='2005旧市町'!E78 -> 225 | D28: ='2010旧市町村'!E78 -> 217 | E28: ='2015旧市町村'!E78 -> 184 | F28: ='2020旧市町村'!I75 -> 160
A29: 麻生区 | C29: ='2005旧市町'!E81 -> 202 | D29: ='2010旧市町村'!E81 -> 197 | E29: ='2015旧市町村'!E81 -> 167 | F29: ='2020旧市町村'!I78 -> 148
A30: 相模原市 | C30: ='2005旧市町'!E141+C68+C69+C70+C71 -> 1,112 | D30: ='2010旧市町村'!E141 -> 854 | E30: ='2015旧市町村'!E84 -> 653 | F30: ='2020旧市町村'!I81 -> 488
A31: 緑区 | E31: ='2015旧市町村'!E85 -> 295 | F31: ='2020旧市町村'!I82 -> 223
A32: 中央区 | E32: ='2015旧市町村'!E109 -> 142 | F32: ='2020旧市町村'!I106 -> 101
A33: 南区 | E33: ='2015旧市町村'!E116 -> 216 | F33: ='2020旧市町村'!I113 -> 164
A34: 横須賀市 | C34: ='2005旧市町'!E84 -> 428 | D34: ='2010旧市町村'!E84 -> 392 | E34: ='2015旧市町村'!E123 -> 374 | F34: ='2020旧市町村'!I120 -> 333
A35: 平塚市 | C35: ='2005旧市町'!E94 -> 1,324 | D35: ='2010旧市町村'!E94 -> 1,230 | E35: ='2015旧市町村'!E133 -> 1,115 | F35: ='2020旧市町村'!I130 -> 845
A36: 鎌倉市 | C36: ='2005旧市町'!E106 -> 96 | D36: ='2010旧市町村'!E106 -> 84 | E36: ='2015旧市町村'!E145 -> 72 | F36: ='2020旧市町村'!I142 -> 66
A37: 藤沢市 | C37: ='2005旧市町'!E110 -> 848 | D37: ='2010旧市町村'!E110 -> 739 | E37: ='2015旧市町村'!E149 -> 718 | F37: ='2020旧市町村'!I146 -> 604
A38: 小田原市 | C38: ='2005旧市町'!E118 -> 1,583 | D38: ='2010旧市町村'!E118 -> 1,423 | E38: ='2015旧市町村'!E157 -> 1,271 | F38: ='2020旧市町村'!I154 -> 991
A39: 茅ヶ崎市 | C39: ='2005旧市町'!E135 -> 466 | D39: ='2010旧市町村'!E135 -> 402 | E39: ='2015旧市町村'!E174 -> 350 | F39: ='2020旧市町村'!I171 -> 313
A40: 逗子市 | C40: ='2005旧市町'!E140 -> 4 | D40: ='2010旧市町村'!E140 -> 2 | E40: ='2015旧市町村'!E179 -> 2 | F40: ='2020旧市町村'!I176 -> 2
A41: 三浦市 | C41: ='2005旧市町'!E151 -> 837 | D41: ='2010旧市町村'!E171 -> 807 | E41: ='2015旧市町村'!E180 -> 720 | F41: ='2020旧市町村'!I177 -> 672
A42: 秦野市 | C42: ='2005旧市町'!E155 -> 882 | D42: ='2010旧市町村'!E175 -> 844 | E42: ='2015旧市町村'!E184 -> 754 | F42: ='2020旧市町村'!I181 -> 525
A43: 厚木市 | C43: ='2005旧市町'!E163 -> 930 | D43: ='2010旧市町村'!E183 -> 851 | E43: ='2015旧市町村'!E192 -> 787 | F43: ='2020旧市町村'!I189 -> 682
A44: 大和市 | C44: ='2005旧市町'!E172 -> 214 | D44: ='2010旧市町村'!E192 -> 206 | E44: ='2015旧市町村'!E201 -> 194 | F44: ='2020旧市町村'!I198 -> 161
A45: 伊勢原市 | C45: ='2005旧市町'!E175 -> 852 | D45: ='2010旧市町村'!E195 -> 753 | E45: ='2015旧市町村'!E204 -> 665 | F45: ='2020旧市町村'!I201 -> 543
A46: 海老名市 | C46: ='2005旧市町'!E183 -> 449 | D46: ='2010旧市町村'!E203 -> 415 | E46: ='2015旧市町村'!E212 -> 344 | F46: ='2020旧市町村'!I209 -> 298
A47: 座間市 | C47: ='2005旧市町'!E186 -> 200 | D47: ='2010旧市町村'!E206 -> 178 | E47: ='2015旧市町村'!E215 -> 162 | F47: ='2020旧市町村'!I212 -> 127
A48: 南足柄市 | C48: ='2005旧市町'!E187 -> 650 | D48: ='2010旧市町村'!E207 -> 587 | E48: ='2015旧市町村'!E216 -> 557 | F48: ='2020旧市町村'!I213 -> 481
A49: 綾瀬市 | C49: ='2005旧市町'!E192 -> 224 | D49: ='2010旧市町村'!E212 -> 239 | E49: ='2015旧市町村'!E221 -> 219 | F49: ='2020旧市町村'!I218 -> 174
A50: 葉山町 | C50: ='2005旧市町'!E194 -> 22 | D50: ='2010旧市町村'!E214 -> 21 | E50: ='2015旧市町村'!E223 -> 23 | F50: ='2020旧市町村'!I219 -> 17
A51: 寒川町 | C51: ='2005旧市町'!E196 -> 214 | D51: ='2010旧市町村'!E216 -> 189 | E51: ='2015旧市町村'!E225 -> 174 | F51: ='2020旧市町村'!I220 -> 137
A52: 大磯町 | C52: ='2005旧市町'!E198 -> 224 | D52: ='2010旧市町村'!E218 -> 204 | E52: ='2015旧市町村'!E227 -> 160 | F52: ='2020旧市町村'!I221 -> 136
A53: 二宮町 | C53: ='2005旧市町'!E201 -> 95 | D53: ='2010旧市町村'!E221 -> 91 | E53: ='2015旧市町村'!E230 -> 90 | F53: ='2020旧市町村'!I224 -> 64
A54: 中井町 | C54: ='2005旧市町'!E203 -> 329 | D54: ='2010旧市町村'!E223 -> 319 | E54: ='2015旧市町村'!E232 -> 281 | F54: ='2020旧市町村'!I225 -> 249
A55: 大井町 | C55: ='2005旧市町'!E204 -> 289 | D55: ='2010旧市町村'!E224 -> 265 | E55: ='2015旧市町村'!E233 -> 243 | F55: ='2020旧市町村'!I226 -> 193
A56: 松田町 | C56: ='2005旧市町'!E210 -> 101 | D56: ='2010旧市町村'!E228 -> 143 | E56: ='2015旧市町村'!E239 -> 101 | F56: ='2020旧市町村'!I230 -> 102
A57: 山北町 | C57: ='2005旧市町'!E211 -> 354 | D57: ='2010旧市町村'!E231 -> 327 | E57: ='2015旧市町村'!E240 -> 270 | F57: ='2020旧市町村'!I233 -> 205
A58: 開成町 | C58: ='2005旧市町'!E217 -> 189 | D58: ='2010旧市町村'!E237 -> 177 | E58: ='2015旧市町村'!E246 -> 145 | F58: ='2020旧市町村'!I239 -> 124
A59: 箱根町 | C59: ='2005旧市町'!E221 -> 4 | D59: ='2010旧市町村'!E241 -> 4 | E59: ='2015旧市町村'!E250 -> 3 | F59: ='2020旧市町村'!I242 -> 2
A60: 真鶴町 | C60: ='2005旧市町'!E222 -> 48 | D60: ='2010旧市町村'!E242 -> 51 | E60: ='2015旧市町村'!E251 -> 44 | F60: ='2020旧市町村'!I243 -> 38
A61: 湯河原町 | C61: ='2005旧市町'!E225 -> 304 | D61: ='2010旧市町村'!E245 -> 284 | E61: ='2015旧市町村'!E257 -> 78 | F61: ='2020旧市町村'!I246 -> 156
A62: 愛川町 | C62: ='2005旧市町'!E230 -> 201 | D62: ='2010旧市町村'!E250 -> 182 | E62: ='2015旧市町村'!E259 -> 157 | F62: ='2020旧市町村'!I250 -> 128
A63: 清川村 | C63: ='2005旧市町'!E234 -> 48 | D63: ='2010旧市町村'!E254 -> 40 | E63: ='2015旧市町村'!E263 -> 34 | F63: ='2020旧市町村'!I254 -> 25
A68: 城山町 | C68: ='2005旧市町'!E238 -> 116
A69: 津久井町 | C69: ='2005旧市町'!E242 -> 152
A70: 相模湖町 | C70: ='2005旧市町'!E249 -> 49
A71: 藤野町 | C71: ='2005旧市町'!E254 -> 46

Sheet グラフ
E3: ↓こちらのタブからご覧になりたい（県）市区町村を選択してください。
B4: （経営体） | E4: 神奈川県 | O4: 全国・神奈川県
L5: =B4 -> （経営体）
H23: （経営体） | R23: （経営体）
C24: センサス | D24: ='2005_2020市町'!C1 -> 2005年 | E24: ='2005_2020市町'!D1 -> 2010年 | F24: ='2005_2020市町'!E1 -> 2015年 | G24: ='2005_2020市町'!F1 -> 2020年 | H24: 15年差 | I24: 増減率 | M24: センサス | N24: 2005年 | O24: 2010年 | P24: 2015年 | Q24: 2020年 | R24: 15年差 | S24: 増減率
C25: 経営体数 | D25: =_xlfn.XLOOKUP($E$4,'2005_2020市町'!$A$2:$A$63,'2005_2020市町'!C2:C63) -> 17,121 | E25: =_xlfn.XLOOKUP($E$4,'2005_2020市町'!$A$2:$A$63,'2005_2020市町'!D2:D63) -> 15,612 | F25: =_xlfn.XLOOKUP($E$4,'2005_2020市町'!$A$2:$A$63,'2005_2020市町'!E2:E63) -> 13,809 | G25: =_xlfn.XLOOKUP($E$4,'2005_2020市町'!$A$2:$A$63,'2005_2020市町'!F2:F63) -> 11,402 | H25: =G25-D25 -> (5,719) | I25: =(G25-D25)/D25 -> -33% | M25: 全国 | N25: 2,009,380 | O25: 1,679,084 | P25: 1,377,266 | Q25: 1,075,705 | R25: =Q25-N25 -> (933,675) | S25: =(Q25-N25)/N25 -> -46%
C26: 増減率 | D26: - | E26: =(E25-D25)/D25 -> -9% | F26: =(F25-E25)/E25 -> -12% | G26: =(G25-F25)/F25 -> -17% | H26: - | I26: - | M26: 神奈川県 | N26: 17,121 | O26: 15,612 | P26: 13,809 | Q26: 11,402 | R26: =Q26-N26 -> (5,719) | S26: =(Q26-N26)/N26 -> -33%
R27: 出典：農林業センサス
